Workbook

Sheet 2025NewCourses
A1: TU_Calcs | B1: Indigo_Course_ID | C1: Database_ID_2024 | D1: Indigo_Course_Title | E1: Speaker | F1: Speaker_Employer | G1: Speaker_Address | H1: Speaker_Email | I1: Speaker_Phone | J1: Quiz_2024 | K1: Quiz_2023 | L1: Quiz_2022 | M1: Quiz_1 | N1: Quiz_2 | O1: Quiz_3 | P1: Quiz_4 | Q1: Quiz_5 | R1: Quiz_6 | S1: Quiz_7 | T1: Quiz_8 | U1: Quiz_9 | V1: Quiz_10 | W1: Quiz_11 | X1: Quiz_12 | Y1: Quiz_13 | Z1: Quiz_14 | AA1: No_Quiz_Qs | AB1: Actual_Course_Length | AC1: Total_Course_Length | AD1: 2024_Time_Hours | AH1: AK_CEUs | AI1: AK_CEU_TYPE | AJ1: CO_Number_2025 | AK1: CO_Number_2024 | AL1: CO_Number_2023 | AM1: CO_Number_2022 | AN1: CO_MAX_TUs | AO1: CO_W | AP1: CO_WW | AQ1: CO_I | AR1: CO_D | AS1: CO_C | AT1: IDAHO | AU1: IN_Approval_Number | AV1: IN_Technical_Contact_Hours | AW1: IN_General_Contact_Hours | AX1: KS_Approval | AY1: KS_Water | AZ1: KS_Wastewater | BA1: KS_Audience | BB1: MD_Course_Code | BD1: MD_Approved_CAT | BE1: MD_Process | BF1: MD_Hours | BG1: MASS_Approval | BH1: MASS_TCH | BI1: MASS_Audience | BJ1: MT_Water | BK1: MT_Wastewater | BL1: MT_Dual | BM1: Nebraska_Municipal_Hrs | BN1: Nebraska_Industrial_Hrs | BO1: NM_Follows_Colorado | BP1: NM_Hours | BQ1: NV_NWEA_Course_No | BR1: NV_CEU_Hrs | BS1: NV_WW | BT1: NV_Drinking Water Approval | BU1: OH_Approval_Number_Old | BV1: OH_Approval_Number_New | BX1: OH_Hours_New | BY1: OH_Audience | BZ1: TN_Activity_Number | CA1: TN_WW_hrs | CB1: TN_WT_hrs | CC1: TN_DS_hrs | CD1: TN_CS_hrs | CE1: Utah_Approval | CF1: Washington_State_CEUs | CG1: Washington_State_Approval | CH1: WI_Approval_No | CI1: WI_Municipal_Waterworks | CJ1: WI_Wastewater | CK1: WY_Cat_No | CL1: WY_Area | CM1: WY_Total_Hours | CN1: WY_Core | CO1: WY_Core_Hours | CP1: WY_Rules_Hours | CQ1: Topic_Description | CR1: SEO_Title | CS1: SEO_Description | CT1: Justification | CU1: Course_Level | CV1: Course_Emphasis | CW1: Objective_1 | CX1: Objective_2 | CY1: Objective_3 | CZ1: Objective_4 | DA1: Objective_5 | DB1: Objective_6 | DC1: Objective_7 | DD1: Objective_8 | DE1: Objective_9 | DF1: Objective_10 | DG1: Objective_11 | DH1: Objective_12
A2: Include in TU Calculations? | B2: Indigo Course ID | C2: 2024 Database ID Number | D2: Course Title | E2: Speaker | F2: Speaker's Employer | G2: Speaker's Address | H2: Speaker's Email Address | I2: Speaker's Phone Number | J2: Final Quiz Name - 2024/2025 | K2: Final Quiz Name - 2023 | L2: Final Quiz Name - 2022 | M2: Quiz 1 | N2: Quiz 2 | O2: Quiz 3 | P2: Quiz 4 | Q2: Quiz 5 | R2: Quiz 6 | S2: Quiz 7 | T2: Quiz 8 | U2: Quiz 9 | V2: Quiz 10 | W2: Quiz 11 | X2: Quiz 12 | Y2: Quiz 13 | Z2: Quiz 14 | AA2: Total Number of Quiz Questions | AB2: Course Instruction Time (minutes) Verified 11/25/2023 | AC2: Total Course Length w/ 30 sec added per quiz question | AD2: Total Course Length with Questions, Hours | AE2: Transcript? | AF2: Republished? | AG2: Updated in CCWP Portal? | AH2: Alaska CEUs Awarded | AI2: Alaska CEU Type | AJ2: Colorado Approval No. 2025 | AK2: Colorado Approval No. 2024 | AL2: Colorado Approval No. 2023 | AM2: Colorado Approval No. 2022 | AN2: Colorado Max TUs | AO2: Colorado Water TUs | AP2: Colorado Wastewater TUs | AQ2: Colorado Industrial TUs | AR2: Colorado Distribution TUs | AS2: Colorado Collection System TUs | AT2: Idaho Approvals | AU2: Indiana Approval No. | AV2: Indiana Technical Hrs | AW2: Indiana General Hrs | AX2: Kansas Approval Number | AY2: Kansas Water Hours | AZ2: Kansas Wastewater Hours | BA2: Kansas Audience | BB2: Maryland Course Code (03/24/2025) | BC2: Maryland Approval Date | BD2: Maryland Audience | BE2: Maryland Process? | BF2: Maryland Hours | BG2: Massachusettes Approval | BH2: Massachusettes Training Contact Hours | BI2: Massachusettes Audience | BJ2: Montana Water CECs | BK2: Montana Wastewater CECs | BL2: Montana Dual CECs | BM2: Nebraska Municipal Hours | BN2: Nebraska Industrial Hours | BO2: New Mexico TC | BP2: New Mexico Hours | BQ2: Nevada Course No. (03/24/2025) | BR2: Nevada CEU Hours | BS2: Nevada Wastewater Approval | BT2: Nevada Drinking Water Hours | BU2: Ohio Approval No. (Pre Nov 2021) | BV2: Ohio Approval Numbers 2024 | BW2: Ohio Approval Numbers 2025 | BX2: Ohio Contact Hours (2025) | BY2: Ohio Audience | BZ2: Tennessee Activity Number | CA2: Tennessee Wastewater Hours | CB2: Tennessee Water Hours | CC2: Tennessee Distribution Hours | CD2: Tennessee Collection Systems Hours | CE2: Utah Approval | CF2: Washington State CEUs | CG2: Washington Approval No. | CH2: Wisconsin Approval No. | CI2: Wisconsin Municipal Waterworks | CJ2: Wisconsin Wastewater | CK2: Wyoming Catalog Number (03/24/2025) | CL2: Wyoming Area | CM2: Wyoming Hours | CN2: Wyoming CORE? | CO2: Wyoming Core Hours | CP2: Wyoming Rules? | CQ2: Course Description | CR2: SEO_Title | CS2: SEO_Description | CT2: Justification | CU2: Course Level | CV2: Course Emphasis | CW2: Learning Objective 1 | CX2: Learning Objective 2 | CY2: Learning Objective 3 | CZ2: Learning Objective 4 | DA2: Learning Objective 5 | DB2: Learning Objective 6 | DC2: Learning Objective 7 | DD2: Learning Objective 8 | DE2: Learning Objective 9 | DF2: Learning Objective 10 | DG2: Learning Objective 11 | DH2: Learning Objective 12 | DI2: Course Prerequisites | DL2: Number of Learning Objectives
B3: placeholder | D3: placeholder | AN3: 1 | AO3: 2 | AP3: 3 | AQ3: 4 | AR3: 5 | AS3: 6
D4: Math Modules | CF4: Washington rounds to nearest hr. | DK4: Yes
B5: MATH-000 | C5: 363 | D5: Math Strategies for Success | E5: S. Innerebner, PhD, PE | F5: Indigo Water Group | G5: 8513 S. Newcombe Way, Littleton, CO 80127 | H5: sidney@indigowatergroup.com | I5: 303-489-9226 | J5: 2025 MATH-000 Strategies Final Quiz | K5: 2023 MATH-000 Strategies Final Quiz | L5: 2022 MATH-000 Strategies Final Quiz | M5: Q4 | N5: Q1 | O5: Q1 | P5: Q1 | Q5: Q2 | R5: Q4 | AA5: 13 | AB5: 57 | AC5: =AB5+(AA5*(30/60)) -> 63.5 | AD5: 1 | AE5: Y | AF5: Y | AG5: Y | AH5: 0.1 | AI5: Core | AJ5: 25-05983-002 | AK5: 24-05983-002 | AL5: 23-05983-002 | AM5: 22-05983-002 | AN5: 0.1 | AO5: 0.1 | AP5: 0.1 | AQ5: 0.1 | AR5: 0.1 | AS5: 0.1 | AT5: See NV, WY, or WA | AU5: WWT23-3430-T01-G00 | AV5: 1 | BB5: 7998-25-3 | BC5: 2025-03-21 | BD5: All / All | BE5: Non-Process | BF5: 1 | BM5: 1 | BN5: 1 | BO5: 1.0 TC | BP5: 1 | BQ5: NV25-080 | BR5: 1 | BS5: WW | BT5: Not yet approved. | BU5: OPEA-B88474073-OM | BV5: IWG-B0100-OM | BW5: IWG-B010025-OM | BX5: =AN5*10 -> 1 | BY5: Both DW and WW | BZ5: R23123 | CA5: 1 | CB5: 1 | CC5: 1 | CD5: 1 | CE5: 1 | CF5: 0.1 | CG5: ECY25-3983 | CH5: Accepted. Use Form 4400-190 | CI5: 1 | CJ5: 1 | CK5: 2025.0361 | CL5: W, D, WW, C | CM5: 1 | CN5: No | CO5: 0 | CP5: No | CQ5: One hour of math strategies to help operators be more successful when approaching math problems. Rather than teach operators how to use specific formulas or solve one type of problem, this course teaches strategies that may be used to solve many of the math problems operators are likely to encounter in their day-to-day work and on certification exams. Attendees will learn how to dissect word problems to determine which formula(s) are needed and when unit conversions are needed. Attendees will learn the order of operations and how to rearrange common equations. | CR5: 2023 MATH-000 Math Strategies | indigowatergroup.ispringmarket.com | CS5: Math strategies to help operators be more successful when approaching math problems. | CT5: Being able to solve math problems is critical for day to day operations and passing certification exams. Many operators struggle with solving word problems. | CU5: Fundamental | CV5: All operators. Math | CW5: Use the have / have not strategy to determine which formula is needed. | CX5: Recognize when unit conversions are needed. | CY5: Successfully convert one unit to another unit. For example, convert gpm to cfs. | CZ5: Rearrange equations to solve for an unknown. | DI5: Attendees should have a working knowledge of basic math: addition, subtraction, multiplication, division, fractions, and decimals. | DK5: No | DL5: =COUNTA(CW5:DH5) -> 4
B6: MATH-001 | C6: 364 | D6: Unit Conversions | E6: S. Innerebner, PhD, PE | F6: Indigo Water Group | G6: 8513 S. Newcombe Way, Littleton, CO 80127 | H6: sidney@indigowatergroup.com | I6: 303-489-9226 | J6: 2025 MATH-001 Unit Conversions Final Quiz | K6: 2023 MATH-001 Unit Conversions Final Quiz | L6: 2022 MATH-001 Unit Conversions Final Quiz | M6: Q4 | N6: Q7 | AA6: 11 | AB6: 37 | AC6: =AB6+(AA6*(30/60)) -> 42.5 | AD6: 0.5 | AE6: Y | AF6: Y | AG6: Y | AH6: 0 | AI6: Not approved. | AJ6: 25-05984-002 | AK6: 24-05984-002 | AL6: 23-05984-002 | AM6: 22-05984-002 | AN6: 0.05 | AO6: 0.05 | AP6: 0.05 | AQ6: 0.05 | AR6: 0.05 | AS6: 0.05 | AT6: See NV, WY, or WA | AU6: WWT23-3431-T0.5-G00 | AV6: 0.5 | BB6: 5976-16-11 | BC6: 2017-01-19 | BD6: All Operators | BE6: Non-Process | BF6: 0.5 | BM6: 0.5 | BN6: 0.5 | BO6: 0.5 TC | BP6: 0.5 | BQ6: NV25-097 | BR6: 0.5 | BS6: WW | BT6: Not yet approved. | BU6: OEPA-B579860-OM | BV6: IWG-B0101-OM | BW6: IWG-B010125-OM | BX6: 0.5 | BY6: Both DW and WW | BZ6: R25201 | CA6: 0.5 | CB6: 0.5 | CC6: 0.5 | CD6: 0.5 | CE6: 0.5 | CF6: 0 | CG6: Not Approved | CH6: Accepted. Use Form 4400-190 | CI6: 0.5 | CJ6: 0.5 | CK6: 2025.0362 | CL6: W, D, WW, C | CM6: 0.5 | CN6: No | CO6: 0 | CP6: No | CQ6: Thirty minutes of math problems covering unit conversions. Participants watch numerous examples followed by working problems on their own and quizzes. | CR6: 2023 MATH-001 Unit Conversions | indigowatergroup.ispringmarket.com | CS6: Thirty minutes of math problems covering unit conversions. Participants watch numerous examples followed by working problems on their own and quizzes. | CT6: Unit conversions are universally needed by operators of all classifications in their day to day duties to solve common math problems such as chemical dosing rates. | CU6: Fundamental | CV6: All operators. Math | CW6: Convert one unit to another using dimensional analysis. For example gpm to cfs. | DI6: Attendees should have a working knowledge of basic math: addition, subtraction, multiplication, division, fractions, and decimals. | DL6: =COUNTA(CW6:DH6) -> 1
B7: MATH-002 | C7: 365 | D7: Geometry | E7: S. Innerebner, PhD, PE | F7: Indigo Water Group | G7: 8513 S. Newcombe Way, Littleton, CO 80127 | H7: sidney@indigowatergroup.com | I7: 303-489-9226 | J7: 2025 MATH-002 Geometry Final Quiz | K7: 2023 MATH-002 Geometry Final Quiz | L7: 2022 MATH-002 Geometry Final Quiz | M7: Q1 | N7: Q1 | O7: Q1 | P7: Q1 | Q7: Q1 | R7: Q4 | AA7: 9 | AB7: 32 | AC7: =AB7+(AA7*(30/60)) -> 36.5 | AD7: 0.5 | AE7: Y | AF7: Y | AG7: Y | AH7: 0 | AI7: Not approved. | AJ7: 25-05985-002 | AK7: 24-05985-002 | AL7: 23-05985-002 | AM7: 22-05985-002 | AN7: 0.05 | AO7: 0.05 | AP7: 0.05 | AQ7: 0.05 | AR7: 0.05 | AS7: 0.05 | AT7: See NV, WY, or WA | AU7: WWT23-3432-T0.5-G00 | AV7: 0.5 | BB7: 5977-16-11 | BC7: 2017-01-19 | BD7: All Operators | BE7: Non-Process | BF7: 0.5 | BM7: 0.5 | BN7: 0.5 | BO7: 0.5 TC | BP7: 0.5 | BQ7: NV25-054 | BR7: 0.5 | BS7: WW | BT7: Not yet approved. | BU7: OEPA-B579859-OM | BV7: IWG-B0102-OM | BW7: IWG-B010225-OM | BX7: 0.5 | BY7: Both DW and WW | BZ7: R25202 | CA7: 0.5 | CB7: 0.5 | CC7: 0.5 | CD7: 0.5 | CE7: 0.5 | CF7: 0 | CG7: Not Approved | CH7: Accepted. Use Form 4400-190 | CI7: 0.5 | CJ7: 0.5 | CK7: 2025.0363 | CL7: W, D, WW, C | CM7: 0.5 | CN7: No | CO7: 0 | CP7: No | CQ7: Thirty minutes of math problems covering the areas and volumes of tanks. We even show you how to do the dreaded "paint the tank" problem. Participants watch short videos demonstrating how to solve several different geometry problems. After each example, participants are asked to try a problem of the same type of their own and enter the answer in a quiz. | CR7: 2023 MATH-002 Geometry | indigowatergroup.ispringmarket.com | CS7: Thirty minutes of math problems covering the areas and volumes of tanks. We even show you how to do the dreaded "paint the tank" problem. | CT7: Operators must be able to calculate the volumes of tanks as a first step in many different process control calculations like detention time, MCRT, loading rates, etc. | CU7: Fundamental | CV7: All operators. Math | CW7: Find the area and volume of cylindrical and rectangular tanks. | CX7: Calculate the surface area of cylindrical and rectangular tanks. | DI7: Attendees should have a working knowledge of basic math: addition, subtraction, multiplication, division, fractions, and decimals. | DL7: 2
B8: MATH-003 | C8: 366 | D8: Chemical Dosing | E8: S. Innerebner, PhD, PE | F8: Indigo Water Group | G8: 8513 S. Newcombe Way, Littleton, CO 80127 | H8: sidney@indigowatergroup.com | I8: 303-489-9226 | J8: 2025 Chemical Dosing Final Quiz | K8: 2023 Chemical Dosing Final Quiz | L8: 2022 Chemical Dosing Final Quiz | M8: Q4 | N8: Q6 | AA8: 10 | AB8: 30 | AC8: 35 | AD8: 0.5 | AE8: Y | AF8: Y | AG8: Y | AH8: 0 | AI8: Not approved. | AJ8: 25-05986-002 | AK8: 24-05986-002 | AL8: 23-05986-002 | AM8: 22-05986-002 | AN8: 0.05 | AO8: 0.05 | AP8: 0.05 | AQ8: 0.05 | AR8: 0.05 | AS8: 0.05 | AT8: See NV, WY, or WA | AU8: WWT23-3433-T0.5-G00 | AV8: 0.5 | BB8: 5979-16-10 | BC8: 2017-01-19 | BD8: All Operators | BE8: Non-Process | BF8: 0.5 | BM8: 0.5 | BN8: 0.5 | BO8: 0.5 TC | BP8: 0.5 | BQ8: NV25-044 | BR8: 0.5 | BS8: WW | BT8: Not yet approved. | BU8: OEPA-B579858-OM | BV8: IWG-B0103-OM | BW8: IWG-B010325-OM | BX8: 0.5 | BY8: Both DW and WW | BZ8: R25203 | CA8: 0.5 | CB8: 0.5 | CC8: 0.5 | CD8: 0.5 | CE8: 0.5 | CF8: 0 | CG8: Not Approved | CH8: Accepted. Use Form 4400-190 | CI8: 0.5 | CJ8: 0.5 | CK8: 2025.0364 | CL8: W, D, WW, C | CM8: 0.5 | CN8: No | CO8: 0 | CP8: No | CQ8: Thirty minutes of math problems focused on chlorine addition -- Dose, Demand, Residual, Pounds per Day, and percent available chlorine are defined. Attendees watch example problems to calculate each variable and then try similar problems on their own in quiz questions. | CR8: 2023 MATH-003 Chemical Dosing | indigowatergroup.ispringmarket.com | CS8: Thirty minutes of math problems focused on chlorine addition -- Dose, Demand, Residual, Pounds per Day, and percent available chlorine are defined. | CT8: Chemical dosing math is used to adjust feed rates for chlorine and other chemicals in water and wastewater treatment systems. | CU8: Fundamental | CV8: All operators. Math | CW8: Understand the difference between dose, demand, and residual. | CX8: Calculate Dose, Demand, Residual, or pounds per day given the remaining variables. | DI8: Attendees should have a working knowledge of basic math: addition, subtraction, multiplication, division, fractions, and decimals. | DL8: 2
B9: MATH-004 | C9: 367 | D9: Velocity and Hydraulic Detention Time | E9: S. Innerebner, PhD, PE | F9: Indigo Water Group | G9: 8513 S. Newcombe Way, Littleton, CO 80127 | H9: sidney@indigowatergroup.com | I9: 303-489-9226 | J9: 2025 MATH-004 Velocity Final Quiz | K9: 2023 MATH-004 Velocity Final Quiz | L9: 2022 MATH-004 Velocity Final Quiz | M9: Q1 | N9: Q2 | O9: Q6 | AA9: 8 | AB9: 52 | AC9: 56 | AD9: 1 | AE9: Progress | AH9: 0.1 | AI9: Core | AJ9: 25-05987-001 | AK9: 24-05987-001 | AL9: 23-05987-001 | AM9: 22-05987-001 | AN9: 0.1 | AO9: 0.1 | AP9: 0.1 | AQ9: 0.1 | AR9: 0.1 | AS9: 0.1 | AT9: See NV, WY, or WA | AU9: WWT23-3434-T01-G00 | AV9: 1 | BB9: 7999-25-3 | BC9: 2025-03-21 | BD9: All / All | BE9: Non-Process | BF9: 1 | BM9: 1 | BN9: 1 | BO9: 1.0 TC | BP9: 1 | BQ9: NV25-100 | BR9: 1 | BS9: WW | BT9: Not yet approved. | BU9: OEPA-B88466595-OM | BV9: IWG-B0104-OM | BW9: IWG-B010425-OM | BX9: 1 | BY9: Both DW and WW | BZ9: R23124 | CA9: 1 | CB9: 1 | CC9: 1 | CD9: 1 | CE9: 1 | CF9: 0.1 | CG9: ECY25-3984 | CH9: Accepted. Use Form 4400-190 | CI9: 0.5 | CJ9: 0.5 | CK9: 2025.0365 | CL9: W, D, WW, C | CM9: 1 | CN9: No | CO9: 0 | CP9: No | CQ9: Sixty minutes of math problems focussed on hydraulic detention time and velocity in pipes and open channels. Attendees watch video examples of math problems being worked followed by performing similar calculations in quizzes. | CR9: 2023 MATH-004 Velocity and HRT | indigowatergroup.ispringmarket.com | CS9: Sixty minutes of math problems focused on hydraulic detention time and velocity in pipes and open channels. | CT9: Operators must calculate velocity for open channels, collection systems, grit basins, and clarifiers / sedimentation basins. Hydraulic detention time is used to estimate available treatment capacity in both water and wastewater treatment. | CU9: Fundamental | CV9: All operators. Math | CW9: Define hydraulic detention time. | CX9: Define velocity. | CY9: Calculate hydraulic detention time and velocity in basins, pipes, and open channels. | CZ9: Rearrange equations to solve for an unknown. | DI9: Attendees should have a working knowledge of basic math: addition, subtraction, multiplication, division, fractions, and decimals. | DL9: 4
B10: MATH-005 | C10: 368 | D10: Geometry and Velocity | E10: S. Innerebner, PhD, PE | F10: Indigo Water Group | G10: 8513 S. Newcombe Way, Littleton, CO 80127 | H10: sidney@indigowatergroup.com | I10: 303-489-9226 | J10: 2025 MATH-005 Geometry and Velocity Final Quiz | K10: 2023 MATH-005 Geometry and Velocity Final Quiz | L10: 2022 MATH-005 Geometry and Velocity Final Quiz | M10: C1 | N10: C1 | O10: C1 | P10: C1 | Q10: Q7 | AA10: 11 | AB10: 89 | AC10: 94.5 | AD10: 1.5 | AE10: Progress | AH10: 0.15 | AI10: Core | AJ10: 25-05988-001 | AK10: 24-05988-001 | AL10: 23-05988-001 | AM10: 22-05988-001 | AN10: 0.15 | AO10: 0.15 | AP10: 0.15 | AQ10: 0.15 | AR10: 0.15 | AS10: 0.15 | AT10: See NV, WY, or WA | AU10: WWT23-3435-T1.5-G00 | AV10: 1.5 | BB10: 8000-25-3 | BC10: 2025-03-21 | BD10: All / All | BE10: Non-Process | BF10: 1.5 | BM10: 1.5 | BN10: 1.5 | BO10: 1.5 TC | BP10: 1.5 | BQ10: NV25-055 | BR10: 1.5 | BS10: WW | BT10: Not yet approved. | BU10: OEPA-B88466597-OM | BV10: IWG-B0105-OM | BW10: IWG-B010525-OM | BX10: 1.5 | BY10: Both DW and WW | BZ10: R23125 | CA10: 1.5 | CB10: 1.5 | CC10: 1.5 | CD10: 1.5 | CE10: 1.5 | CF10: 0.1 | CG10: ECY25-3985 | CH10: Accepted. Use Form 4400-190 | CI10: 1.5 | CJ10: 1.5 | CK10: 2025.0366 | CL10: W, D, WW, C | CM10: 1.5 | CN10: No | CO10: 0 | CP10: No | CQ10: Ninety minutes of math problems focussed on geometry and velocity. Participants watch problems being solved followed by trying similar problems on their own in quizzes. | CR10: 2023 MATH-005 Geometry Velocity | indigowatergroup.ispringmarket.com | CS10: Ninety minutes of math problems focused on geometry and velocity. Participants watch problems being solved followed by trying similar problems on their own in quizzes. | CT10: Operators must be able to calculate the volumes of tanks as a first step in many different process control calculations like detention time, MCRT, loading rates, etc. Velocity calculations are used in collection systems, grit basins, and sedimentation basins / clarifiers. | CU10: Fundamental | CV10: All operators. Math | CW10: Find the cross-sectional area of a pipe and open channel. | CX10: Describe the effect of changing diameter on cross-sectional area. | CY10: Find the volume of a rectangular or cylindrical tank or pipe. | CZ10: Use the velocity equation to find either distance, time, or velocity when given two of the three variables. | DA10: Use the velocity equation to find either velocity, flow, or area when given two of the three variables. | DB10: Rearrange equations to solve for an unknown. | DI10: Attendees should have a working knowledge of basic math: addition, subtraction, multiplication, division, fractions, and decimals. | DL10: 6
B11: MATH-006 | C11: 369 | D11: Using the Two-Normal and Three-Normal Equations | E11: S. Innerebner, PhD, PE | F11: Indigo Water Group | G11: 8513 S. Newcombe Way, Littleton, CO 80127 | H11: sidney@indigowatergroup.com | I11: 303-489-9226 | J11: 2025 MATH-006 Dilutions and Blending Final Quiz | K11: 2023 MATH-006 Dilutions and Blending Final Quiz | L11: 2022 MATH-006 Dilutions and Blending Final Quiz | M11: Q4 | N11: Q5 | AA11: 9 | AB11: 33 | AC11: 37.5 | AD11: 0.5 | AE11: Y | AF11: Y | AG11: Y | AH11: 0 | AI11: Not approved. | AJ11: 25-06672-001 | AK11: 24-06672-001 | AL11: 23-06672-001 | AM11: 22-06672-001 | AN11: 0.05 | AO11: 0.05 | AP11: 0.05 | AQ11: 0.05 | AR11: 0.05 | AS11: 0.05 | AT11: See NV, WY, or WA | AU11: WWT23-3436-T0.5-G00 | AV11: 0.5 | BB11: 7194-1-22 | BC11: 2022 | BD11: All Operators | BE11: Non-Process | BF11: 0.5 | BM11: 0.5 | BN11: 0.5 | BO11: 0.5 TC | BP11: 0.5 | BQ11: NV25-098 | BR11: 0.5 | BS11: WW | BT11: Not yet approved. | BU11: OEPA-B88672230-OM | BV11: IWG-B0106-OM | BW11: IWG-B010625-OM | BX11: 0.5 | BY11: Both DW and WW | BZ11: R25204 | CA11: 0.5 | CB11: 0.5 | CC11: 0.5 | CD11: 0.5 | CE11: 0.5 | CF11: 0 | CG11: Not Approved | CH11: Accepted. Use Form 4400-190 | CI11: 0.5 | CJ11: 0.5 | CK11: 2025.0367 | CL11: W, D, WW | CM11: 0.5 | CN11: No | CO11: 0 | CP11: No | CQ11: Thirty minutes of math problems using the two-normal and three-normal equations to calculate dilutions, dewatering of sludge, and blending of water sources. Quiz at the end. | CR11: 2023 MATH-006 Dilutions Blending | indigowatergroup.ispringmarket.com | CS11: Thirty minutes of math problems using the two-normal and three-normal equations to calculate dilutions, dewatering of sludge, and blending of water sources. | CT11: Water operators use the two and three-normal equations to blend water sources to meet safe drinking water limits. Wastewater operators use these calculations to estimate impacts from sidestreams. They are used in water and wastewater to calculate chemical dosages and to make standards in the laboratory. | CU11: Fundamental | CV11: All operators. Math | CW11: Solve water and wastewater related math problems using the two-normal and three-normal equations. | CX11: Understand when to use the two-normal versus three-normal equation. | CY11: Follow the order of operations to solve equations. | CZ11: Rearrange equations to solve for an unknown. | DI11: Attendees should have a working knowledge of basic math: addition, subtraction, multiplication, division, fractions, and decimals. | DL11: 4
B12: MATH-007 | C12: 370 | D12: Advanced Activated Sludge and Clarifier Math | E12: S. Innerebner, PhD, PE | F12: Indigo Water Group | G12: 8513 S. Newcombe Way, Littleton, CO 80127 | H12: sidney@indigowatergroup.com | I12: 303-489-9226 | J12: 2025 MATH-007 Activated Sludge | K12: 2023 MATH-007 Activated Sludge | M12: Q1 | N12: Q1 | O12: Q1 | P12: Q1 | Q12: Q1 | R12: Q1 | S12: Q1 | T12: Q6 | AA12: 13 | AB12: 119 | AC12: 125.5 | AD12: 2 | AE12: Progress | AH12: 0.2 | AI12: Core | AJ12: 25-10564-001 | AK12: 24-10564-001 | AL12: 23-10564-001 | AM12: None for 2022 | AN12: 0.2 | AO12: 0 | AP12: 0.2 | AQ12: 0.2 | AR12: 0 | AS12: 0 | AT12: See NV, WY, or WA | AU12: Not yet approved | AV12: 0 | BB12: 8001-25-3 | BC12: 2025-03-21 | BD12: WW and Industrial | BE12: Non-Process | BF12: 2 | BM12: 2 | BN12: 2 | BO12: 2.0 TC | BP12: 2 | BQ12: NV25-033 | BR12: 2 | BS12: WW | BT12: Not yet approved. | BV12: IWG-S0107-OM | BW12: IWG-S010725-OM | BX12: 2 | BY12: WW Only | BZ12: R25205 | CA12: 2 | CB12: 0 | CC12: 0 | CD12: 0 | CE12: 2 | CF12: 0.2 | CG12: ECY25-3986 | CH12: Accepted. Use Form 4400-190 | CI12: 2 | CJ12: 2 | CK12: 2025.0368 | CL12: WW | CM12: 2 | CN12: No | CO12: 0 | CP12: No | CQ12: Two full hours of advanced activated sludge and clarifier related math problems are worked through, step by step. These are multi-step problems similar to those that may be found on higher level certification exams. | CS12: Two full hours of advanced activated sludge and clarifier related math problems are worked through, step by step. These are advanced multi-step problems. | CT12: Operators must be able to calculate a number of parameters for activated sludge process control. | CU12: Intermediate | CV12: All operators. Math | CW12: Solve math problems related to activated sludge and secondary clarifiers. Specific types of calculations covered include: sludge volume index (SVI), food-to-microorganism ratio (F:M), return activated sludge concentration (RAS), mean cell residence time (MCRT), clarifier solids loading rate, RAS pumping rate, and aeration costs. | DI12: Attendees should have a working knowledge of basic math: addition, subtraction, multiplication, division, fractions, and decimals. They should also know how to convert units. | DL12: 1
B13: MATH-008 | C13: 371 | D13: Advanced Anaerobic Digester and Solids Math | E13: S. Innerebner, PhD, PE | F13: Indigo Water Group | G13: 8513 S. Newcombe Way, Littleton, CO 80127 | H13: sidney@indigowatergroup.com | I13: 303-489-9226 | J13: 2025 MATH-008 Anaerobic Digester Math Final Quiz | K13: 2023 MATH-008 Anaerobic Digester Math Final Quiz | M13: Q1 | N13: Q1 | O13: Q1 | P13: Q1 | Q13: Q1 | R13: Q1 | S13: Q4 | AA13: 10 | AB13: 111 | AC13: 116 | AD13: 2 | AE13: N | AH13: 0.2 | AI13: Core | AJ13: 25-10565-001 | AK13: 24-10565-001 | AL13: 23-10565-001 | AM13: None for 2022 | AN13: 0.2 | AO13: 0 | AP13: 0.2 | AQ13: 0.2 | AR13: 0 | AS13: 0 | AT13: See NV, WY, or WA | AU13: Not yet approved | AV13: 0 | BB13: 8002-25-3 | BC13: 2025-03-21 | BD13: WW and Industrial | BE13: Non-Process | BF13: 2 | BM13: 2 | BN13: 2 | BO13: 2.0 TC | BP13: 2 | BQ13: NV25-034 | BR13: 2 | BS13: WW | BT13: Not yet approved. | BV13: IWG-S0108-OM | BW13: IWG-S010825-OM | BX13: 2 | BY13: WW Only | BZ13: R25206 | CA13: 2 | CB13: 0 | CC13: 0 | CD13: 0 | CE13: 2 | CF13: 0.2 | CG13: ECY25-3987 | CH13: Accepted. Use Form 4400-190 | CI13: 2 | CJ13: 2 | CK13: 2025.0369 | CL13: WW | CM13: 2 | CN13: No | CO13: 0 | CP13: No | CQ13: Two full hours of anaerobic digester and solids handling related math problems are worked through, step by step. These are multi-step problems similar to those that may be found on higher level certification exams. | CT13: Operators must be able to calculate a number of parameters for solids handling. | CU13: Intermediate | CV13: All operators. Math | CW13: Solve math problems related to activated sludge and secondary clarifiers. Specific types of calculations covered include: percent volatile solids reduction, volume of a conical bottom tank, digester loading rate, volatile acid to alkalinity ratio, chemical dosing, and blending for return stream management. | DI13: Attendees should have a working knowledge of basic math: addition, subtraction, multiplication, division, fractions, and decimals. They should also know how to convert units. | DL13: 1
B14: MATH-009 | C14: 372 | D14: Advanced Wastewater Math Grab Bag | E14: S. Innerebner, PhD, PE | F14: Indigo Water Group | G14: 8513 S. Newcombe Way, Littleton, CO 80127 | H14: sidney@indigowatergroup.com | I14: 303-489-9226 | J14: 2025 Advanced Math Grab Bag Final Quiz | K14: 2023 Advanced Math Grab Bag Final Quiz | M14: Q1 | N14: Q1 | O14: Q1 | P14: Q1 | Q14: Q1 | R14: Q1 | S14: Q1 | T14: Q4 | AA14: 11 | AB14: 116 | AC14: 121.5 | AD14: 2 | AE14: N | AH14: 0.2 | AI14: Core | AJ14: 25-10566-001 | AK14: 24-10566-001 | AL14: 23-10566-001 | AM14: None for 2022 | AN14: 0.2 | AO14: 0 | AP14: 0.2 | AQ14: 0.2 | AR14: 0 | AS14: 0 | AT14: See NV, WY, or WA | AU14: Not yet approved | AV14: 0 | BB14: 8003-25-3 | BC14: 2025-03-21 | BD14: WW and Industrial | BE14: Non-Process | BF14: 2 | BM14: 2 | BN14: 2 | BO14: 2.0 TC | BP14: 2 | BQ14: NV25-035 | BR14: 2 | BS14: WW | BT14: Not yet approved. | BV14: IWG-S0109-OM | BW14: IWG-S010925-OM | BX14: 2 | BY14: WW Only | BZ14: R25207 | CA14: 2 | CB14: 0 | CC14: 0 | CD14: 0 | CE14: 2 | CF14: 0.2 | CG14: ECY25-3988 | CH14: Accepted. Use Form 4400-190 | CI14: 2 | CJ14: 2 | CK14: 2025.037 | CL14: WW | CM14: 2 | CN14: No | CO14: 0 | CP14: No | CQ14: Two full hours of advanced wastewater math problems are worked through, step by step. Chemical addition, pump horsepower, cost to operate, MCRT, and more! These are multi-step problems similar to those that may be found on higher level certification exams. | CT14: Operators must be able to calculate a variety of parameters for process control. | CU14: Intermediate | CV14: All operators. Math | CW14: Solve math problems related to activated sludge and secondary clarifiers. Specific types of calculations covered include: chemical dosing, dechlorination, finding the working volume of a wet well, detention time, equivalent pipeline diameters, velocity in a force main, pump horsepower, trickling filter loading rate, primary sludge pump run time, percent volatile solids reduction, mean cell residence time (MCRT), membrane cleaning, and the two-normal equation. | DI14: Attendees should have a working knowledge of basic math: addition, subtraction, multiplication, division, fractions, and decimals. They should also know how to convert units. | DL14: 1
D15: Universal Topics
B16: ALL-001 | C16: 373 | D16: Pumps | E16: S. Innerebner, PhD, PE | F16: Indigo Water Group | G16: 8513 S. Newcombe Way, Littleton, CO 80127 | H16: sidney@indigowatergroup.com | I16: 303-489-9226 | J16: 2025 ALL-001 Pumps Final Quiz | K16: 2023 ALL-001 Pumps Final Quiz | L16: 2022 ALL-001 Pumps Final Quiz | M16: Q4 | N16: Q4 | O16: Q4 | P16: Q4 | Q16: Q5 | R16: Q4 | S16: Q8 | AA16: =4+4+4+4+5+4+8 -> 33 | AB16: 104 | AC16: =AB16+(AA16*(30/60)) -> 120.5 | AD16: 2 | AE16: Y | AF16: Y | AG16: Y | AH16: 0.2 | AI16: Core | AJ16: 25-06046-002 | AK16: 24-06046-002 | AL16: 23-06046-002 | AM16: 22-06046-002 | AN16: 0.2 | AO16: 0.2 | AP16: 0.2 | AQ16: 0.2 | AR16: 0.2 | AS16: 0.2 | AT16: See NV, WY, or WA | AU16: WWT23-3437-T02-G00 | AV16: 2 | BB16: 7973-25-3 | BC16: 2025-03-21 | BD16: All / All | BE16: Non-Process | BF16: 2 | BM16: 2 | BN16: 2 | BO16: 2.0 TC | BP16: 2 | BQ16: NV25-088 | BR16: 2 | BS16: WW | BT16: Not yet approved. | BU16: OEPA-B581454-OM | BV16: IWG-B1101-OM | BW16: IWG-B110125-OM | BX16: =AN16*10 -> 2 | BY16: Both DW and WW | BZ16: R23126 | CA16: 2 | CB16: 2 | CC16: 2 | CD16: 2 | CE16: 2 | CF16: 0.2 | CG16: ECY25-3989 | CH16: Accepted. Use Form 4400-190 | CI16: 2 | CJ16: 2 | CK16: 2025.0331 | CL16: W, D, WW, C | CM16: 2 | CN16: Yes | CO16: 2 | CP16: No | CQ16: This course discusses the different kinds of pumps used in water and wastewater treatment including centrifugal, positive displacement, peristaltic, and more. Components of each pump and mechanism of action are discussed as well as typical uses. Other topics include: cavitation and why it occurs, calculating horsepower, differences between water, brake, and motor horsepower, pump curves, the pump affinity laws, and total dynamic head. This presentation is supplemented with many wonderful pump animations provided by various pump manufacturers that are linked to through youtube. | CR16: 2023 ALL-001 Pumps | indigowatergroup.ispringmarket.com | CS16: This course discusses the different kinds of pumps used in water and wastewater treatment including centrifugal, positive displacement, peristaltic, and more. | CT16: All types of treatment systems utilize pumps to transfer liquids and sludges from one point to another. Operators must understand how pumps operate, how to troubleshoot them, and how to perform basic maintenance. | CU16: Fundamental | CV16: All operators | CW16: Identify the major components of a centrifugal pump and give the purpose/function of each piece. Explain the underlying principals of centrifugal pump operation. | CX16: List the defining characteristics of a centrifugal pump. | CY16: Visually inspect cavitation damage on an impeller and determine whether the root cause of cavitation is upstream or downstream of the pump. List at least five potential causes for pump cavitation. | CZ16: Describe the different types of pumps (centrifugal, inclined screw, positive displacement, plunger, diaphragm, progressing cavity, rotary lobe, and peristaltic) and explain their basic operation. | DA16: List the most common applications of different pump types. | DB16: Calculate water, brake, and motor horsepower. | DC16: Interpret a pump curve diagram. | DD16: Use the pump affinity laws to calculate the new flow output, discharge head, amp draw, and brake horsepower for a pump after either the impeller diameter or motor speed has changed. | DI16: No prerequistes are required for this course. | DL16: 8
B17: ALL-002 | C17: 374 | D17: Hydraulics Basics | E17: S. Innerebner, PhD, PE | F17: Indigo Water Group | G17: 8513 S. Newcombe Way, Littleton, CO 80127 | H17: sidney@indigowatergroup.com | I17: 303-489-9226 | J17: 2025 ALL-002 Hydraulics Basics Final Quiz | K17: 2023 ALL-002 Hydraulics Basics Final Quiz | L17: 2022 ALL-002 Hydraulics Basics Final Quiz | M17: Q4 | N17: Q4 | O17: Q5 | P17: Q4 | Q17: Q5 | R17: Q10 | AA17: 32 | AB17: 81 | AC17: 97 | AD17: 1.5 | AE17: Y | AF17: Y | AG17: Y | AH17: 0.15 | AI17: Core | AJ17: 25-05990-001 | AK17: 24-05990-001 | AL17: 23-05990-001 | AM17: 22-05990-001 | AN17: 0.15 | AO17: 0.15 | AP17: 0.15 | AQ17: 0.15 | AR17: 0.15 | AS17: 0.15 | AT17: See NV, WY, or WA | AU17: WWT23-3438-T1.5-G00 | AV17: 1.5 | BB17: 7974-25-3 | BC17: 2025-03-21 | BD17: All / All | BE17: Non-Process | BF17: 1.5 | BM17: 1.5 | BN17: 1.5 | BO17: 1.5 TC | BP17: 1.5 | BQ17: NV25-058 | BR17: 1.5 | BS17: WW | BT17: Not yet approved. | BU17: OEPA-B581457-OM | BV17: IWG-B1102-OM | BW17: IWG-B110225-OM | BX17: =AN17*10 -> 1.5 | BY17: Both DW and WW | BZ17: R23127 | CA17: 1.5 | CB17: 1.5 | CC17: 1.5 | CD17: 1.5 | CE17: 1.5 | CF17: 0.1 | CG17: ECY25-3990 | CH17: Accepted. Use Form 4400-190 | CI17: 1.5 | CJ17: 1.5 | CK17: 2025.0332 | CL17: W, D, WW, C | CM17: 1.5 | CN17: Yes | CO17: 1.5 | CP17: No | CQ17: This course discusses basic properties of water including weight, density, pressure, and specific gravity. This course discusses basic properties of water including weight, density, pressure, and specific gravity. Conversion of pressure to feet of head is demonstrated. Multiple examples of why pressure is so important in water and wastewater systems are presented including: determining pressures due to elevation changes in distribution systems, high groundwater and floating tanks, surcharging of sewers, and using pressure to do work with hydraulic jacks. The concepts of velocity and water hammer are introduced. The presentation closes with a description and demonstration of a ram pump whose operation is based on pressure, velocity, and water hammer. | CR17: 2023 ALL-002 Hydraulics Basics | indigowatergroup.ispringmarket.com | CS17: This course discusses basic properties of water including weight, density, pressure, and specific gravity. Conversion of pressure to feet of head is demonstrated. | CT17: An understanding of pressure and being able to convert between pressure and elevation are critical to setting pressure relief valves and other day-to-day operational tasks. | CU17: Fundamental | CV17: All operators | CW17: Understand the relationship between water depth and elevation. Calculate pressure at different locations given elevation differences and starting pressure. | CX17: Explain how the hydraulic properties of water can cause a tank or other structure to be pushed upward by rising groundwater, the principals behind a hydraulic jack, and the function of a manometer. | CY17: Understand the relationship between line pressure and diameter, soil characteristics, and thrust block size. | CZ17: Understand the relationship between water velocity and pipe diameter. | DA17: Explain the relationship between elevation, pressure, and velocity according to Bernoulli's Theorum. | DB17: Understand why water hammer can occur. | DI17: No prerequistes are required for this course. | DL17: 6
B18: ALL-003 | C18: 375 | D18: Hydraulics of Pumped Systems | E18: S. Innerebner, PhD, PE | F18: Indigo Water Group | G18: 8513 S. Newcombe Way, Littleton, CO 80127 | H18: sidney@indigowatergroup.com | I18: 303-489-9226 | J18: 2025 ALL-003 Pump Hydraulics Final Quiz | K18: 2023 ALL-003 Pump Hydraulics Final Quiz | L18: 2022 ALL-003 Pump Hydraulics Final Quiz | M18: Q4 | N18: C1 | O18: Q6 | P18: C1 | Q18: C1 | R18: Q10 | S18: Q1 | T18: Q8 | U18: Q6 | AA18: 38 | AB18: 107 | AC18: 126 | AD18: 2 | AE18: Y | AH18: 0.2 | AI18: Core | AJ18: 25-05991-001 | AK18: 24-05991-001 | AL18: 23-05991-001 | AM18: 22-05991-001 | AN18: 0.2 | AO18: 0.2 | AP18: 0.2 | AQ18: 0.2 | AR18: 0.2 | AS18: 0.2 | AT18: See NV, WY, or WA | AU18: WWT23-3439-T02-G00 | AV18: 2 | BB18: 7975-25-3 | BC18: 2025-03-21 | BD18: All / All | BE18: Non-Process | BF18: 2 | BM18: 2 | BN18: 2 | BO18: 2.0 TC | BP18: 2 | BQ18: NV25-059 | BR18: 2 | BS18: WW | BT18: Not yet approved. | BU18: OEPA-B579855-OM | BV18: IWG-B1103-OM | BW18: IWG-B110325-OM | BX18: =AN18*10 -> 2 | BY18: Both DW and WW | BZ18: R23128 | CA18: 2 | CB18: 2 | CC18: 2 | CD18: 2 | CE18: 2 | CF18: 0.2 | CG18: ECY25-3991 | CH18: Accepted. Use Form 4400-190 | CI18: 2 | CJ18: 2 | CK18: 2025.0333 | CL18: W, D, WW, C | CM18: 2 | CN18: Yes | CO18: 2 | CP18: No | CQ18: This presentation discusses hydraulic principles as they relate to pump operation. The presentation begins with a thorough discussion of total dynamic head and each of its components, the difference between suction lift and suction head, and how to calculate major and minor losses in a system. The second portion of the talk discusses work, power, and energy, how each is calculated, and the cost of running a piece of equipment. The presentation continues with a discussion of discharge velocity from a centrifugal pump, calculating impeller diameter, and the pump affinity laws. Attendees will learn to predict pump output, brake horsepower, amp draw, and discharge head from changes to either the pump speed or impeller diameter. | CR18: 2023 ALL-003 Pumped Systems | indigowatergroup.ispringmarket.com | CS18: This presentation discusses hydraulic principles as they relate to pump operation. | CT18: Operators must understand velocity in pipes, head, why cavitation occurs, and a host of other issues to effectively troubleshoot and operate pumped systems. | CU18: Advanced | CV18: All operators | CW18: Explain static head and why theoretical maximum lift is 34 feet at sea level. | CX18: Compare motor, brake, and water horsepower. Calculate each type of horsepower and cost to operate. | CY18: Understand the impact of changing motor speed or impeller diameter on pump performance. Apply the pump affinity laws to predict new pump flow output, discharge head, break horsepower, and amp draw. | CZ18: Understand types of head loss in pumped systems and explain the mathematical relationships shown in Darcy-Weisbach and Hazen-Williams equations. Calculate total head loss for a simple pump-piping system. | DA18: Understand system curves and the system operating point. Interpret information on a typical centrifugal pump curve and find the operating point. | DI18: Attendees should complete the pumps course prior to taking this one and be able to rearrange algebraic equations. | DL18: 5
B19: ALL-004 | C19: 376 | D19: Aeration Systems | E19: Stacy Passaro, PE | F19: Passaro Engineering | G19: 3927 Boteler Rd, Mount Airy, MD 21771 | H19: spassaro@passaroengineering.com | I19: 301-639-2031 | J19: 2025 ALL-004 Aeration Systems Final Quiz | K19: 2023 ALL-004 Aeration Systems Final Quiz | L19: 2022 ALL-004 Aeration Systems Final Quiz | M19: Q4 | N19: Q4 | O19: Q5 | P19: Q4 | Q19: Q4 | AA19: 21 | AB19: 73 | AC19: 83.5 | AD19: 1.5 | AE19: Y | AF19: Y | AG19: Y | AH19: 0.15 | AI19: Core | AJ19: 25-09505-001 | AK19: 24-09505-001 | AL19: 23-09505-001 | AM19: None for 2022 | AN19: 0.15 | AO19: 0.15 | AP19: 0.15 | AQ19: 0.15 | AR19: 0 | AS19: 0 | AT19: See NV, WY, or WA | AU19: WWT23-3496-T1.5-G00 | AV19: 1.5 | BB19: 7976-25-3 | BC19: 2025-03-21 | BD19: WW and Industrial | BE19: Non-Process | BF19: 1.5 | BM19: 1.5 | BN19: 1.5 | BO19: 1.0 TC | BP19: 1 | BQ19: NV25-036 | BR19: 1.5 | BS19: WW | BT19: Not yet approved. | BV19: IWG-S1104-OM | BW19: IWG-S110425-OM | BX19: 1.5 | BY19: WW Only | BZ19: R25208 | CA19: 1.5 | CB19: 1.5 | CC19: 1.5 | CD19: 1.5 | CE19: 1.5 | CF19: 0.1 | CG19: ECY25-3992 | CH19: Accepted. Use Form 4400-190 | CI19: 1.5 | CJ19: 0 | CK19: 2025.0334 | CL19: WW, C | CM19: 1.5 | CN19: Yes | CO19: 1.5 | CP19: No | CQ19: An introduction to different types of aeration equipment used in wastewater treatment plants. Blower types, their components, and maintenance requirements are discussed along with aeration system piping and diffuser types. Attendees will learn the difference between surge and choke and what causes each condition. Different types of mechanical aerators are discussed, how they function, and the pros and cons of each. | CR19: 2023 ALL-004 Aeration Systems | indigowatergroup.ispringmarket.com | CS19: An introduction to different types of aeration equipment used in wastewater treatment plants. Blower types, their components, and maintenance requirements are discussed. | CT19: Aeration systems are used in biological treatment processes to provide oxygen for BOD removal and nitrification. Operators must understand how they work and basic maintenance requirements. | CU19: Fundamental | CV19: Wastewater | CW19: List the functions of aeration equipment in biological treatment processes. | CX19: List the components of a diffused aeration system and give the functions of each. | CY19: Explain the differences in blower curves (pressure vs output) for centrifugal and positive displacement blowers. | CZ19: Explain what surge is and the conditions that can create it in a centrifugal blower. | DA19: Explain what choke is and the conditions that can create it in a centrifugal blower. | DB19: Understand the differences between single-stage, multi-stage, and turbo blowers. | DC19: Perform maintenance tasks for centrifugal and positive displacement blowers. | DD19: List the different types of diffusers and the type of air bubbles they produce. | DE19: Understand how various mechanical aerators function. | DI19: No prerequistes are required for this course. | DL19: 9
B20: ALL-005 | C20: 377 | D20: Corrosion Control | E20: S. Innerebner, PhD, PE | F20: Indigo Water Group | G20: 8513 S. Newcombe Way, Littleton, CO 80127 | H20: sidney@indigowatergroup.com | I20: 303-489-9226 | J20: 2025 ALL-005 Corrosion Final Quiz | K20: 2023 ALL-005 Corrosion Final Quiz | L20: 2022 ALL-005 Corrosion Final Quiz | M20: Q4 | N20: Q4 | O20: Q4 | P20: Q5 | Q20: Q4 | R20: C1 | S20: Q5 | T20: C1 | U20: Q5 | V20: Q11 | AA20: 44 | AB20: 110 | AC20: 132 | AD20: 2.5 | AE20: Progress | AH20: 0.25 | AI20: Core | AJ20: 25-05992-001 | AK20: 24-05992-001 | AL20: 23-05992-001 | AM20: 22-05992-001 | AN20: 0.25 | AO20: 0.25 | AP20: 0.25 | AQ20: 0.25 | AR20: 0.25 | AS20: 0.25 | AT20: See NV, WY, or WA | AU20: WWT23-3440-T2.5-G00 | AV20: 2.5 | BB20: 7977-25-3 | BC20: 2025-03-21 | BD20: All / All | BE20: Non-Process | BF20: 2.5 | BM20: 2.5 | BN20: 2.5 | BO20: 2.5 TC | BP20: 2.5 | BQ20: NV25-050 | BR20: 2.5 | BS20: WW | BT20: Not yet approved. | BU20: OEPA-B579856-OM | BV20: IWG-B1105-OM | BW20: IWG-B110525-OM | BX20: =AN20*10 -> 2.5 | BY20: Both DW and WW | BZ20: R23129 | CA20: 0 | CB20: 2.5 | CC20: 2.5 | CD20: 2.5 | CE20: 2.5 | CF20: 0.2 | CG20: ECY25-3993 | CH20: Accepted. Use Form 4400-190 | CI20: 2.5 | CJ20: 2.5 | CK20: 2025.0335 | CL20: W, D, WW, C | CM20: 2.5 | CN20: Yes | CO20: 2.5 | CP20: No | CQ20: This course discusses corrosion control in drinking water distribution and wastewater treatment and collection systems. Attendees are introduced to several different causes of corrosion. The galvanic cell and its components are discussed and how eliminating one component of the galvanic cell can prevent corrosion including: preventing contact between dissimilar metals, materials selection, coatings, and cathodic protection. Microbially mediated corrosion is discussed along with methods to mitigate hydrogen sulfide corrosion. For distribution systems, each of the accepted EPA strategies for corrosion control are discussed: alkalinity, pH, and calcium adjustment and orthophosphate and silicate addition. Attendees are introduced to the Langelier Index and the Calcium Carbonate Precipitation Potential Index. | CR20: 2023 ALL-005 Corrosion Control | indigowatergroup.ispringmarket.com | CS20: This course discusses corrosion control in drinking water distribution and wastewater treatment and collection systems. | CT20: Understanding why corrosion occurs and how to prevent it is key to maintaining water and wastewater equipment as well as water quality in the distribution system and infrastructure in collection systems. | CU20: Intermediate | CV20: All operators | CW20: Understand the fundamental mechanisms behind crevice corrosion, selective leaching, errosion corrosion, and microbially induced corrosion. | CX20: List the four components of a galvanic cell and explain the basic mechanisms behind galvanic corrosion. | CY20: Determine which of two metals will corrode when two different metals are placed into contact with another. | CZ20: Discuss various methods of mitigating corrosion including control of hydrogen sulfide concentrations, protective coatings, and cathodic protection. | DA20: Explain the biological mechanism for hydrogen sulfide and sulfuric acid formation under septic conditions. | DB20: Identify factors involved in corrosion of the water distribution system. Evaluate results of a Langelier Index or Calcium Carbonate Precipitation Index calculation. | DC20: Discuss various methods of mitigating corrosion including control of hydrogen sulfide concentrations, protective coatings, and cathodic protection. | DD20: Explain the mechanisms behind each of the three EPA accepted methods for mitigating corrosion in distribution systems: passivation, surficial coatings, and water chemistry adjustment. Discuss the importance of dissolved inorganic carbon (alkalinity) on formation of passivating films. | DI20: While there are no prerequisites for this course, it is helpful for attendees to have some knowledge of chemistry and water distribution systems. | DL20: 8
B21: ALL-006 | C21: 378 | D21: Maintenance | E21: Stacy Passaro, PE | F21: Passaro Engineering | G21: 3927 Boteler Rd, Mount Airy, MD 21771 | H21: spassaro@passaroengineering.com | I21: 301-639-2031 | J21: 2025 ALL-006 Maintenance Final Quiz | K21: 2023 ALL-006 Maintenance Final Quiz | L21: 2022 ALL-006 Maintenance Final Quiz | M21: C1 | N21: C1 | O21: C1 | P21: Q4 | Q21: C1 | R21: C1 | S21: Q8 | AA21: 17 | AB21: 99 | AC21: 107.5 | AD21: 1.5 | AE21: Y | AH21: 0.2 | AI21: Core | AJ21: 25-05993-001 | AK21: 24-05993-001 | AL21: 23-05993-001 | AM21: 22-05993-001 | AN21: 0.15 | AO21: 0.15 | AP21: 0.15 | AQ21: 0.15 | AR21: 0.15 | AS21: 0.15 | AT21: See NV, WY, or WA | AU21: WWT23-3441-T00-G1.5 | AV21: 0 | AW21: 1.5 | BB21: 7978-25-3 | BC21: 2025-03-21 | BD21: All / All | BE21: Non-Process | BF21: 1.5 | BM21: 1.5 | BN21: 1.5 | BO21: 1.5 TC | BP21: 1.5 | BQ21: NV25-078 | BR21: 1.5 | BS21: WW | BT21: Not yet approved. | BU21: OEPA-B581464-OM | BV21: IWG-B1106-OM | BW21: IWG-B110625-OM | BX21: =AN21*10 -> 1.5 | BY21: Both DW and WW | BZ21: R23130 | CA21: 1.5 | CB21: 1.5 | CC21: 1.5 | CD21: 1.5 | CE21: 1.5 | CF21: 0.1 | CG21: ECY25-3994 | CH21: Accepted. Use Form 4400-190 | CI21: 1.5 | CJ21: 1.5 | CK21: 2025.0336 | CL21: W, D, WW, C | CM21: 1.5 | CN21: Yes | CO21: 1.5 | CP21: No | CQ21: Implementing a focused maintenance program that includes predictive and preventive maintenance strategies is critical for maintaining water and wastewater infrastructure. This course will walk participants through how to set up a good maintenance program from tracking spare parts to proving effectiveness. | CR21: 2023 ALL-006 Maintenance Programs | indigowatergroup.ispringmarket.com | CS21: Implementing a focused maintenance program that includes predictive and preventive maintenance strategies is critical for maintaining water and wastewater infrastructure. | CT21: All water and wastewater systems need a well-established maintenance program and method of tracking assets. | CU21: Fundamental | CV21: All operators | CW21: Define the three main maintenance strategies (corrective, preventive, and predictive), give an example of each type of maintenance, and explain when each type of maintenance program is preferred. | CX21: Implement a basic maintenance program with four components: identification of assets, selection of a maintenance strategy for each, write job plans and schedule work orders, and collection and analysis of condition data. | CY21: Recognize predictive maintenance tools including oil analysis, vibration analysis, ultrasonic analysis, infrared imaging, and root cause analysis. | DI21: No prerequistes are required for this course. | DL21: 3
B22: ALL-007 | C22: 379 | D22: AC and DC Motors (Electrical Fundamentals) | E22: Jeremy Fielding | F22: Mechatronic Design and Media | G22: 12060 County Line Road, Suite J, #237, Madison, AL 35736 | H22: jeremy@mechatronicmedia.com | I22: 303-489-9226 | J22: 2025 ALL-007 Electrical Final Quiz | K22: 2023 ALL-007 Electrical Final Quiz | L22: 2022 ALL-007 Electrical Final Quiz | M22: 4 | N22: 6 | O22: 4 | P22: 1 | Q22: 4 | AA22: 19 | AB22: 79 | AC22: 88.5 | AD22: 1.5 | AE22: Y | AF22: Y | AG22: Y | AH22: 0.15 | AI22: Core | AJ22: 25-05994-001 | AK22: 24-05994-001 | AL22: 23-05994-001 | AM22: 22-05994-001 | AN22: 0.15 | AO22: 0.15 | AP22: 0.15 | AQ22: 0.15 | AR22: 0.15 | AS22: 0.15 | AT22: See NV, WY, or WA | AU22: WWT23-3442-T1.5-G00 | AV22: 1.5 | BB22: 7979-25-3 | BC22: 2025-03-21 | BD22: All / All | BE22: Non-Process | BF22: 1.5 | BM22: 1.5 | BN22: 1.5 | BO22: 1.5 TC | BP22: 1.5 | BQ22: NV25-026 | BR22: 1.5 | BS22: WW | BT22: Not yet approved. | BU22: OEPA-B88672243-OM | BV22: IWG-B1107-OM | BW22: IWG-B110725-OM | BX22: =AN22*10 -> 1.5 | BY22: Both DW and WW | BZ22: R23131 | CA22: 1.5 | CB22: 1.5 | CC22: 1.5 | CD22: 1.5 | CE22: 1.5 | CF22: 0.1 | CG22: ECY25-3995 | CH22: Accepted. Use Form 4400-190 | CI22: 1.5 | CJ22: 1.5 | CK22: 2025.0337 | CL22: W, D, WW, C | CM22: 1.5 | CN22: Yes | CO22: 1.5 | CP22: No | CQ22: Students will learn about the relationships between electricity and magnetism and how generators, DC motors, AC motors, relay switches, and other types of electrical equipment work. | CR22: 2023 ALL-007 Electrical & Motors | indigowatergroup.ispringmarket.com | CS22: Students will learn about the relationships between electricity and magnetism and how generators, DC motors, AC motors, relay switches, and other types of equipment. | CT22: Water and wastewater operators are expected to have some basic electrical troubleshooting skills, understand how motors and generators work, and know when to call in a qualified electrician. | CU22: Fundamental | CV22: All operators | CW22: Explain the relationship between electricity, magnetic fields, and conductors. | CX22: Understand the differences between single-phase and three-phase power. | CY22: Explain how different types of electric motors function. | CZ22: Identify the major components of different types of electric motors. | DA22: Explain why switching two leads on a three-phase motor can change the direction of rotation. | DC22: Describe how electromagnets, switches, contactors, starters, and transformers function. | DI22: No prerequistes are required for this course. | DL22: 6
B23: ALL-008 | C23: 380 | D23: Representative Sampling | E23: S. Innerebner, PhD, PE | F23: Indigo Water Group | G23: 8513 S. Newcombe Way, Littleton, CO 80127 | H23: sidney@indigowatergroup.com | I23: 303-489-9226 | J23: 2025 ALL-008 Sampling Final Quiz | K23: 2023 ALL-008 Sampling Final Quiz | L23: 2022 ALL-008 Sampling Final Quiz | M23: 1 | N23: 7 | O23: 1 | P23: 4 | Q23: 4 | R23: 4 | AA23: 21 | AB23: 92 | AC23: 102.5 | AD23: 1.5 | AH23: 0.15 | AI23: Core | AJ23: 25-05995-002 | AK23: 24-05995-002 | AL23: 23-05995-002 | AM23: 22-05995-002 | AN23: 0.15 | AO23: 0.15 | AP23: 0.15 | AQ23: 0.15 | AR23: 0.15 | AS23: 0.15 | AT23: See NV, WY, or WA | AU23: WWT23-3443-T02-G00 | AV23: 2 | BB23: 7980-25-3 | BC23: 2025-03-21 | BD23: All / All | BE23: Non-Process | BF23: 1.5 | BM23: 1.5 | BN23: 1.5 | BO23: 2.0 TC | BP23: 2 | BQ23: NV25-089 | BR23: 1.5 | BS23: WW | BT23: Not yet approved. | BU23: OEPA-B580290-OM | BV23: IWG-S1108-OM | BW23: IWG-S110825-OM | BX23: 1.5 | BY23: WW Only | BZ23: R23133 | CA23: 1.5 | CB23: 0 | CC23: 0 | CD23: 0 | CE23: 1.5 | CF23: 0.1 | CG23: ECY25-3996 | CH23: Accepted. Use Form 4400-190 | CI23: 1.5 | CJ23: 0 | CK23: 2025.0338 | CL23: W, D, WW, C | CM23: 1.5 | CN23: Yes | CO23: 1.5 | CP23: No | CQ23: This course covers the efficient and safe collection of representative samples. We will discuss characteristics and guidelines of representative samples, how to record samples, and various types of samples, as well as the use of autosamplers. Students will view both good and bad examples of samples taken. | CR23: 2023 ALL-008 Rep Sampling | indigowatergroup.ispringmarket.com | CS23: This course covers the efficient and safe collection of representative samples for water and wastewater systems. | CT23: Representative samples are required for process control and regulatory compliance in both water and wastewater systems regardless of size. | CU23: Fundamental | CV23: Wastewater | CW23: Explain what makes a sample representative and the assumptions behind sample collection. Determine whether to collect grab or composite samples based on data quality objectives. | CX23: Evaluate sampling locations to determine whether they are suitable for obtaining representative samples. | CY23: Utilize correct sampling protocol when collecting field samples to ensure they are representative and to avoid contamination. Select the correct sampling container and preservation method for each analysis. | CZ23: Correctly install and operate composite autosamplers. Evaluate influent wastewater analysis results as a way to determine if sampling results are typical for domestic wastewater. | DA23: Identify critical data quality objectives for taking different types of samples based on information desired and the level of QA/QC required. | DI23: No prerequistes are required for this course. | DL23: 5
B24: ALL-009 | C24: 381 | D24: Disinfection Byproducts | E24: S. Innerebner, PhD, PE | F24: Indigo Water Group | G24: 8513 S. Newcombe Way, Littleton, CO 80127 | H24: sidney@indigowatergroup.com | I24: 303-489-9226 | J24: 2025 ALL-009 DBPs Final Quiz | K24: 2023 ALL-009 DBPs Final Quiz | L24: 2022 ALL-009 DBPs Final Quiz | M24: 5 | N24: 4 | O24: 1 | P24: 4 | Q24: 1 | R24: 6 | AA24: 21 | AB24: 86 | AC24: 96.5 | AD24: 1.5 | AE24: Y | AH24: 0.15 | AI24: Core | AJ24: 25-05996-001 | AK24: 24-05996-001 | AL24: 23-05996-001 | AM24: 22-05996-001 | AN24: 0.15 | AO24: 0.15 | AP24: 0 | AQ24: 0 | AR24: 0.15 | AS24: 0 | AT24: See NV, WY, or WA | AU24: WWT23-3444-T02-G00 | AV24: 2 | BB24: 7981-25-3 | BC24: 2025-03-21 | BD24: All / All | BE24: Non-Process | BF24: 1.5 | BM24: 1.5 | BN24: 1.5 | BO24: 1.5 TC | BP24: 1.5 | BQ24: NV25-052 | BR24: 1.5 | BS24: WW | BT24: Not yet approved. | BU24: OEPA-B580289-OM | BV24: IWG-B1109-OM | BW24: IWG-B110925-OM | BX24: 1.5 | BY24: Both DW and WW | BZ24: R23132 | CA24: 1.5 | CB24: 1.5 | CC24: 1.5 | CD24: 0 | CE24: 1.5 | CF24: 0.1 | CG24: ECY25-3997 | CH24: Accepted. Use Form 4400-190 | CI24: 1.5 | CJ24: 1.5 | CK24: 2025.0339 | CL24: W, D, WW | CM24: 1.5 | CN24: Yes | CO24: 1.5 | CP24: No | CQ24: This presentation will define disinfection byproducts and discuss the regulations on their levels in drinking water and recycled water. We will look at what causes the formation of DBPs and ways to prevent their formation. Applicable to both water and wastewater systems. | CR24: 2023 ALL-009 Disinfect Byproducts | indigowatergroup.ispringmarket.com | CS24: This presentation defines disinfection byproducts and discusses the regulations on their levels in drinking water and recycled water. | CT24: Water systems must comply with the Disinfection Byproduct Rule. Wastewater systems are starting to be regulated for DBP formation as well. | CU24: Intermediate | CV24: All operators | CW24: Define disinfection byproducts and identify the two main groups - haloacetic acids (HAA5) and total trihalomethanes (TTHMs). | CX24: Understand the reasons and regulatory background for limiting HAA5 and TTHM in drinking and reclaimed water. | CY24: Explain the mechanisms behind disinfection byproduct formation. Apply knowledge of DBP formation and critical operating parameters to limit DBP formation during wastewater and drinking water treatment and in the distribution system. | CZ24: Interpret a breakpoint chlorination graph providing detail on the chemical species present at different chlorine to ammonia ratios. Explain how use of chloramines for disinfection limits DBP formation. | DI24: No prerequistes are required for this course. | DL24: 4
B25: ALL-010 | C25: 382 | D25: Chemical Handling (under construction) | E25: S. Innerebner, PhD, PE | F25: Indigo Water Group | G25: 8513 S. Newcombe Way, Littleton, CO 80127 | H25: sidney@indigowatergroup.com | I25: 303-489-9226 | J25: 2024 ALL-010 Chemical Handling Final Quiz | K25: 2023 ALL-010 Chemical Handling Final Quiz | L25: 2022 ALL-010 Chemical Handling Final Quiz | AA25: =SUM(M25:Z25) -> 0 | AC25: 0 | AL25: None for 2023 | AM25: None for 2022 | AV25: 0 | BM25: Not yet approved. | BN25: Not yet approved. | BO25: Not yet approved. | BP25: Not yet approved. | BQ25: Not Approved. | BS25: Not Approved. | BT25: Not yet approved. | BV25: IWG-B1110-OM | BW25: IWG-B111025-OM | BY25: Both DW and WW | BZ25: Not Approved. | CA25: 0 | CB25: 0 | CC25: 0 | CD25: 0 | CE25: 0 | CF25: 0 | CG25: Not yet approved. | CH25: Accepted. Use Form 4400-190 | CK25: 2025.034 | CL25: W, D, WW, C | CM25: 1.5 | CN25: Yes | CO25: 1.5 | CP25: No | DL25: 0
B26: ALL-011 | C26: 383 | D26: Backflow Preventers | E26: S. Innerebner, PhD, PE | F26: Indigo Water Group | G26: 8513 S. Newcombe Way, Littleton, CO 80127 | H26: sidney@indigowatergroup.com | I26: 303-489-9226 | J26: 2025 ALL-011 Backflow Preventers | K26: 2023 ALL-011 Backflow Preventers | M26: 4 | N26: 4 | O26: 4 | AA26: 12 | AB26: 32 | AC26: 38 | AD26: 0.5 | AE26: Y | AH26: 0 | AI26: Not approved. | AJ26: 25-08959-001 | AK26: 24-08959-001 | AL26: 23-08959-001 | AM26: 22-08959-001 | AN26: 0.05 | AO26: 0.05 | AP26: 0.05 | AQ26: 0.05 | AR26: 0.05 | AS26: 0.05 | AT26: See NV, WY, or WA | AU26: WWT23-3445-T00-G0.5 | AV26: 0 | AW26: 0.5 | BB26: 7982-25-3 | BC26: 2025-03-21 | BD26: All / All | BE26: Non-Process | BF26: 0.5 | BM26: 0.5 | BN26: 0.5 | BO26: 0.5 TC | BP26: 0.5 | BQ26: NV25-038 | BR26: 0.5 | BS26: WW | BT26: Not yet approved. | BV26: IWG-B1111-OM | BW26: IWG-B111125-OM | BX26: 0.5 | BY26: Both DW and WW | BZ26: Not Approved. | CA26: 0 | CB26: 0 | CC26: 0 | CD26: 0 | CE26: 0.5 | CF26: 0 | CG26: Not Approved. | CH26: Accepted. Use Form 4400-190 | CI26: 0.5 | CJ26: 0.5 | CK26: 2025.0341 | CL26: W, D, WW, C | CM26: 0.5 | CN26: Yes | CO26: 0.5 | CP26: No | CQ26: This very brief course is to introduce operators to the different types of backflow preventers, how they work, and where you might see them installed. After completing this course, you should be able to recognize the risks of backflow from back pressure and back siphonage. | CR26: 2023 ALL-011 Backflow Preventers | indigowatergroup.ispringmarket.com | CS26: This very brief course is to introduce operators to the different types of backflow preventers, how they work, and where you might see them installed. | CT26: Backflow preventers are critical for preventing back pressure and back siphonage events in distribution systems. All operators are expected to know how these devices operate, how to identify them in the field, and which devices should be used in different situations. | CU26: Fundamental | CV26: All operators | CW26: Define back pressure and back siphonage. | CX26: Explain how each type of backflow preventer works and describe their components. | CY26: List the five types of backflow preventers used to prevent cross-connections. | DI26: No prerequistes are required for this course. | DL26: 3
B27: SAF-001 | C27: 384 | D27: Trenching and Shoring | E27: Josh Baile, MBA, CWP | F27: Hydrolysis | G27: 17191 E. Ida Place, Centennial, CO 80115 | H27: sidney@indigowatergroup.com | I27: 303-551-5176 | J27: 2025 SAF-001 Trenching and Shoring Final Quiz | K27: 2023 SAF-001 Trenching and Shoring Final Quiz | L27: 2022 SAF-001 Trenching and Shoring Final Quiz | M27: 5 | N27: 5 | O27: 5 | P27: 2 | Q27: 4 | R27: 6 | S27: 5 | T27: 2 | U27: 14 | AA27: 48 | AB27: 115 | AC27: 139 | AD27: 2.5 | AH27: 0.25 | AI27: Core | AJ27: 25-05998-001 | AK27: 24-05998-001 | AL27: 23-05998-001 | AM27: 22-05998-001 | AN27: 0.25 | AO27: 0 | AP27: 0 | AQ27: 0 | AR27: 0.25 | AS27: 0.25 | AT27: See NV, WY, or WA | AU27: WWT23-3452-T00-G2.5 | AV27: 0 | AW27: 2.5 | BB27: 8004-25-3 | BC27: 2025-03-21 | BD27: All / All | BE27: Non-Process | BF27: 2.5 | BM27: 2.5 | BN27: 2.5 | BO27: 2.5 TC | BP27: 2.5 | BQ27: NV25-095 | BR27: 2.5 | BS27: S/S | BT27: Not yet approved. | BU27: OEPA-B579857-X | BV27: IWG-B2101-X | BW27: IWG-B210125-X | BX27: =AN27*10 -> 2.5 | BY27: Both DW and WW | BZ27: R23135 | CA27: 2.5 | CB27: 2.5 | CC27: 2.5 | CD27: 2.5 | CE27: 2.5 | CF27: 0.2 | CG27: ECY25-3999 | CH27: Accepted. Use Form 4400-190 | CI27: 2.5 | CJ27: 2.5 | CK27: 2025.0371 | CL27: W, D, WW, C | CM27: 2.5 | CN27: No | CO27: 0 | CP27: No | CQ27: This class demonstrates the need for a competent site supervisor to evaluate and take necessary steps to maintain a safe work site. Uses OSHA standards as a reference for shoring, benching, and safe operation within a construction trench. | CR27: 2023 SAF-001 Trenching & Shoring | indigowatergroup.ispringmarket.com | CS27: This class demonstrates the need for a competent site supervisor to evaluate and take necessary steps to maintain a safe work site. Uses OSHA standards as a reference. | CT27: Water and wastewater operators are often required to excavate pipelines and tanks to do maintenance. Proper trenching and shoring is required to avoid cave-ins, injury, and loss of life. | CU27: Fundamental | CV27: Safety | CW27: Understand the regulatory definition of a trench and when shoring and ladders are required. | CX27: Identify potential hazards associated with working in trenches and methods to mitigate them. | CY27: Evaluate conditions within trenches to identify boiling, heaving or squeezing, subsidence and bulging, tension cracks, toppling, and sloughing. | CZ27: Understand soil classifications. | DA27: Interpret results of standard field visual and tactile tests to identify potential hazards due to soil type. | DB27: Understand limits of allowable slopes and how soil types and other environmental conditions impact the allowable slope and potential for cave-in. | DC27: Discuss different types of soil shoring systems available and characteristics of each. | DI27: No prerequistes are required for this course. | DL27: 7
B28: SAF-002 | C28: 385 | D28: Confined Space Entry | E28: Dale Colerick, CWP | F28: City of Brush | G28: PO Box 363, Brush, CO 80723 | H28: dcolerick@brushcolo.com | I28: 970-842-5001 | J28: 2025 SAF-002 Confined Space Entry Final Quiz | K28: 2023 SAF-002 Confined Space Entry Final Quiz | L28: 2022 SAF-002 Confined Space Entry Final Quiz | M28: 1 | N28: 6 | O28: 1 | P28: 1 | Q28: 1 | R28: 1 | S28: 1 | T28: 1 | U28: 1 | V28: 9 | AA28: 23 | AB28: 81 | AC28: 92.5 | AD28: 1.5 | AH28: 0.15 | AI28: Core | AJ28: 25-05999-001 | AK28: 24-05999-001 | AL28: 23-05999-001 | AM28: 22-05999-001 | AN28: 0.15 | AO28: 0.15 | AP28: 0.15 | AQ28: 0.15 | AR28: 0.15 | AS28: 0.15 | AT28: See NV, WY, or WA | AU28: WWT23-3453-T00-G1 .5 | AV28: 0 | AW28: 1.5 | BB28: 8005-25-3 | BC28: 2025-03-21 | BD28: All / All | BE28: Non-Process | BF28: 1.5 | BM28: 1.5 | BN28: 1.5 | BO28: 1.5 TC | BP28: 1.5 | BQ28: NV25-049 | BR28: 1.5 | BS28: S/S | BT28: Not yet approved. | BU28: OEPA-B579842-X | BV28: IWG-B2102-X | BW28: IWG-B210225-X | BX28: =AN28*10 -> 1.5 | BY28: Both DW and WW | BZ28: R23134 | CA28: 1.5 | CB28: 1.5 | CC28: 1.5 | CD28: 1.5 | CE28: 1.5 | CF28: 0.1 | CG28: ECY25-4000 | CH28: Accepted. Use Form 4400-190 | CI28: 1.5 | CJ28: 1.5 | CK28: 2025.0372 | CL28: W, D, WW, C | CM28: 1.5 | CN28: No | CO28: 0 | CP28: No | CQ28: This course covers confined space entry requirements according to OSHA. Attendees will learn the difference between confined spaces and permit required confined spaces, when confined space entry permits are required, some of the hazards that may be encountered in a confined space, what constitutes a safe entry condition, and how to complete the entry permit and safely participate in a confined space entry. | CR28: 2023 SAF-002 Confined Space Entry | indigowatergroup.ispringmarket.com | CS28: This course covers confined space entry requirements according to OSHA. | CT28: Water and wastewater operators routinely perform confined space entries to inspect, clean, and maintain tanks and equipment. | CU28: Fundamental | CV28: Safety | CW28: Define a confined space and a permit required confined space. | CX28: Recite the permissible entry limits for oxygen, flammable gases, airborne dust, hydrogen sulfide, and carbon monoxide. Describe the potential hazards associated with each. Become familiar with a typical confined space entry permit. | CY28: Describe the goals of a confined space program. | CZ28: List the duties of the entrant, attendant, and supervisor. | DA28: Describe the procedure for a non-entry rescue. | DB28: Complete the entry permit and safely participate in a confined space entry. | DC28: Understand why workers don't always follow proper procedure when entering a confined space. Risk versus reward. | DI28: No prerequistes are required for this course. | DL28: 7
B29: SAF-003 | C29: 386 | D29: Lockout / Tagout | E29: Raphael Workman | F29: C&L Water Solutions | G29: 12249 Mead Way, Littleton, CO 80125 | H29: raphaelworkman@gmail.com | I29: 720-205-0646 | J29: 2025 SAF-003 LOTO Final Quiz | K29: 2023 SAF-003 LOTO Final Quiz | M29: 5 | N29: 6 | O29: 4 | P29: 4 | AA29: 19 | AB29: 52 | AC29: 61.5 | AD29: 1 | AE29: Y | AH29: 0.1 | AI29: Core | AJ29: 25-09451-001 | AK29: 24-09451-001 | AL29: 23-09451-001 | AM29: None for 2022 | AN29: 0.1 | AO29: 0 | AP29: 0 | AQ29: 0 | AR29: 0 | AS29: 0 | AT29: See NV, WY, or WA | AU29: WWT23-3497-T00-G01 | AV29: 0 | AW29: 1 | BB29: 8006-25-3 | BC29: 2025-03-21 | BD29: All / All | BE29: Non-Process | BF29: 1 | BM29: 1 | BN29: 1 | BO29: 1.0 TC | BP29: 1 | BQ29: NV25-077 | BR29: 1 | BS29: S/S | BT29: Not yet approved. | BV29: IWG-B2103-X | BW29: IWG-B210325-X | BX29: 1 | BY29: Both DW and WW | BZ29: R25209 | CA29: 1 | CB29: 1 | CC29: 1 | CD29: 1 | CE29: 1 | CF29: 0.1 | CG29: ECY25-4001 | CH29: Accepted. Use Form 4400-190 | CI29: 1 | CJ29: 1 | CK29: 2025.0373 | CL29: W, D, WW, C | CM29: 1 | CN29: No | CO29: 0 | CP29: No | CQ29: This one hour course walks attendees through OSHA requirements for lockout/tagout. | CR29: 2023 SAF-003 Lockout Tagout | indigowatergroup.ispringmarket.com | CS29: A one-hour course covering some aspects of equipment lockout / tagout. Approved for TUs in Colorado and CEUs in Ohio. We're working on approvals in other states. | CT29: Lockout/Tagout is required any time maintenance is performed on energized equipment. All operators should complete a lockout/tagout course at least annually. | CU29: Fundamental | CV29: Safety | CW29: Define lockout/tagout | CX29: Identify sources & types of hazardous energy | CY29: Recognize causes of injuries/fatalities | CZ29: Select maintenance & service examples | DA29: List lockout steps/procedures | DB29: Identify employer responsibility for training & safety as well as employee responsibilities | DC29: Recall when lockout/tagout applies | DD29: Identify types of lockout devices and tags | DE29: Distinguish between required lockout and/or tagout procedures | DI29: No prerequistes are required for this course. | DL29: 9
B30: SAF-004 | C30: 387 | D30: Demolition Saws | E30: Raphael Workman | F30: C&L Water Solutions | G30: 12249 Mead Way, Littleton, CO 80125 | H30: raphaelworkman@gmail.com | I30: 720-205-0646 | J30: 2025 SAF-004 Demo Saw Final Quiz | K30: 2023 SAF-004 Demo Saw Final Quiz | M30: 1 | N30: 1 | O30: 1 | P30: 1 | Q30: 1 | AA30: 5 | AB30: 31 | AC30: 33.5 | AD30: 0.5 | AE30: Y | AH30: 0 | AI30: Not approved. | AJ30: 25-09506-001 | AK30: 24-09506-001 | AL30: 23-09506-001 | AM30: None for 2022 | AN30: 0.05 | AO30: 0.05 | AP30: 0.05 | AQ30: 0.05 | AR30: 0.05 | AS30: 0.05 | AT30: See NV, WY, or WA | AU30: Not yet approved | AV30: 0 | AW30: 0 | BB30: 7589-9-23 | BC30: 2023-09-06 | BD30: All Operators | BE30: Non-Process | BF30: 0.5 | BM30: 0.5 | BN30: 0.5 | BO30: 0.5 TC | BP30: 0.5 | BQ30: NV25-051 | BR30: 0 | BS30: Not Approved. | BT30: Not yet approved. | BV30: IWG-B2104-X | BW30: IWG-B210425-X | BX30: 0.5 | BY30: Both DW and WW | BZ30: R25210 | CA30: 0 | CB30: 0 | CC30: 0.5 | CD30: 0.5 | CE30: 0.5 | CF30: 0 | CG30: Not Approved. | CH30: Accepted. Use Form 4400-190 | CI30: 0.2 | CJ30: 0.2 | CK30: 2025.0374 | CL30: W, D, WW, C | CM30: 0.5 | CN30: No | CO30: 0 | CP30: No | CQ30: Collection and distribution system operators use demolition saws to cut asphalt and pipe and to put bevels on pipe. This critical piece of equipment can be life threatening if not used correctly and safely. This course covers when a demolition saw may be used, the types of materials that may be cut using a demolition saw, maintenance of demolition saws, and basic troubleshooting. | CR30: 2023 SAF-004 Demo Saw Safety | indigowatergroup.ispringmarket.com | CS30: Collection and distribution system operators use demolition saws to cut asphalt and pipe and to put bevels on pipe. Operation, maintenance, and safety for demo saws. | CT30: Collection and distribution system operators use demolition saws to cut asphalt, cut pipe, bevel pipe, and many other tasks. Hand tools is one category in the need-to-know criteria for WPI (formerly ABC) certification exams. | CU30: Fundamental | CV30: Safety | CW30: Identify when use of a demolition saw is an appropriate use. | CX30: Safely use a demolition saw. | CY30: Maintain demolition saws. | CZ30: Troubleshoot common problems encountered with demolition saws. | DI30: No prerequistes are required for this course. | DL30: 4
D31: Collection Systems Topics
B32: COL-001 | C32: 388 | D32: Introduction to Collections Systems | E32: S. Innerebner, PhD, PE | F32: Indigo Water Group | G32: 8513 S. Newcombe Way, Littleton, CO 80127 | H32: sidney@indigowatergroup.com | I32: 303-489-9226 | J32: 2025 COL-001 Intro to Collections Final Quiz | K32: 2023 COL-001 Intro to Collections Final Quiz | L32: 2022 COL-001 Intro to Collections Final Quiz | M32: 1 | N32: 1 | O32: 5 | P32: 1 | Q32: 1 | R32: 1 | S32: 1 | T32: 10 | AA32: 21 | AB32: 80 | AC32: =AB32+(AA32*(30/60)) -> 90.5 | AD32: 1.5 | AE32: Y | AH32: 0.15 | AI32: Core | AJ32: 25-06000-002 | AK32: 24-06000-002 | AL32: 23-06000-002 | AM32: 22-06000-002 | AN32: 0.15 | AO32: 0 | AP32: 0 | AQ32: 0 | AR32: 0 | AS32: 0.15 | AT32: See NV, WY, or WA | AU32: WWT23-3446-T1.5-G00 | AV32: 1.5 | BB32: 7983-25-3 | BC32: 2025-03-21 | BD32: All WW, All IWW, All WWC Operators | BE32: Non-Process | BF32: 1.5 | BM32: 1.5 | BN32: 1.5 | BO32: 1.5 TC | BP32: 1.5 | BQ32: NV25-060 | BR32: 1.5 | BS32: WW | BT32: Not yet approved. | BU32: OEPA-S579861-OM | BV32: IWG-S3101-OM | BW32: IWG-S310125-OM | BX32: =AN32*10 -> 1.5 | BY32: WW Only | BZ32: R23136 | CA32: 0 | CB32: 0 | CC32: 0 | CD32: 1.5 | CE32: 1.5 | CF32: 0.1 | CG32: ECY25-4002 | CH32: Accepted. Use Form 4400-190 | CI32: 1 | CJ32: 0 | CK32: 2025.0342 | CL32: WW, C | CM32: 1.5 | CN32: Yes | CO32: 1.5 | CP32: No | CQ32: This class presents an overview of the collection system and discusses its primary components and types. Placement of interceptors along natural drainages, manhole placement, pump station function, and inflow and infiltration are discussed. Collection system architecture is compared to distribution system architecture. The following topics are also covered: minimum slopes for given pipe diameters, preferred d/D ratios, scour at peak hour flows, pipe materials, velocities in force mains, hydraulic gradeline, and causes of surcharging. | CR32: 2023 COL-001 Collection Systems | indigowatergroup.ispringmarket.com | CS32: This class presents an overview of the collection system and discusses its primary components and their functions. | CT32: Collection system operators must be familiar with basic concepts in collection system design so they can effectively operate and maintain them. | CU32: Fundamental | CV32: Collection Systems | CW32: Identify major components of collection systems and describe their function. | CX32: Distinguish between central and satellite treatment facilities. Define the three main types of collection systems: sanitary, storm, and combined. | CY32: Understand typical per capita wastewater generation rates and peak hour peaking factors. Estimate expected flow rates at defined points in the collection system given information about land usage. | CZ32: Calculate velocity for full and half-full pipes. Explain factors that complicate calculating velocity in gravity sewer lines and explain why field measurements are needed for greatest accuracy. Explain desired velocity ranges. | DA32: Define depth to diameter ratio and explain why pipes with a d/D of 0.8 discharge the same flow as pipes with a d/D of 1.0. | DB32: List the prohibited discharges and explain why they are prohibited. | DC32: Describe alternatives to gravity sewers including pressure sewers, STEP and STEG systems, and vacuum sewers. | DI32: No prerequistes are required for this course. | DL32: 7
B33: COL-002 | C33: 389 | D33: Collection System Inspection, Testing, and Cleaning - Part 1 | E33: S. Innerebner, PhD, PE | F33: Indigo Water Group | G33: 8513 S. Newcombe Way, Littleton, CO 80127 | H33: sidney@indigowatergroup.com | I33: 303-489-9226 | J33: 2025 COL-002 Collections Inspect Final Quiz | K33: 2023 COL-002 Collections Inspect Final Quiz | L33: 2022 COL-002 Collections Inspect Final Quiz | M33: 1 | N33: 1 | O33: 1 | P33: 1 | Q33: 1 | R33: 4 | S33: 1 | T33: 1 | U33: 1 | V33: 1 | W33: 1 | X33: 1 | Y33: 11 | AA33: 26 | AB33: 114 | AC33: 127 | AD33: 2.5 | AE33: Progress | AH33: 0.2 | AI33: Core | AJ33: 25-06001-002 | AK33: 24-06001-002 | AL33: 23-06001-002 | AM33: 22-06001-002 | AN33: 0.25 | AO33: 0 | AP33: 0 | AQ33: 0 | AR33: 0 | AS33: 0.25 | AT33: See NV, WY, or WA | AU33: WWT23-344 7-T2.5-G00 | AV33: 2.5 | BB33: 7984-25-3 | BC33: 2025-03-21 | BD33: All WW, All IWW, All WWC Operators | BE33: Non-Process | BF33: 2.5 | BM33: 2.5 | BN33: 2.5 | BO33: 2.5 TC | BP33: 2.5 | BQ33: NV25-046 | BR33: 2.5 | BS33: WW | BT33: Not yet approved. | BU33: OEPA-S579863-OM | BV33: IWG-S3102-OM | BW33: IWG-S310225-OM | BX33: 2.5 | BY33: WW Only | BZ33: R23138 | CA33: 0 | CB33: 0 | CC33: 0 | CD33: 2.5 | CE33: 2.5 | CF33: 0.2 | CG33: ECY25-4003 | CH33: Accepted. Use Form 4400-190 | CI33: 2.5 | CJ33: 0 | CK33: 2025.0343 | CL33: C | CM33: 2.5 | CN33: Yes | CO33: 2.5 | CP33: No | CQ33: This course (in 2 parts) introduces participants to the purposes and methods of collection system inspection, testing, and cleaning including: closed circuit television inspections, smoke testing, dye testing, sewer balling, jetting, rodding, flushing, and bucketmachines. The importance of maintaining good system records and maps of the collection system is emphasized. Collection system modeling and GIS concepts are introduced as they relate to maintenance records. Participants will learn to identify problems in existing pipelines, locate storm sewer connections to the sanitary sewer, estimate inflow and infiltration, and identify deposits of oil and grease. Participants will view actual CCTV footage. | CR33: 2023 COL-002 Collection Inspect 1 | indigowatergroup.ispringmarket.com | CS33: This course (in 2 parts) introduces participants to the purposes and methods of collection system inspection, testing, and cleaning. | CT33: Collection system operators must be able to identify potential issues with the collection system so they can effectively operate and maintain it. | CU33: Fundamental | CV33: Collection Systems | CW33: Recognize the importance of accurate system maps as part of asset management. | CX33: Differentiate between sources of inflow and sources of infiltration | CY33: Discuss causes of surcharging and how I&I can cause surcharging and sanitary sewer overflows. | CZ33: Identify potential sewer and manhole damage from surface evidence such as cracked pavement. | DA33: Identify and assess bellies, sags, offset joints, and cracks in collection system pipes. | DB33: Identify and assess protruding taps, horizontal bores through pipes, and roots as three types of blockages in sewer pipes. | DC33: Describe the components of a successful grease control program. | DD33: Complete a manhole inspection form and list possible causes of grit and/or water accumulation in manholes. | DE33: Assess potential for sewer damage and presence of cross-connections with smoke testing. | DF33: Understand the principals behind dye testing and its use in proving a positive connection. | DI33: No prerequistes are required for this course. | DL33: 10
B34: COL-003 | C34: 390 | D34: Collection System Inspection, Testing, and Cleaning - Part 2 | E34: S. Innerebner, PhD, PE | F34: Indigo Water Group | G34: 8513 S. Newcombe Way, Littleton, CO 80127 | H34: sidney@indigowatergroup.com | I34: 303-489-9226 | J34: 2025 COL-003 Collections Clean Final Quiz | K34: 2023 COL-003 Collections Clean Final Quiz | L34: 2022 COL-003 Collections Clean Final Quiz | M34: 1 | N34: 1 | O34: 1 | P34: 1 | Q34: 6 | R34: 1 | S34: 1 | T34: 1 | U34: 1 | V34: 1 | W34: 1 | X34: 9 | AA34: 25 | AB34: 112 | AC34: 124.5 | AD34: 2.5 | AE34: Progress | AH34: 0.25 | AI34: Core | AJ34: 25-06002-002 | AK34: 24-06002-002 | AL34: 23-06002-002 | AM34: 22-06002-002 | AN34: 0.25 | AO34: 0 | AP34: 0 | AQ34: 0 | AR34: 0 | AS34: 0.25 | AT34: See NV, WY, or WA | AU34: WWT23-3448-T2.5-G00 | AV34: 2.5 | BB34: 7985-25-3 | BC34: 2025-03-21 | BD34: All WW, All IWW, All WWC Operators | BE34: Non-Process | BF34: 2.5 | BM34: 2.5 | BN34: 2.5 | BO34: 2.5 TC | BP34: 2.5 | BQ34: NV25-047 | BR34: 2.5 | BS34: WW | BT34: Not yet approved. | BU34: OEPA-S579864-OM | BV34: IWG-S3103-OM | BW34: IWG-S310325-OM | BX34: 2.5 | BY34: WW Only | BZ34: R23139 | CA34: 0 | CB34: 0 | CC34: 0 | CD34: 2.5 | CE34: 2.5 | CF34: 0.2 | CG34: ECY25-4004 | CH34: Accepted. Use Form 4400-190 | CI34: 2.5 | CJ34: 0 | CK34: 2025.0344 | CL34: C | CM34: 2.5 | CN34: Yes | CO34: 2.5 | CP34: No | CQ34: This course (in 2 parts) introduces participants to the purposes and methods of collection system inspection, testing, and cleaning including: closed circuit television inspections, smoke testing, dye testing, sewer balling, jetting, rodding, flushing, and bucketmachines. The importance of maintaining good system records and maps of the collection system is emphasized. Collection system modeling and GIS concepts are introduced as they relate to maintenance records. Participants will learn to identify problems in existing pipelines, locate storm sewer connections to the sanitary sewer, estimate inflow and infiltration, and identify deposits of oil and grease. Participants will view actual CCTV footage. | CR34: 2023 COL-003 Collection Inspect 2 | indigowatergroup.ispringmarket.com | CS34: This course (in 2 parts) introduces participants to the purposes and methods of collection system inspection, testing, and cleaning. | CT34: Collection system operators must be able to identify potential issues with the collection system so they can effectively operate and maintain it. | CU34: Fundamental | CV34: Collection Systems | CW34: Evaluate footage from CCTV sewer line inspections. Code and rate various types of deficiencies depending on severity. List steps for start up and shut down of CCTV cameras. | CX34: Explain how hydraulic jetting of sewers is performed with an emphasis of selecting the correct jet head for the task at hand. | CY34: Explain the basic function of bucket machines and list their advantages and disadvantages. | CZ34: Explain the basic function of rodding machines and identify which types of blockages are best suited to rodding machines. | DA34: Discuss the basic principles behind sewer balling and the potential for flooding service lines. | DI34: No prerequistes are required for this course. | DL34: 5
B35: COL-004 | C35: 391 | D35: Lift Stations | E35: S. Innerebner, PhD, PE | F35: Indigo Water Group | G35: 8513 S. Newcombe Way, Littleton, CO 80127 | H35: sidney@indigowatergroup.com | I35: 303-489-9226 | J35: 2025 COL-004 Lift Stations Final Quiz | K35: 2023 COL-004 Lift Stations Final Quiz | L35: 2022 COL-004 Lift Stations Final Quiz | M35: 2 | N35: 4 | O35: 4 | P35: 4 | Q35: 1 | R35: 4 | S35: 4 | T35: 2 | U35: 4 | AA35: 29 | AB35: 122 | AC35: 136.5 | AD35: 2 | AE35: Y | AH35: 0.2 | AI35: Core | AJ35: 25-06003-001 | AK35: 24-06003-001 | AL35: 23-06003-001 | AM35: 22-06003-001 | AN35: 0.2 | AO35: 0 | AP35: 0.2 | AQ35: 0.2 | AR35: 0 | AS35: 0.2 | AT35: See NV, WY, or WA | AU35: WWT23-3449-T02-G00 | AV35: 2 | BB35: 7986-25-3 | BC35: 2025-03-21 | BD35: All WW, All IWW, All WWC Operators | BE35: Non-Process | BF35: 2 | BM35: 2 | BN35: 2 | BO35: 2.0 TC | BP35: 2 | BQ35: NV25-076 | BR35: 2 | BS35: WW | BT35: Not yet approved. | BU35: OEPA-S579862-OM | BV35: IWG-S3104-OM | BW35: IWG-S310425-OM | BX35: 2 | BY35: WW Only | BZ35: R23137 | CA35: 0 | CB35: 0 | CC35: 0 | CD35: 2 | CE35: 2 | CF35: 0.2 | CG35: ECY25-4005 | CH35: Accepted. Use Form 4400-190 | CI35: 2 | CJ35: 0 | CK35: 2025.0345 | CL35: WW, C | CM35: 2 | CN35: Yes | CO35: 2 | CP35: No | CQ35: This presentation discusses dry pit and wet pit lift stations, pump arrangement, level indicator equipment, and basic lift station operation and maintenance. It includes a brief discussion of confined space entry and the safety hazards that may be present in lift stations. | CR35: 2023 COL-004 Lift Stations | indigowatergroup.ispringmarket.com | CS35: This presentation discusses dry pit and wet pit lift stations, pump arrangement, level indicator equipment, and basic lift station operation and maintenance. | CT35: Lift stations and pump stations have many similarities in both configuration and operation. Broadly applicable to water and wastewater systems. Operators use, inspect, and troubleshoot lift stations as part of daily duties. | CU35: Intermediate | CV35: Wastewater and Collection Systems | CW35: Describe the major components of dry pt and wet pit lift stations including four different methods of level control. | CX35: Identify different types of valves that may be present in a typical lift station and give the purpose of each. | CY35: List routine maintenance tasks and their recommended frequency. | CZ35: Understand why the flow output from two pumps discharging into the same force main will be slightly less than the sum of the flows when each pump is operating independently. | DI35: No prerequistes are required for this course. | DL35: 4
B36: COL-005 | C36: 392 | D36: Pretreatment and Pollution Prevention | E36: S. Innerebner, PhD, PE | F36: Indigo Water Group | G36: 8513 S. Newcombe Way, Littleton, CO 80127 | H36: sidney@indigowatergroup.com | I36: 303-489-9226 | J36: 2025 COL-005 Pretreatment Final Quiz | K36: 2023 COL-005 Pretreatment Final Quiz | L36: 2022 COL-005 Pretreatment Final Quiz | M36: 1 | N36: 4 | O36: 1 | P36: 4 | Q36: 5 | R36: 1 | S36: 4 | T36: 1 | U36: 1 | V36: 9 | AA36: 31 | AB36: 150 | AC36: 165.5 | AD36: 3 | AH36: 0.3 | AI36: Core | AJ36: 25-06004-001 | AK36: 24-06004-001 | AL36: 23-06004-001 | AM36: 22-06004-001 | AN36: 0.3 | AO36: 0.3 | AP36: 0.3 | AQ36: 0.3 | AR36: 0 | AS36: 0 | AT36: See NV, WY, or WA | AU36: WWT23-3450-T03-G00 | AV36: 3 | BB36: 7987-25-3 | BC36: 2025-03-21 | BD36: All / All | BE36: Non-Process | BF36: 3 | BM36: 3 | BN36: 3 | BO36: 3.0 TC | BP36: 3 | BQ36: NV25-086 | BR36: 3 | BS36: WW | BT36: Not yet approved. | BU36: OEPA-S579866-OM | BV36: IWG-S3105-OM | BW36: IWG-S310525-OM | BX36: 3 | BY36: WW Only | BZ36: R23140 | CA36: 3 | CB36: 0 | CC36: 0 | CD36: 3 | CE36: 3 | CF36: 0.3 | CG36: ECY25-4006 | CH36: Accepted. Use Form 4400-190 | CI36: 3 | CJ36: 0 | CK36: 2025.0346 | CL36: WW, C | CM36: 3 | CN36: Yes | CO36: 3 | CP36: No | CQ36: This course discusses the industrial pretreatment and pollution prevention programs. It focuses on how effluent limits for indirect dischargers are determined. The impact of various types of discharges on the collection system, especially FOG, will be discussed. Topics to be covered include: legal authority and the sewer ordinance, setting local limits, categorical limits, types of users connecting to the collection system, and pollution prevention at the source. The pollution prevention portion of the course focusses on how industrial users can decrease water usage and wastewater strength by implementing simple changes on the factory floor. The use of screens, water audits, and other methods is discussed. | CR36: 2023 COL-005 Pretreatment and P2 | indigowatergroup.ispringmarket.com | CS36: This course discusses the industrial pretreatment and pollution prevention programs. | CT36: Operators must understand the types of industrial wastes that may be discharged to the collection system and their legal authority to control those discharges so they don't cause pass through or interference. | CU36: Advanced | CV36: Wastewater and Collection Systems | CW36: Understand that municipal wastewater plants have three types of capacity: hydraulic, organic, and solids handling and that each type of capacity must be protected from industrial discharges. | CX36: Understand the potential impacts of industrial wastestreams on municipal wastewater treatment plants and the need for a pretreatment program. | CY36: Categorize dischargers as significant, categorical, or non-significant. | CZ36: Identify when a WWTP might be required to have a formal pretreatment program. | DA36: Explain the concept of local limits and give two specific examples of why a local limit may be needed. | DB36: Discuss the potential for prohibited discharges, pass-through, and interference from industrial discharges. | DC36: Discuss enforcement mechanisms available when an industrial user is in significant non-compliance. | DD36: Describe the voluntary pollution prevention program and compare and contrast it to the Federal Pretreatment Program giving pros and cons for each. | DI36: No prerequistes are required for this course. | DL36: 8
B37: COL-006 | C37: 393 | D37: Manholes | E37: S. Innerebner, PhD, PE | F37: Indigo Water Group | G37: 8513 S. Newcombe Way, Littleton, CO 80127 | H37: sidney@indigowatergroup.com | I37: 303-489-9226 | J37: 2025 COL-006 Manholes Final Quiz | K37: 2023 COL-006 Manholes Final Quiz | L37: 2022 COL-006 Manholes Final Quiz | M37: Q4 | N37: Q5 | O37: Q4 | P37: Q4 | Q37: Q4 | R37: Q4 | AA37: 25 | AB37: 58 | AC37: 70.5 | AD37: 1 | AE37: Y | AF37: Y | AG37: Y | AH37: 0.1 | AI37: Core | AJ37: 25-06005-001 | AK37: 24-06005-001 | AL37: 23-06005-001 | AM37: 22-06005-001 | AN37: 0.1 | AO37: 0 | AP37: 0 | AQ37: 0 | AR37: 0 | AS37: 0.1 | AT37: See NV, WY, or WA | AU37: WWT23-3451-T1.5-G00 | AV37: 1.5 | BB37: 7988-25-3 | BC37: 2025-03-21 | BD37: All / All | BE37: Non-Process | BF37: 1 | BM37: 1 | BN37: 1 | BO37: 1.0 TC | BP37: 1 | BQ37: NV25-079 | BR37: 1 | BS37: WW | BT37: Not yet approved. | BU37: OEPA-S88119931-OM | BV37: IWG-S3106-OM | BW37: IWG-S310625-OM | BX37: 1 | BY37: WW Only | BZ37: R23141 | CA37: 0 | CB37: 0 | CC37: 0 | CD37: 1 | CE37: 1 | CF37: 0.1 | CG37: ECY25-4007 | CH37: Accepted. Use Form 4400-190 | CI37: 1 | CJ37: 0 | CK37: 2025.0347 | CL37: WW, C | CM37: 1 | CN37: Yes | CO37: 1 | CP37: No | CQ37: Manholes provide access points for maintenance, flow monitoring, chemical addition, bypass pumping and more. Even a small municipality will have several hundred manholes spaced at a maximum of 300 to 500 foot apart. Like most of the public, we don't give them much thought even though they are critical parts of our collection systems. Manhole basics includes typical terminology, manhole construction, manhole inspection and maintenance, and even includes some handy tips on how to find lost manholes and preventing manholes from getting lost in the first place. Useful information for anyone pursuing their collection systems certification. | CR37: 2023 COL-006 Manholes | indigowatergroup.ispringmarket.com | CS37: Manholes provide access points for maintenance, flow monitoring, chemical addition, bypass pumping and more. Learn all about them in this class. | CT37: Manhole location, cleaning, and maintenance is routinely performed by wastewater and collection system operators. | CU37: Intermediate | CV37: Collection Systems | CW37: Identify all of the different components of a manhole; bench, riser, base, etc. | CX37: Locate known and lost manholes and perform a basic inspection. | CY37: List four items of concern in a manhole interior. | CZ37: Explain why hydrogen sulfide is generated in sewers and describe at least three methods for mitigating its formation or controlling gas phase concentrations. | DA37: Describe three different methods for mitigating inflow and infiltration in manholes. Match methods to the type of inflow. | DI37: No prerequistes are required for this course. | DL37: 5
D38: Wastewater Treatment Topics
B39: WWT-001 | C39: 394 | D39: Introduction to Wastewater: A Plant Overview | E39: S. Innerebner, PhD, PE | F39: Indigo Water Group | G39: 8513 S. Newcombe Way, Littleton, CO 80127 | H39: sidney@indigowatergroup.com | I39: 303-489-9226 | J39: 2025 WWT-001 Intro to WW Final Quiz | K39: 2023 WWT-001 Intro to WW Final Quiz | L39: 2022 WWT-001 Intro to WW Final Quiz | M39: 1 | N39: 4 | O39: 1 | P39: 1 | Q39: 1 | R39: 4 | S39: 4 | T39: 1 | U39: 10 | AA39: 27 | AB39: 94 | AC39: 107.5 | AD39: 2 | AH39: 0.2 | AI39: Core | AJ39: 25-06006-001 | AK39: 24-06006-001 | AL39: 23-06006-001 | AM39: 22-06006-001 | AN39: 0.2 | AO39: 0 | AP39: 0.2 | AQ39: 0.2 | AR39: 0 | AS39: 0 | AT39: See NV, WY, or WA | AU39: WWT23-3462-T02-G00 | AV39: 2 | BB39: 8016-25-3 | BC39: 2025-03-21 | BD39: WW and Industrial | BE39: Non-Process | BF39: 2 | BM39: 2 | BN39: 2 | BO39: 2.0 TC | BP39: 2 | BQ39: NV25-062 | BR39: 2 | BS39: WW | BT39: Not yet approved. | BU39: OEPA-S579867-OM | BV39: IWG-S4101-OM | BW39: IWG-S410125-OM | BX39: =AN39*10 -> 2 | BY39: WW Only | BZ39: R23142 | CA39: 2 | CB39: 0 | CC39: 0 | CD39: 0 | CE39: 2 | CF39: 0.2 | CG39: ECY25-4008 | CH39: Accepted. Use Form 4400-190 | CI39: 2 | CJ39: 0 | CK39: 2025.0387 | CL39: WW, C | CM39: 2 | CN39: Yes | CO39: 2 | CP39: No | CQ39: This presentation introduces operators to wastewater treatment starting with a "typical" treatment plant consisting of preliminary, primary, secondary, and tertiary treatment followed by disinfection. Alternatives for each unit process will be discussed such as activated sludge or lagoons or trickling filters for the secondary process. Solids handling, thickening, digestion, and dewatering will be introduced and the importance of recycle streams emphasized. | CR39: 2023 WWT-001 Wastewater Overview | indigowatergroup.ispringmarket.com | CS39: This presentation introduces operators to wastewater treatment by tracing the flow of water through a facility followed by tracing the path of solids handling. | CT39: Introduces operators to different unit processes present in wastewater treatment plants and the interactions that occur between the liquid and solids streams. All wastewater operators should know this information. | CU39: Fundamental | CV39: Wastewater | CW39: Classify bacteria according to their preferred oxygen and carbon sources: hetertroph vs autotroph and obligate aerobe vs facultative vs anaerobic. Understand the goals of secondary treatment. | CX39: Understand the goals of preliminary and primary treatment. Identify major pieces of equipment and unit processes associated with preliminary and primary treatment. | CY39: List the goals of solids digestion: reduce volume of sludge for disposal and reduce the number of pathogens. | CZ39: Understand the purpose of dewatering and list three types of equipment that may used for dewatering. | DA39: Describe the three main types of secondary treatment systems: lagoons, fixed film, and activated sludge. Identify the major unit processes and pieces of equipment associated with each. | DB39: Understand that activated sludge systems come in many different varieties, but they are all based on the same fundamental principals of biological treatment. | DC39: Distinguish between disinfection and sterilization. List the two major types of disinfection used in wastewater treatment. | DI39: No prerequistes are required for this course. | DL39: 7
B40: WWT-002 | C40: 395 | D40: What's In My Wastewater: Definitions and Typical Ratios | E40: S. Innerebner, PhD, PE | F40: Indigo Water Group | G40: 8513 S. Newcombe Way, Littleton, CO 80127 | H40: sidney@indigowatergroup.com | I40: 303-489-9226 | J40: 2025 WWT-002 WW Characteristics Final Quiz | K40: 2023 WWT-002 WW Characteristics Final Quiz | L40: 2022 WWT-002 WW Characteristics Final Quiz | M40: 1 | N40: 1 | O40: 1 | P40: 1 | Q40: 2 | R40: 1 | S40: 1 | T40: 10 | AA40: 18 | AB40: 78 | AC40: 87 | AD40: 1.5 | AH40: 0.15 | AI40: Core | AJ40: 25-06007-001 | AK40: 24-06007-001 | AL40: 23-06007-001 | AM40: 22-06007-001 | AN40: 0.15 | AO40: 0 | AP40: 0.15 | AQ40: 0.15 | AR40: 0 | AS40: 0 | AT40: See NV, WY, or WA | AU40: WWT23-3463-T1.5-G00 | AV40: 1.5 | BB40: 8017-25-3 | BC40: 2025-03-21 | BD40: All WW, All IWW, All WWC Operators | BE40: Non-Process | BF40: 1.5 | BM40: 1.5 | BN40: 1.5 | BO40: 1.5 TC | BP40: 1.5 | BQ40: NV25-102 | BR40: 1.5 | BS40: WW | BT40: Not yet approved. | BU40: OEPA-S579868-OM | BV40: IWG-S4102-OM | BW40: IWG-S410225-OM | BX40: =AN40*10 -> 1.5 | BY40: WW Only | BZ40: R23143 | CA40: 1.5 | CB40: 0 | CC40: 0 | CD40: 1.5 | CE40: 1.5 | CF40: 0.1 | CG40: ECY25-4009 | CH40: Accepted. Use Form 4400-190 | CI40: 1.5 | CJ40: 0 | CK40: 2025.0388 | CL40: WW | CM40: 1.5 | CN40: Yes | CO40: 1.5 | CP40: No | CQ40: Domestic wastewater is fairly consistent in composition from treatment plant to treatment plant. Unless there are large industrial contributions, domestic wastewater can be expected to adhere to some basic principles. For example, influent BOD should be between 80 and 120% of the influent TSS. Influent TKN should be around 10 or 20 percent of the influent BOD. We'll look at why these ratios hold true and how they can be used to determine if laboratory data is internally consistent. Knowing typical wastewater characteristics can be extraordinarily helpful in determining whether sample results are representative. Look at your lab data in a whole new light! | CR40: 2023 WWT-002 Wastewater Components| indigowatergroup.ispringmarket.com | CS40: Explores components of wastewater. Gives typical ratios between components like biochemical oxygen demand (BOD) and total suspended solids (TSS) and others. | CT40: Wastewater operators can't effectively treat wastewater unless they understand what is in their wastewater and how each fraction is processed during treatment. Being familiar with typical ratios for domestic wastewater can help operators identify poor sampling practices and non-representative samples. | CU40: Intermediate | CV40: Wastewater | CW40: Utilize per capita generation rates to estimate influent concentrations for different parameters. Understand that when solids leave in the final effluent, BOD, nitrogen, and phosphorus are also leaving. | CX40: Calculate an estimated average daily flow and peak hour flow for a service area given population served. | CY40: Explain the differences between BOD, cBOD, NOD, and COD. | CZ40: Determine whether or not a wastewater is more or less likely to have an industrial component based on the COD to cBOD ratio. | DA40: Understand that solids are classified by their size (particulate versus soluble) and whether or not they are volatile. | DB40: Analyze influent and effluent data for internal consistency using typical ratios of COD to cBOD to TSS. Identify the likely out-of-range component. | DC40: Given laboratory results in mg/L of ammonia, nitrate, or nitrite, convert each so they are expressed as N (e.g. NH3-N). Convert between PO4= and PO4 as P. | DI40: No prerequistes are required for this course. | DL40: 7
B41: WWT-003 | C41: 396 | D41: Preliminary Treatment | E41: S. Innerebner, PhD, PE | F41: Indigo Water Group | G41: 8513 S. Newcombe Way, Littleton, CO 80127 | H41: sidney@indigowatergroup.com | I41: 303-489-9226 | J41: 2025 WWT-003 Preliminary Treatment Final Quiz | K41: 2023 WWT-003 Preliminary Treatment Final Quiz | L41: 2022 WWT-003 Preliminary Treatment Final Quiz | M41: Q4 | N41: Q4 | O41: Q6 | P41: Q4 | AA41: 18 | AB41: 67 | AC41: 76 | AD41: 1 | AE41: Y | AF41: Y | AG41: Y | AH41: 0.1 | AI41: Core | AJ41: 25-09381-001 | AK41: 24-09381-001 | AL41: 23-09381-001 | AM41: None for 2022 | AN41: 0.1 | AO41: 0.05 | AP41: 0.1 | AQ41: 0.1 | AR41: 0 | AS41: 0.05 | AT41: See NV, WY, or WA | AU41: WWT23-3498-T01-G00 | AV41: 1 | BB41: 8018-25-3 | BC41: 2025-03-21 | BD41: WW and Industrial | BE41: Non-Process | BF41: 1 | BM41: 1 | BN41: 1 | BO41: 1.0 TC | BP41: 1 | BQ41: NV25-085 | BR41: 1 | BS41: WW | BT41: Not yet approved. | BV41: IWG-S4103-OM | BW41: IWG-S410325-OM | BX41: 1 | BY41: WW Only | BZ41: R25211 | CA41: 1 | CB41: 0 | CC41: 0 | CD41: 0 | CE41: 1 | CF41: 0.1 | CG41: ECY25-4010 | CH41: Accepted. Use Form 4400-190 | CI41: 1 | CJ41: 0 | CK41: 2025.0389 | CL41: WW | CM41: 1 | CN41: Yes | CO41: 1 | CP41: No | CQ41: This course covers preliminary treatment in wastewater treatment plants including screening and grit removal. Screen types discussed include trash racks, traditional mechanical screens, catenary screens, band screens, step screens, and others. Grit removal includes detritus tanks, velocity control tanks, and vortex type. | CR41: 2023 WWT-003 Preliminary Treatmen | indigowatergroup.ispringmarket.com | CS41: This course covers preliminary treatment in wastewater treatment plants including screening and grit removal. | CT41: Preliminary treatment includes screening and grit removal. Headworks may also include flow equalization and flow measurement. Wastewater operators must understand how these processes work and their importance in keeping debris from passing further into the treatment process where it can damage equipment. | CU41: Fundamental | CV41: Wastewater | CW41: List characteristics of grit and screenings. | CX41: Explain why grit and screenings should be removed. | CY41: Identify different screen types and give characteristics of each. | CZ41: Compare and contrast trash racks, bar screens, and fine screens. | DA41: Identify different types of grit basins and explain how they work. | DB41: Explain how velocity is used to separate grit from organic material. | DC41: Explain why washing is used to recover organic material from screenings and grit. | DI41: No prerequistes are required for this course. | DL41: 7
B42: WWT-004 | C42: 397 | D42: Primary Treatment | E42: S. Innerebner, PhD, PE | F42: Indigo Water Group | G42: 8513 S. Newcombe Way, Littleton, CO 80127 | H42: sidney@indigowatergroup.com | I42: 303-489-9226 | J42: 2025 WWT-004 Primary Treatment Final Quiz | K42: 2023 WWT-004 Primary Treatment Final Quiz | L42: 2022 WWT-004 Primary Treatment Final Quiz | M42: Q5 | N42: Q5 | O42: Q4 | P42: Q4 | Q42: Q4 | R42: Q5 | S42: Q4 | T42: Q8 | AA42: 39 | AB42: =60+54 -> 114 | AC42: 133.5 | AD42: 2 | AE42: Y | AF42: Y | AG42: Y | AJ42: 25-09382-001 | AK42: 24-09382-001 | AL42: 23-09382-001 | AM42: None for 2022 | AN42: 0.2 | AO42: 0 | AP42: 0.2 | AQ42: 0.2 | AR42: 0 | AS42: 0 | AT42: See NV, WY, or WA | AU42: Not yet approved | AV42: 0 | BB42: 8019-25-3 | BC42: 2025-03-21 | BD42: WW and Industrial | BE42: Process | BF42: 2 | BM42: 2 | BN42: 2 | BO42: 2.0 TC | BP42: 2 | BQ42: NV25-087 | BR42: 2 | BS42: WW | BT42: Not yet approved. | BV42: IWG-S4104-OM | BW42: IWG-S410425-OM | BX42: 2 | BY42: WW Only | BZ42: R25212 | CA42: 2 | CB42: 0 | CC42: 0 | CD42: 0 | CE42: 2 | CF42: 0.2 | CG42: ECY25-4011 | CH42: Accepted. Use Form 4400-190 | CI42: 2 | CJ42: 0 | CK42: 2025.039 | CL42: WW | CM42: 2 | CN42: Yes | CO42: 2 | CP42: No | CQ42: This course walks attendees through the components of rectangular and circular primary clarifiers. The course begins with operational theory and explains why primary clarifiers typically remove about 30% of influent BOD and about 50% of influent TSS. Components and their functions are discussed for each type of clarifier with plenty of pictures to illustrate each component. The course closes with process control tests and recommended maintenance. | CR42: 2024 WWT-004 Primary Treatment | indigowatergroup.ispringmarket.com | CS42: Everything you ever wanted to know about primary clarifiers: form, function, operation, design parameters, and troubleshooting. | CT42: Wastewater operators must understand the purpose and function of primary clarifiers as well as their components so they can operate and troubleshoot them effectively. | CU42: Fundamental | CV42: Wastewater | CW42: Understand the purpose of primary treatment and when it should be incorporated into a wastewater treatment process. | CX42: Explain how influent wastewater characteristics affect primary clarifier performance. | CY42: List design parameters for primary clarifiers. | CZ42: List the components of circular and rectangular clarifiers and give the purpose of each. | DA42: Collect and interpret process control data for primary clarifiers. | DB42: Compare and contrast rectangular versus circular primary clarifiers. | DI42: No prerequistes are required for this course. | DL42: 6
B43: WWT-005 | C43: 398 | D43: Biological Treatment Basics | E43: S. Innerebner, PhD, PE | F43: Indigo Water Group | G43: 8513 S. Newcombe Way, Littleton, CO 80127 | H43: sidney@indigowatergroup.com | I43: 303-489-9226 | J43: 2025 WWT-005 Biological Treatment Basics Final Quiz | K43: 2023 WWT-005 Biological Treatment Basics Final Quiz | L43: 2022 WWT-005 Biological Treatment Basics Final Quiz | M43: Q4 | N43: Q4 | O43: Q8 | P43: Q7 | Q43: Q6 | R43: Q4 | S43: Q6 | AA43: 39 | AB43: 66 | AC43: 85.5 | AD43: 1.5 | AE43: Y | AF43: Y | AG43: Y | AH43: 0.15 | AI43: Core | AJ43: 25-07222-001 | AK43: 24-07222-001 | AL43: 23-07222-001 | AM43: 22-07222-001 | AN43: 0.15 | AO43: 0 | AP43: 0.15 | AQ43: 0.15 | AR43: 0 | AS43: 0 | AT43: See NV, WY, or WA | AU43: WWT23-3464-T1.5-G00 | AV43: 1.5 | BB43: 8020-25-3 | BC43: 2025-03-21 | BD43: All WW Operators | BE43: Process | BF43: 1.5 | BM43: 1.5 | BN43: 1.5 | BO43: 1.5 TC | BP43: 1.5 | BQ43: NV25-042 | BR43: 1.5 | BS43: WW | BT43: Not yet approved. | BU43: OEPA-S88637619-OM | BV43: IWG-S4105-OM | BW43: IWG-S410525-OM | BX43: =AN43*10 -> 1.5 | BY43: WW Only | BZ43: R23144 | CA43: 1.5 | CB43: 0 | CC43: 0 | CD43: 0 | CE43: 1.5 | CF43: 0.1 | CG43: ECY25-4012 | CH43: Accepted. Use Form 4400-190 | CI43: 1.5 | CJ43: 0 | CK43: 2025.0391 | CL43: WW | CM43: 1.5 | CN43: Yes | CO43: 1.5 | CP43: No | CQ43: Fundamentals basics introduces operators to different groups of microorganisms (aerobic, facultative, anaerobic, nitrifying, filamentous, and others) by comparing them to simple combustion motors. The growth requirements and waste products for each group are presented. The course concludes with a quick look at kinetics and the concept of limiting reactants. | CR43: 2023 WWT-005 Biological Treatment | indigowatergroup.ispringmarket.com | CS43: Fundamentals basics introduces operators to different groups of microorganisms by comparing them to combustion engines. Defines terms used to classify microorganisms. | CT43: Different groups of bacteria are responsible for BOD, ammonia, nitrate, and phosphorus removal from wastewater. Understanding the growth requirements for each group of bacteria are critical to successful operation of a biological wastewater treatment plant. | CU43: Fundamental | CV43: Wastewater | CW43: List the different groups of bacteria present in biological treatment systems. | CX43: Describe the growth requirements for each group of bacteria (energy source, carbon source, oxygen source). | CY43: Define biological treatment terms: heterotroph, autotroph, anaerobic, anoxic, aerobic, floc former, filament former, half-saturation coefficient, maximum growth rate, and yield. | CZ43: Predict how a bacteria will behave based on its environmental conditions. | DI43: No prerequistes are required for this course. | DL43: 4
B44: WWT-006 | C44: 399 | D44: Fixed Film: Trickling Filters and RBCs | E44: S. Innerebner, PhD, PE | F44: Indigo Water Group | G44: 8513 S. Newcombe Way, Littleton, CO 80127 | H44: sidney@indigowatergroup.com | I44: 303-489-9226 | J44: 2025 WWT-006 Fixed Film Final Quiz | K44: 2023 WWT-006 Fixed Film Final Quiz | L44: 2022 WWT-006 Fixed Film Final Quiz | M44: Q4 | N44: Q4 | O44: Q4 | P44: Q5 | Q44: Q4 | R44: Q6 | S44: Q5 | T44: Q5 | AA44: 32 | AB44: =60+58 -> 118 | AC44: 134 | AD44: 2 | AE44: Y | AH44: 0.15 | AI44: Core | AJ44: 25-06008-001 | AK44: 24-06008-001 | AL44: 23-06008-001 | AM44: 22-06008-001 | AN44: 0.2 | AO44: 0 | AP44: 0.2 | AQ44: 0.2 | AR44: 0 | AS44: 0 | AT44: See NV, WY, or WA | AU44: WWT23-3465-T1.5-G00 | AV44: 1.5 | BB44: 8021-25-3 | BC44: 2025-03-21 | BD44: All WW Operators | BE44: Process | BF44: 1.5 | BM44: 2 | BN44: 2 | BO44: 1.5 TC | BP44: 1.5 | BQ44: NV25-053 | BR44: 2 | BS44: WW | BT44: Not yet approved. | BU44: OEPA-S581512-OM | BV44: IWG-S4106-OM | BW44: IWG-S410625-OM | BX44: =AN44*10 -> 2 | BY44: WW Only | BZ44: R25213 | CA44: 2 | CB44: 0 | CC44: 0 | CD44: 0 | CE44: 2 | CF44: 0.2 | CG44: ECY25-4013 | CH44: Accepted. Use Form 4400-190 | CI44: 2 | CJ44: 0 | CK44: 2025.0392 | CL44: WW | CM44: 1.5 | CN44: Yes | CO44: 1.5 | CP44: No | CQ44: This course covers operation of trickling filters (TFs) and rotating biological contactors (RBC). The individual components of each process are discussed along with their functions. Biological processes taking place in aerobic, facultative, and anaerobic biofilm layers are discussed along with typical operating ranges, process control strategies, and troubleshooting. This course is supplemented with many photographs showing different technologies with descriptions of the functions of various pieces such as the plenum, underdrain, and distributors. | CR44: 2023 WWT-006 Fixed Film| indigowatergroup.ispringmarket.com | CS44: This course covers operation of trickling filters (TFs) and rotating biological contactors (RBC). Components, function, process control, and troubleshooting. | CT44: Trickling filters and RBCs are used to treat wastewater. Operators must understand fundamental principals to operate these systems. | CU44: Fundamental | CV44: Wastewater | CW44: Perform process control calcuations for trickling filters including organic loading rate, hydraulic wetting rate, and percent removal. Classify trickling filters by treatment goals and loading rates. | CX44: Understand the importance of hydraulic wetting rate in biofilm formation and mitigation of predators. | CY44: List characteristics of various types of ttrickling filter media including rock, dump, vertical flow and cross-flow. | CZ44: Discuss how air flows through a trickling filter using natural and forced air ventilation and the impact of air temperature on natural ventilation. | DA44: Compare and contrast the differences and similarities between trickling filters and rotating biological contactors. | DB44: Identify major components of trickling filters and give the function of each. | DI44: While not required, it is helpful for attendees to complete the Biological Treatment Basics course before starting this one. | DL44: 6
B45: WWT-007 | C45: 400 | D45: Lagoons and Wetlands | E45: Innerebner & Flowers | F45: , Natural Water Solutions | G45: 8513 S. Newcombe Way, Littleton, CO 80127 and 668 Martin Drive, Cedarburg, WI 53012 | H45: sidney@indigowatergroup.com | I45: 303-489-9226 and 414-791-6030 | J45: 2025 WWT-007 Lagoons and Wetlands Final Quiz | K45: 2023 WWT-007 Lagoons and Wetlands Final Quiz | L45: 2022 WWT-007 Lagoons and Wetlands Final Quiz | M45: 1 | N45: 1 | O45: 6 | P45: 1 | Q45: 1 | R45: 10 | S45: 1 | T45: 1 | U45: 3 | V45: 1 | W45: 10 | AA45: 36 | AB45: 131 | AC45: 149 | AD45: 2.5 | AE45: Abandon | AH45: 0.25 | AI45: Core | AJ45: 25-06009-001 | AK45: 24-06009-001 | AL45: 23-06009-001 | AM45: 22-06009-001 | AN45: 0.25 | AO45: 0 | AP45: 0.25 | AQ45: 0.25 | AR45: 0 | AS45: 0 | AT45: See NV, WY, or WA | AU45: WWT23-3466-T2.5-G00 | AV45: 2.5 | BB45: 5996-16-11 | BC45: 2016 | BD45: WW 3, 4, A; IWW 4 Operators | BE45: Process | BF45: 2 | BM45: 2.5 | BN45: 2.5 | BO45: 2.5 TC | BP45: 2.5 | BQ45: NV25-075 | BR45: 2.5 | BS45: WW | BT45: Not yet approved. | BU45: OEPA-S579869-OM | BV45: IWG-S4107-OM | BW45: IWG-S410725-OM | BX45: =AN45*10 -> 2.5 | BY45: WW Only | BZ45: R23146 | CA45: 2.5 | CB45: 0 | CC45: 0 | CD45: 0 | CE45: 2.5 | CF45: 0.2 | CG45: ECY25-4014 | CH45: Accepted. Use Form 4400-190 | CI45: 2.5 | CJ45: 0 | CK45: 2025.0393 | CL45: WW | CM45: 2.5 | CN45: Yes | CO45: 2.5 | CP45: No | CQ45: This presentation covers the method of operation for lagoons and wetlands. Basic design principals are discussed for lagoons and wetlands as well as biological processes taking place in aerobic, facultative, and anaerobic ponds. Typical operating ranges for each system type including hydraulic and organic loading rates are presented. Troubleshooting is discussed and relationships between operating variables. | CR45: 2023 WWT-007 Lagoons and Wetlands | indigowatergroup.ispringmarket.com | CS45: This presentation covers the method of operation for lagoons and engineered wetlands. Components, function, operation, and troubleshooting. | CT45: Lagoons and constructed wetlands are used to treat wastewater. Operators must understand fundamental principals to operate these systems. | CU45: Fundamental | CV45: Wastewater | CW45: Determine the most likely cause of various lagoon operational problems. (troubleshooting) | CX45: Describe the major components of a constructed wetland and the function of each. | CY45: List typical effluent concentrations from a constructed wetland including BOD, TSS, ammonia, nitrate, and E. coli. | CZ45: Explain how heat is retained in the wetland to prevent freezing and promote biological treatment. | DA45: Implement barley straw addition program for algae control in lagoons systems. | DB45: Perform required maintenance tasks for subsurface flow wetlands and explain why different types of maintenance are required. | DC45: Explain why turnover happens in pond systems and how the AIPS process mitigates turnover effects. | DD45: Describe the three main types of ponds (aerobic, facultative, and anaerobic), features of each, and the biological reactions taking place. | DI45: No prerequistes are required for this course. | DL45: 8
B46: WWT-007A | C46: 401 | D46: Wastewater Treatment Lagoons | E46: S. Innerebner, PhD, PE | F46: Indigo Water Group | G46: 8513 S. Newcombe Way, Littleton, CO 80127 | H46: sidney@indigowatergroup.com | I46: 303-489-9226 | J46: 2025 WWT-007A Wastewater Lagoons Final Quiz | K46: 2023 WWT-007A Wastewater Lagoons Final Quiz | M46: Q5 | N46: Q4 | O46: Q5 | P46: Q8 | Q46: Q4 | R46: Q5 | S46: Q4 | T46: Q5 | AA46: 40 | AB46: =60+51 -> 111 | AC46: 131 | AD46: 2 | AE46: Y | AF46: Y | AG46: Y | AH46: 0.15 | AI46: Core | AJ46: 25-10618-001 | AK46: 24-10618-001 | AN46: 0.2 | AO46: 0 | AP46: 0.2 | AQ46: 0.2 | AR46: 0 | AS46: 0 | AT46: See NV, WY, or WA | AU46: Not yet approved | AV46: 0 | BB46: 8022-25-3 | BC46: 2025-03-21 | BD46: All WW Operators | BE46: Process | BF46: 2 | BM46: 2 | BN46: 2 | BO46: 2.0 TC | BP46: 2 | BQ46: NV25-101 | BR46: 2 | BS46: WW | BT46: Not yet approved. | BV46: IWG-S4108-OM | BW46: IWG-S410825-OM | BX46: 2 | BY46: WW Only | BZ46: R25214 | CA46: 2 | CB46: 0 | CC46: 0 | CD46: 0 | CE46: 2 | CF46: 0.2 | CG46: ECY25-4015 | CH46: Accepted. Use Form 4400-190 | CI46: 2 | CJ46: 0 | CK46: 2025.0394 | CL46: WW | CM46: 2 | CN46: Yes | CO46: 2 | CP46: No | CQ46: This presentation covers the method of operation for wastewater treatment lagoons. Basic design principals are discussed for lagoons as well as biological processes taking place in aerobic, facultative, and anaerobic ponds. Typical operating ranges for each system type including hydraulic and organic loading rates are presented. Troubleshooting is discussed and relationships between operating variables. | CS46: Operation of wastewater treatment ponds. Describes components, biology, and troubleshooting. | CT46: Lagoons are used to treat wastewater and make up just under half of all treatment plants in the United States. | CU46: Fundamental | CV46: Wastewater | CW46: Describe the three main types of ponds (aerobic, facultative, and anaerobic), features of each, and the biological reactions taking place. | CX46: Describe the major components of wastewater treatment ponds and the function of each. | CY46: Implement barley straw addition program for algae control in lagoons systems. | CZ46: Explain why turnover happens in pond systems and how the AIPS process mitigates turnover effects. | DA46: Determine the most likely cause of various lagoon operational problems. (troubleshooting) | DI46: No prerequistes are required for this course. | DL46: 5
B47: WWT-007B | C47: 402 | D47: Subsurface Flow Wetlands for Wastewater Treatment | E47: Dave Flowers, PE | F47: Natural Water Solutions (retired) | G47: 668 Martin Drive, Cedarburg, WI 53012 | H47: flowersda15@gmail.com | I47: 414-791-6030 | J47: 2025 WWT-007B Wetlands Final Quiz | K47: 2023 WWT-007B Wetlands Final Quiz | M47: 1 | N47: 1 | O47: 3 | P47: 1 | Q47: 10 | AA47: 16 | AB47: 69 | AC47: 77 | AD47: 1 | AE47: Y | AH47: 0.1 | AI47: Core | AJ47: 25-10616-001 | AK47: 24-10616-001 | AN47: 0.1 | AO47: 0 | AP47: 0.1 | AQ47: 0.1 | AR47: 0 | AS47: 0 | AT47: See NV, WY, or WA | AU47: Not yet approved | AV47: 0 | BB47: 8023-25-3 | BC47: 2025-03-21 | BD47: All WW Operators | BE47: Non-Process | BF47: 1 | BM47: 1 | BN47: 1 | BO47: 1.0 TC | BP47: 1 | BQ47: NV25-092 | BR47: 1 | BS47: WW | BT47: Not yet approved. | BV47: IWG-S4109-OM | BW47: IWG-S410925-OM | BX47: 1 | BY47: WW Only | BZ47: R25215 | CA47: 1 | CB47: 0 | CC47: 0 | CD47: 0 | CE47: 1 | CF47: 0.1 | CG47: ECY25-4016 | CH47: Accepted. Use Form 4400-190 | CI47: 1 | CJ47: 0 | CK47: 2025.0395 | CL47: WW | CM47: 1 | CN47: Yes | CO47: 1 | CP47: No | CQ47: Subsurface flow wetlands can be used as a polishing step following septic tanks or secondary treatment system. They are effective at removing ammonia and nitrate even in cold climates. The presenter, Dave Flowers, holds many of the patents on engineered wetland systems. This presentation highlights a case study at Kettle Moraine Lutheran High School in Wisconsin taking attendees through the design, components, operation, and performance of the system. | CR47: W | CS47: This presentation covers the method of operation for engineered wetlands. Components, function, operation, and troubleshooting. | CT47: Wetlands are used to treat wastewater. Operators should understand how to operate and maintain them. They are part of the need-to-know criteria for exams under natural treatment systems. | CV47: Wastewater | CW47: Identify components of subsurface flow wetlands. | CX47: Describe the types of biological treatment taking place in an engineered wetland. | CY47: Explain why operational tasks are needed and consquences of failing to do them. | CZ47: Compare and contrast wetland treatment performance with other types of treatment. | DI47: No prerequistes are required for this course. | DL47: 4
B48: WWT-008 | C48: 403 | D48: Lagoons and Fixed Film | E48: S. Innerebner, PhD, PE | F48: Indigo Water Group | G48: 8513 S. Newcombe Way, Littleton, CO 80127 | H48: sidney@indigowatergroup.com | I48: 303-489-9226 | J48: 2025 WWT-008 Lagoons and FF Final Quiz | K48: 2023 WWT-008 Lagoons and FF Final Quiz | L48: 2022 WWT-008 Lagoons and FF Final Quiz | M48: 5 | N48: 7 | O48: 4 | P48: 6 | Q48: 10 | AA48: 32 | AB48: 116 | AC48: 132 | AD48: 2 | AE48: Abandon | AH48: 0.2 | AI48: Core | AJ48: 25-06010-001 | AK48: 24-06010-001 | AL48: 23-06010-001 | AM48: 22-06010-001 | AN48: 0.2 | AO48: 0 | AP48: 0.2 | AQ48: 0.2 | AR48: 0 | AS48: 0 | AT48: See NV, WY, or WA | AU48: WWT23-3467-T02-G00 | AV48: 2 | BB48: 5997-16-11 | BC48: 2016 | BD48: WW 3, 4, A; IWW 4 Operators | BE48: Process | BF48: 1 | BM48: 2 | BN48: 2 | BO48: 2.0 TC | BP48: 2 | BQ48: NV25-074 | BR48: 2 | BS48: WW | BT48: Not yet approved. | BU48: OEPA-S579870-OM | BV48: IWG-S4110-OM | BW48: IWG-S411025-OM | BX48: =AN48*10 -> 2 | BY48: WW Only | BZ48: R23147 | CA48: 2 | CB48: 0 | CC48: 0 | CD48: 0 | CE48: 2 | CF48: 0.2 | CG48: ECY25-4017 | CH48: Accepted. Use Form 4400-190 | CI48: 2 | CJ48: 0 | CK48: 2025.0396 | CL48: WW | CM48: 2 | CN48: Yes | CO48: 2 | CP48: No | CQ48: This presentation combines material from our lagoons and fixed film courses. Components, operation, maintenance, and troubleshooting for each process type are presented. If you are looking for lagoon information specifically, please take our Lagoons and Wetlands course instead. | CR48: 2023 WWT-008 Lagoons & Fixed Film | indigowatergroup.ispringmarket.com | CT48: Lagoons and fixed film are both used to process wastewater. Operators must understand fundamental principals to operate these systems. | CU48: Fundamental | CV48: Wastewater | CW48: Determine the most likely cause of various lagoon operational problems. (troubleshooting) | CX48: Identify major components of trickling filters and give the function of each. | CY48: List characteristics of various types of ttrickling filter media including rock, dump, vertical flow and cross-flow. | CZ48: Discuss how air flows through a trickling filter using natural and forced air ventilation and the impact of air temperature on natural ventilation. | DA48: Explain why turnover happens in pond systems and how the AIPS process mitigates turnover effects. | DB48: Understand the importance of hydraulic wetting rate in biofilm formation and mitigation of predators. | DC48: Classify trickling filters by treatment goals and loading rates. | DD48: Compare and contrast the differences and similarities between trickling filters and rotating biological contactors. | DE48: Describe the three main types of ponds (aerobic, facultative, and anaerobic), features of each, and the biological reactions taking place. | DI48: No prerequistes are required for this course. | DL48: 9
B49: WWT-009 | C49: 404 | D49: Activated Sludge Basics | E49: S. Innerebner, PhD, PE | F49: Indigo Water Group | G49: 8513 S. Newcombe Way, Littleton, CO 80127 | H49: sidney@indigowatergroup.com | I49: 303-489-9226 | J49: 2025 WWT-009 AS Basics Final Quiz | K49: 2023 WWT-009 AS Basics Final Quiz | L49: 2022 WWT-009 AS Basics Final Quiz | M49: 1 | N49: 6 | O49: 4 | P49: 1 | Q49: 7 | R49: 3 | S49: 1 | T49: 1 | U49: 10 | V49: 1 | AA49: 35 | AB49: 141 | AC49: 158.5 | AD49: 3 | AE49: Y | AH49: 0.3 | AI49: Core | AJ49: 25-06011-002 | AK49: 24-06011-002 | AL49: 23-06011-002 | AM49: 22-06011-001 | AN49: 0.3 | AO49: 0 | AP49: 0.3 | AQ49: 0.3 | AR49: 0 | AS49: 0 | AT49: See NV, WY, or WA | AU49: WWT23-3468-T03-G00 | AV49: 3 | BB49: 8024-25-3 | BC49: 2025-03-21 | BD49: WW 3, 5, A; IWW 5 Operators | BE49: Process | BF49: 3 | BM49: 3 | BN49: 3 | BO49: 3.0 TC | BP49: 3 | BQ49: NV25-027 | BR49: 3 | BS49: WW | BT49: Not yet approved. | BU49: OEPA-S579871-OM | BV49: IWG-S4111-OM | BW49: IWG-S411125-OM | BX49: =AN49*10 -> 3 | BY49: WW Only | BZ49: R23148 | CA49: 3 | CB49: 0 | CC49: 0 | CD49: 0 | CE49: 3 | CF49: 0.3 | CG49: ECY25-4018 | CH49: Accepted. Use Form 4400-190 | CI49: 3 | CJ49: 0 | CK49: 2025.0397 | CL49: WW | CM49: 3 | CN49: Yes | CO49: 3 | CP49: No | CQ49: This course introduces participants to the basics of activated sludge. It presents fundamental concepts such as space loading, F:M ratio, MCRT, SRT, solids loading and flux to the secondary clarifier, and surface overflow rate. We focus on how each of these variables is interrelated and how changing one necessarily changes the others. Typical ranges for conventional and extended aeration activated sludge plants are compared. This class also looks at an introduction to microbiology, filaments, conditions for filamentous growth, and control. | CR49: 2023 WWT-009 Activated Sludge Bas | indigowatergroup.ispringmarket.com | CS49: This course introduces participants to the basics of activated sludge. It presents fundamental concepts such as space loading, F:M ratio, MCRT, SRT, solids loading, etc. | CT49: Activated sludge is used to treat wastewater. Operators must understand fundamental principals to operate these systems. | CU49: Fundamental | CV49: Wastewater | CW49: Predict the effect of increasing or decreasing sludge age on other process control variables including MLSS concentration, MLVSS concentration, F:M ratio, and wasting rate. Calculate process control variables from plant data. | CX49: Perform a Gram or Neisser Stain and interpret results to correctly identify which filament is dominant in an activated sludge process. | CY49: Match specific filament types to their underlying causes including H. hydrosis, M. parvicella, and Type 21N. | CZ49: Understand that different filaments grow and become dominant under different operating conditions. Given a filament type, determine the most likely cause of growth. | DA49: List three different things that the return activated sludge (RAS) and waste activated sludge (WAS) each control. | DB49: Describe how hydraulic and solids loading parameters are calculated for secondary clarifiers and the relative importance of each. | DC49: List at least three groups of microorganisms present in activated sludge and describe the conditions that promote their growth. | DD49: Discuss differences between different types of activated sludge processes (complete mix, step feed, oxidation ditch, pureox, etc.) and understand that they are all based on the same underlying biologial principals. | DE49: Understand that activated sludge microbiology determines sludge settleability and the need to balance floc formers and filament formers. | DI49: While not required, it is helpful for attendees to complete the Biological Treatment Basics course before starting this one. | DL49: 9
B50: WWT-010 | C50: 405 | D50: Activated Sludge Basics: A Mechanical Approach | E50: S. Innerebner, PhD, PE | F50: Indigo Water Group | G50: 8513 S. Newcombe Way, Littleton, CO 80127 | H50: sidney@indigowatergroup.com | I50: 303-489-9226 | J50: 2025 WWT-010 AS Mechanical Final Quiz | K50: 2023 WWT-010 AS Mechanical Final Quiz | L50: 2022 WWT-010 AS Mechanical Final Quiz | M50: 1 | N50: 1 | O50: 5 | P50: 4 | Q50: 1 | R50: 8 | S50: 4 | T50: 4 | AA50: 28 | AB50: 107 | AC50: 121 | AD50: 2 | AH50: 0.2 | AI50: Core | AJ50: 25-06012-001 | AK50: 24-06012-001 | AL50: 23-06012-001 | AM50: 22-06012-001 | AN50: 0.2 | AO50: 0 | AP50: 0.2 | AQ50: 0.2 | AR50: 0 | AS50: 0 | AT50: See NV, WY, or WA | AU50: WWT23-3469-T2.5-G00 | AV50: 2.5 | BB50: 8025-25-3 | BC50: 2025-03-21 | BD50: WW; 3, 5 All IWW; 5 | BE50: Process | BF50: 2 | BM50: 2 | BN50: 2 | BO50: 2.5 TC | BP50: 2.5 | BQ50: NV25-028 | BR50: 2 | BS50: WW | BT50: Not yet approved. | BU50: OEPA-S576553-OM | BV50: IWG-S4112-OM | BW50: IWG-S411225-OM | BX50: =AN50*10 -> 2 | BY50: WW Only | BZ50: R23149 | CA50: 2.5 | CB50: 0 | CC50: 0 | CD50: 0 | CE50: 2 | CF50: 0.2 | CG50: ECY25-4019 | CH50: Accepted. Use Form 4400-190 | CI50: 2 | CJ50: 0 | CK50: 2025.0398 | CL50: WW | CM50: 2 | CN50: Yes | CO50: 2 | CP50: No | CQ50: If activated sludge has never made sense to you, but engines and other mechanical devices do, then this is the course for you. This course introduces participants to the basics of activated sludge. Inspired by the chief of maintenance at a Colorado WWTP, this course looks at activated sludge from a mechanical perspective and introduces bacteria as the little combustion engines that they are. Seeing the mechanical inputs makes the inner workings of activated sludge crystal clear. Covers concepts of sludge age, food-to-microorganism ratio, and relationships between process control variables. | CR50: 2023 WWT-010 Activated Sludge Mec | indigowatergroup.ispringmarket.com | CS50: If activated sludge has never made sense to you, but engines and other mechanical devices do, then this is the course for you. | CT50: Activated sludge is used to treat wastewater. Operators must understand fundamental principals to operate these systems. | CU50: Fundamental | CV50: Wastewater | CW50: Classify bacteria according to morphology, growth pattern, carbon source, and oxygen source. Define heterotroph, autotroph, facultative, and obligate aerobe. | CX50: Explain how faculative heterotropic bacteria and autotrophic bacteria will function in an anaerobic zone, anoxic zone, and aerated zone. | CY50: Discuss the impact of filaments on activated sludge settleability and the need to balance the growth of filament formers and floc formers. | CZ50: Understand what may be controlled by manipulating the Return Activated Sludge (RAS) and Waste Activated Sludge (WAS) pumping rates. | DA50: Select a target sludge age based on water temperature and nitrification requirements. | DB50: Calculate process control variables associated with secondary clarifiers including surface overflow rate, weir loading rate, and solids loading rate. | DC50: Demonstrate the relationships between sludge age (control variable) and its dependent process control variables of food to microorganism ratio, MLSS concentration, and MLVSS to MLSS ratio. | DD50: Conduct three types of settleometer tests and interpret results. | DI50: While not required, it is helpful for attendees to complete the Biological Treatment Basics course before starting this one. | DL50: 8
B51: WWT-011 | C51: 406 | D51: Top 10 Questions for Activated Sludge Process Control | E51: S. Innerebner, PhD, PE | F51: Indigo Water Group | G51: 8513 S. Newcombe Way, Littleton, CO 80127 | H51: sidney@indigowatergroup.com | I51: 303-489-9226 | J51: 2025 WWT-011 AS Top 10 Final Quiz | K51: 2023 WWT-011 AS Top 10 Final Quiz | L51: 2022 WWT-011 AS Top 10 Final Quiz | M51: 5 | N51: 1 | O51: 4 | P51: 5 | Q51: 1 | R51: 5 | S51: 5 | T51: 2 | U51: 5 | AA51: 33 | AB51: 137 | AC51: 153.5 | AD51: 2.5 | AH51: 0.25 | AI51: Core | AJ51: 25-07727-001 | AK51: 24-07727-001 | AL51: 23-07727-001 | AM51: 22-07727-001 | AN51: 0.25 | AO51: 0 | AP51: 0.25 | AQ51: 0.25 | AR51: 0 | AS51: 0 | AT51: See NV, WY, or WA | AU51: WWT23-3470-T2.5-G00 | AV51: 2.5 | BB51: 8026-25-3 | BC51: 2025-03-21 | BD51: All WW / I Operators | BE51: Process | BF51: 2.5 | BM51: 2.5 | BN51: 2.5 | BO51: 2.5 TC | BP51: 2.5 | BQ51: NV25-093 | BR51: 2.5 | BS51: WW | BT51: Not yet approved. | BV51: IWG-S4113-OM | BW51: IWG-S411325-OM | BX51: =AN51*10 -> 2.5 | BY51: WW Only | BZ51: R23150 | CA51: 2.5 | CB51: 0 | CC51: 0 | CD51: 0 | CE51: 2.5 | CF51: 0.2 | CG51: ECY25-4020 | CH51: Accepted. Use Form 4400-190 | CI51: 2.5 | CJ51: 0 | CK51: 2025.0399 | CL51: WW | CM51: 2.5 | CN51: Yes | CO51: 2.5 | CP51: No | CQ51: Activated sludge has 7 variables that are critical for process control: waste activated sludge (WAS), return activated sludge (RAS), sludge age (MCRT, SRT, and SRTaerobic), food to microorganism ratio (F:M), dissolved oxygen concentration, oxidation reduction potential (ORP), and internal mixed liquor recycle (IMLR). This course walks attendees through what each of these variables controls, typical ranges, and how to select a target operating point. | CR51: 2023 WWT-011 Top 10 Questions | indigowatergroup.ispringmarket.com | CS51: Activated sludge has 7 variables that are critical for process control. Learn how to select set points for MCRT, SRT, SRTaerobic, RAS pumping, DO, ORP, and more. | CT51: Activated sludge is used to treat wastewater. Operators must understand fundamental principals to operate these systems. | CU51: Advanced | CV51: Wastewater | CW51: Explain the relationships between sludge age, F:M, and MLSS concentration. | CX51: Understand the difference between MCRT, SRT, and SRTaerobic. | CY51: Select a target MCRT, SRT, or SRTaerobic based on treatment goals and water temperature. | CZ51: Set targets for DO and ORP in anaerobic, anoxic, and aerobic zones based on treatment goals. | DA51: Adjust IMLR to maximize nitrate removal and minimize pumping costs. | DB51: Understand how RAS pumping rates affect the RAS concentration and clarifier solids loading rate. | DI51: While not required, it is helpful for attendees to complete the Activated Sludge Basics and Biological Treatment Basics courses before starting this one. | DL51: 6
B52: WWT-012A | C52: 407 | D52: Activated Sludge Microbiology: A View Beneath the Surface | E52: Steve Leach | F52: Leach Microbial Consulting | G52: 408 Scott Lane, Wallingford, PA 19086 | H52: steve@leachmicros.com | I52: 215-327-4306 | J52: 2025 WWT-012A A View Beneath the Surface Final Quiz | K52: 2023 WWT-012A A View Beneath the Surface Final Quiz | L52: 2022 WWT-012A A View Beneath the Surface Final Quiz | M52: 4 | N52: 4 | O52: 5 | P52: 4 | AA52: 17 | AB52: 48 | AC52: 56.5 | AD52: 1 | AH52: 0.1 | AI52: Core | AJ52: 25-08900-001 | AK52: 24-08900-001 | AL52: 23-08900-001 | AM52: 22-08900-001 | AN52: 0.1 | AO52: 0 | AP52: 0.1 | AQ52: 0.1 | AR52: 0 | AS52: 0 | AT52: See NV, WY, or WA | AU52: WWT23-3471-T01-G00 | AV52: 1 | BB52: 8027-25-3 | BC52: 2025-03-21 | BD52: WW and Industrial | BE52: Non-Process | BF52: 1 | BM52: 1 | BN52: 1 | BO52: 1.0 TC | BP52: 1 | BQ52: NV25-029 | BR52: 1 | BS52: WW | BT52: Not yet approved. | BU52: OEPA-S579874-OM | BV52: IWG-S4114-OM | BW52: IWG-S411425-OM | BX52: 1 | BY52: WW Only | BZ52: R23151 | CA52: 1 | CB52: 0 | CC52: 0 | CD52: 0 | CE52: 1 | CF52: 0.1 | CG52: ECY25-4021 | CH52: Accepted. Use Form 4400-190 | CI52: 1 | CJ52: 0 | CK52: 2025.04 | CL52: WW | CM52: 1 | CN52: Yes | CO52: 1 | CP52: No | CQ52: This is the first part of a three part series on activated sludge microbiology. This course discusses how bacteria are classified, bacterial forms present in activated sludge, and how floc forms. Attendees will learn how to distinguish between tightly and loosely bound extra-polymeric substances and what the presence of each can indicate. | CR52: 2023 WWT-012A Microbiology 1 | indigowatergroup.ispringmarket.com | CS52: A three part series. Part 1 discusses how bacteria are classified, bacterial forms present in activated sludge, and how floc forms. | CT52: Activated sludge is used to treat wastewater. Operators must understand fundamental principals to operate these systems. | CU52: Fundamental | CV52: Wastewater | CW52: Describe major groups of bacteria present in activated sludge and how they are classified. | CX52: Distinguish between tightly and loosely bound EPS. | CY52: Describe key indicators in the bulk water between floc particles. | CZ52: Make process control adjustments based on microscopic observations. | DI52: No prerequistes are required for this course. | DL52: 4
B53: WWT-012B | C53: 408 | D53: Activated Sludge Microbiology: Microscope Basics and the Micro Exam | E53: Steve Leach | F53: Leach Microbial Consulting | G53: 408 Scott Lane, Wallingford, PA 19086 | H53: steve@leachmicros.com | I53: 215-327-4306 | J53: 2025 WWT-012B Microscope Basics Final Quiz | K53: 2023 WWT-012B Microscope Basics Final Quiz | L53: 2022 WWT-012B Microscope Basics Final Quiz | M53: 1 | N53: 7 | O53: 6 | P53: 5 | Q53: 4 | AA53: 23 | AB53: 52 | AC53: 63.5 | AD53: 1 | AH53: 0.1 | AI53: Core | AJ53: 25-08901-001 | AK53: 24-08901-001 | AL53: 23-08901-001 | AM53: 22-08901-001 | AN53: 0.1 | AO53: 0 | AP53: 0.1 | AQ53: 0.1 | AR53: 0 | AS53: 0 | AT53: See NV, WY, or WA | AU53: WWT23-3472-T01-G00 | AV53: 1 | BB53: 8028-25-3 | BC53: 2025-03-21 | BD53: WW and Industrial | BE53: Non-Process | BF53: 1 | BM53: 1 | BN53: 1 | BO53: 1.0 TC | BP53: 1 | BQ53: NV25-031 | BR53: 1 | BS53: WW | BT53: Not yet approved. | BV53: IWG-S4115-OM | BW53: IWG-S411525-OM | BX53: 1 | BY53: WW Only | BZ53: R23152 | CA53: 1 | CB53: 0 | CC53: 0 | CD53: 0 | CE53: 1 | CF53: 0.1 | CG53: ECY25-4022 | CH53: Accepted. Use Form 4400-190 | CI53: 1 | CJ53: 0 | CK53: 2025.0401 | CL53: WW | CM53: 1 | CN53: Yes | CO53: 1 | CP53: No | CQ53: This is the second part of a three part series on activated sludge microbiology. In part two, attendees will learn how to properly set up and care for their microscope and how to properly conduct a micro exam. | CR53: 2023 WWT-012B The Micro Exam | indigowatergroup.ispringmarket.com | CS53: In part two, attendees will learn how to properly set up and care for their microscope and how to properly conduct a microscopic exam. | CT53: Activated sludge is used to treat wastewater. Operators must understand fundamental principals to operate these systems. | CU53: Fundamental | CV53: Wastewater | CW53: List the major components of a phase-contrast microscope. | CX53: Explain why phase-contrast is necessary for filament observation. | CY53: Clean, set up, and calibrate a phase-contrast microscope. | CZ53: Properly prepare a wet mount. | DA53: Perform a micro exam: floc, filaments, higher life forms, and bulk water examination. | DB53: Diagnose the presence of excessive EPS. | DI53: While not required, it is helpful for attendees to complete the "A View Beneath the Surface" course prior to taking this one. | DL53: 6
B54: WWT-013 | C54: 409 | D54: Activated Sludge Microbiology: Filaments and Settling Problems | E54: Steve Leach | F54: Leach Microbial Consulting | G54: 408 Scott Lane, Wallingford, PA 19086 | H54: steve@leachmicros.com | I54: 215-327-4306 | J54: 2025 WWT-013 Filaments and Settling Problems Final Quiz | K54: 2023 WWT-013 Filaments and Settling Problems Final Quiz | L54: 2022 WWT-013 Filaments and Settling Problems Final Quiz | M54: 6 | N54: 5 | O54: 4 | P54: 4 | Q54: 4 | AA54: 23 | AB54: 48 | AC54: 59.5 | AD54: 1 | AH54: 0.1 | AI54: Core | AJ54: 25-08902-001 | AK54: 24-08902-001 | AL54: 23-08902-001 | AM54: 22-08901-001 | AN54: 0.1 | AO54: 0 | AP54: 0.1 | AQ54: 0.1 | AR54: 0 | AS54: 0 | AT54: See NV, WY, or WA | AU54: WWT23-3473-T01-G00 | AV54: 1 | BB54: 8029-25-3 | BC54: 2025-03-21 | BD54: WW and Industrial | BE54: Non-Process | BF54: 1 | BM54: 1 | BN54: 1 | BO54: 1.0 TC | BP54: 1 | BQ54: NV25-030 | BR54: 1 | BS54: WW | BT54: Not yet approved. | BU54: OEPA-S579875-OM | BV54: IWG-S4116-OM | BW54: IWG-S411625-OM | BX54: 1 | BY54: WW Only | BZ54: R23153 | CA54: 1 | CB54: 0 | CC54: 0 | CD54: 0 | CE54: 1 | CF54: 0.1 | CG54: ECY25-4023 | CH54: Accepted. Use Form 4400-190 | CI54: 1 | CJ54: 0 | CK54: 2025.0402 | CL54: WW | CM54: 1 | CN54: Yes | CO54: 1 | CP54: No | CQ54: This is the third part of a three-part series on activated sludge microbiology. Attendees will learn how to identify different activated sludge filaments based on their morphology, location in relation to the floc, and how they respond to different staining techniques. Growth conditions for filaments commonly found in domestic wastewater treatment plants are presented. | CR54: 2023 WWT-013 Filaments & Settling | indigowatergroup.ispringmarket.com | CS54: Part 3 focuses on filamentous bacteria, how to identify them, and what their presence may indicate about the activated sludge process. | CT54: Activated sludge is used to treat wastewater. Operators must understand fundamental principals to operate these systems. | CU54: Intermediate | CV54: Wastewater | CW54: Rate filament density using a common scale. | CX54: List the various operating conditions that can contribute to filament growth. | CY54: List morphological features of filaments used for identification. | CZ54: Perform a Gram stain. | DA54: Perform a Neisser stain. | DB54: Describe the most commonly encountered filaments in domestic wastewater treatment. | DI54: Attendees should have a fundamental understanding of activated sludge microbiology before taking this course. | DL54: 6
B55: WWT-014 | C55: 410 | D55: Types of Activated Sludge Systems | E55: S. Innerebner, PhD, PE | F55: Indigo Water Group | G55: 8513 S. Newcombe Way, Littleton, CO 80127 | H55: sidney@indigowatergroup.com | I55: 303-489-9226 | J55: 2025 WWT-014 AS Types Final Quiz | K55: 2023 WWT-014 AS Types Final Quiz | L55: 2022 WWT-014 AS Types Final Quiz | M55: 4 | N55: 2 | O55: 4 | P55: 1 | Q55: 4 | AA55: 15 | AB55: 75 | AC55: 82.5 | AD55: 1.5 | AH55: 0.15 | AI55: Core | AJ55: 25-06015-001 | AK55: 24-06015-001 | AL55: 23-06015-001 | AM55: 22-06015-001 | AN55: 0.15 | AO55: 0 | AP55: 0.15 | AQ55: 0.15 | AR55: 0 | AS55: 0 | AT55: See NV, WY, or WA | AU55: WWT23-3474-T1.5-G00 | AV55: 1.5 | BB55: 8030-25-3 | BC55: 2025-03-21 | BD55: WW 3, 5, A Operators | BE55: Process | BF55: 1.5 | BM55: 1.5 | BN55: 1.5 | BO55: 1.5 TC | BP55: 1.5 | BQ55: NV25-096 | BR55: 1.5 | BS55: WW | BT55: Not yet approved. | BU55: OEPA-S579878-OM | BV55: IWG-S4117-OM | BW55: IWG-S411725-OM | BX55: =AN55*10 -> 1.5 | BY55: WW Only | BZ55: R23154 | CA55: 1.5 | CB55: 0 | CC55: 0 | CD55: 0 | CE55: 1.5 | CF55: 0.1 | CG55: ECY25-4024 | CH55: Accepted. Use Form 4400-190 | CI55: 1.5 | CJ55: 0 | CK55: 2025.0403 | CL55: WW | CM55: 1.5 | CN55: Yes | CO55: 1.5 | CP55: No | CQ55: Different types of activated sludge systems are discussed with a focus on flow patterns (complete mix, plug flow, batch) versus operational method (pureox, conventional, extended aeration, step feed, high rate, etc.). Simple process diagrams and photographs of each process type are included. Clarifier flow patterns, sludge collection mechanisms, and weir / launder arrangements are discussed. Finally, we look at common configurations for activated sludge processes that remove nutrients to low levels including the modified Ludzack-Ettinger process, University of Cape Town process, and others. Pros and cons of each type of system and their associated treatment objectives are also discussed. | CR55: 2023 WWT-014 Activated Sludge Sys | indigowatergroup.ispringmarket.com | CS55: Different types of activated sludge systems are discussed with a focus on flow patterns (complete mix, plug flow, batch) versus operational methods. | CT55: Activated sludge is used to treat wastewater. Operators must understand fundamental principals to operate these systems. | CU55: Fundamental | CV55: Wastewater | CW55: Discuss variations on the activated sludge process as combinations of a flow regiment (complete mix, plug flow, step feed, SBR) and an operating mode (conventional, extended aeration, PureOx) giving the dominant features of each. | CX55: Describe the different types of clarifiers (circular, rectangular, squircle), the major components of clarifiers, and the functions of each component. | CY55: List the functions of aerobic and anoxic zones for nitrification and denitrification. Understand how biological nutrient removal processes have evolved to meet lower effluent nitrogen limits. | DI55: No prerequistes are required for this course. | DL55: 3
B56: WWT-015 | C56: 411 | D56: Sequencing Batch Reactors | E56: S. Innerebner, PhD, PE | F56: Indigo Water Group | G56: 8513 S. Newcombe Way, Littleton, CO 80127 | H56: sidney@indigowatergroup.com | I56: 303-489-9226 | J56: 2025 WWT-015 SBR Final Quiz | K56: 2023 WWT-015 SBR Final Quiz | L56: 2022 WWT-015 SBR Final Quiz | AA56: =SUM(M56:Z56) -> 0 | AC56: 0 | AD56: 3 | AJ56: 25-11101-001 | AK56: None for 2024 | AL56: None for 2023 | AM56: None for 2022 | AN56: 0.2 | AO56: 0 | AP56: 0.2 | AQ56: 0.2 | AR56: 0 | AS56: 0 | BB56: 8031-25-3 | BC56: 2025-03-21 | BD56: WW and Industrial | BE56: Process | BF56: 2 | BM56: 2 | BN56: 2 | BO56: Not yet approved. | BP56: Not yet approved. | BQ56: NV25-090 | BR56: 1.5 | BT56: Not yet approved. | BV56: IWG-S4118-OM | BW56: IWG-S413825-OM | BX56: 3 | BY56: WW Only | BZ56: R25360 | CA56: 3 | CB56: 0 | CC56: 0 | CD56: 3 | CE56: 2 | CF56: 0.1 | CG56: ECY25-4025 | CH56: Accepted. Use Form 4400-190 | CI56: 2 | CJ56: 0 | CK56: 2025.0404 | CL56: WW | CM56: 3 | CN56: Yes | CO56: 3 | CP56: No | CQ56: This course on sequencing batch reactors covers everything from components and their functions through process control strategies and troubleshooting. We will compare and contrast SBRs with conventional activated sludge systems while highlighting the pros and cons of SBR systems. Traditional SBRs suffer from some unique problems caused by uneven BOD loading to different SBRs and failing to mix MLSS between SBRs that can cause each SBR to behave as a separate treatment system with its own sludge age and food-to-microorganism ratio. We will discuss modern modifications to SBRs that reduce or eliminate these problems. Finally, the class ends with a section on troubleshooting common operational problems. | CT56: Sequencing batch reactors are the fastest growing category of activated sludge treatment processes. Operators should understand the differences between SBRs and conventional activated sludge. | CV56: Wastewater | CW56: Compare and contrast the differences between conventional activated sludge and sequencing batch reactors | CX56: List the components of SBRs and give the function of each component | CY56: Compare and contrast the different operating philosophies for SBRs | CZ56: Understand process control variables for SBRs | DA56: Troubleshoot common issues with SBRs | DL56: 5
B57: WWT-016 | C57: 412 | D57: Nitrification and Denitrification | E57: S. Innerebner, PhD, PE | F57: Indigo Water Group | G57: 8513 S. Newcombe Way, Littleton, CO 80127 | H57: sidney@indigowatergroup.com | I57: 303-489-9226 | J57: 2025 WWT-016 Nitrogen Removal Final Quiz | K57: 2023 WWT-016 Nitrogen Removal Final Quiz | L57: 2022 WWT-016 Nitrogen Removal Final Quiz | M57: 5 | N57: 1 | O57: 1 | P57: 5 | Q57: 1 | R57: 1 | S57: 4 | T57: 1 | U57: 6 | V57: 4 | W57: 9 | AA57: 38 | AB57: 138 | AC57: 157 | AD57: 3 | AH57: 0.3 | AI57: Core | AJ57: 25-06016-001 | AK57: 24-06016-001 | AL57: 23-06016-001 | AM57: 22-06016-001 | AN57: 0.3 | AO57: 0.3 | AP57: 0.3 | AQ57: 0.3 | AR57: 0 | AS57: 0 | AT57: See NV, WY, or WA | AU57: WWT23-3475-T2.5-G00 | AV57: 2.5 | BB57: 8032-25-3 | BC57: 2025-03-21 | BD57: WW 3, 4, 5, A; Ind 5 Operators | BE57: Process | BF57: 3 | BM57: 3 | BN57: 3 | BO57: 3.0 TC | BP57: 3 | BQ57: NV25-083 | BR57: 3 | BS57: WW | BT57: Not yet approved. | BU57: OEPA-S579877-OM | BV57: IWG-S4119-OM | BW57: IWG-S411925-OM | BX57: =AN57*10 -> 3 | BY57: WW Only | BZ57: R25217 | CA57: 3 | CB57: 0 | CC57: 0 | CD57: 0 | CE57: 3 | CF57: 0.3 | CG57: ECY25-4026 | CH57: Accepted. Use Form 4400-190 | CI57: 3 | CJ57: 0 | CK57: 2025.0405 | CL57: WW | CM57: 3 | CN57: Yes | CO57: 3 | CP57: No | CQ57: This presentation covers biological nitrification and denitrification. Topics that are covered include: the organisms responsible for nitrification and denitrification, stoichiometry, variables that impact performance (DO, alkalinity, pH, temperature, SRT, BOD:N ratio), the different types of unit processes (fixed films and activated sludge) that can be used for nitrogen removal. | CR57: 2023 WWT-016 Nitrogen Removal | indigowatergroup.ispringmarket.com | CS57: This presentation covers biological nitrification and denitrification. Organisms responsible, growth requirements, byproducts, and process control. | CT57: Total nitrogen removal is a requirement of more and more wastewater treatment plant discharge permits. Operators must understand fundamental principals to achieve compliance. Drinking water systems that use chloramines to disinfect are at risk of nitrification in the distribution system. | CU57: Advanced | CV57: Wastewater | CW57: Apply knowledge of denitrification stoichiometry to prevent denitrification from occurring in clarifier blankets. | CX57: Adjust internal mixed liquor recycle ratios between aerobic and anoxic zones to maximize nitrification and denitrification. | CY57: Identify sources and types of nitrogen species in the environment and domestic wastewater. | CZ57: Identify the two main groups of bacteria responsible for ammonia removal and their requirements for growth. | DA57: Select a target mean cell residence time (MCRT) based on treatment goals and water temperature. | DB57: Explain why effluent ammonia concentrations can be several mg/L even when complete nitrification is taking place. | DC57: Discuss process variables that may affect nitrification including pH, alkalinity, and dissolved oxygen. | DD57: Understand denitrification stoichiometry and the requirements for denitrification to take place. | DI57: While not required, it is helpful for attendees to attend the Biological Treatment Basics course before taking this course. | DL57: 8
B58: WWT-017 | C58: 413 | D58: Biological and Chemical Phosphorus Removal | E58: S. Innerebner, PhD, PE | F58: Indigo Water Group | G58: 8513 S. Newcombe Way, Littleton, CO 80127 | H58: sidney@indigowatergroup.com | I58: 303-489-9226 | J58: 2025 WWT-017 Phosphorus Removal Final Quiz | K58: 2023 WWT-017 Phosphorus Removal Final Quiz | L58: 2022 WWT-017 Phosphorus Removal Final Quiz | M58: 4 | N58: 5 | O58: 6 | P58: 1 | Q58: 5 | R58: 12 | AA58: 33 | AB58: 95 | AC58: 111.5 | AD58: 2 | AH58: 0.2 | AI58: Core | AJ58: 25-06017-001 | AK58: 24-06017-001 | AL58: 23-06017-001 | AM58: 22-06017-001 | AN58: 0.2 | AO58: 0 | AP58: 0.2 | AQ58: 0.2 | AR58: 0 | AS58: 0 | AT58: See NV, WY, or WA | AU58: WWT23-3476-T02-G00 | AV58: 2 | BB58: 8033-25-3 | BC58: 2025-03-21 | BD58: WW 3, 4, 5, A; Ind 5 Operators | BE58: Process | BF58: 2 | BM58: 2 | BN58: 2 | BO58: 2.0 TC | BP58: 2 | BQ58: NV25-041 | BR58: 2 | BS58: WW | BT58: Not yet approved. | BU58: OEPA-S579876-OM | BV58: IWG-S4120-OM | BW58: IWG-S412025-OM | BX58: =AN58*10 -> 2 | BY58: WW Only | BZ58: R23156 | CA58: 2 | CB58: 0 | CC58: 0 | CD58: 0 | CE58: 2 | CF58: 0.2 | CG58: ECY25-4027 | CH58: Accepted. Use Form 4400-190 | CI58: 2 | CJ58: 0 | CK58: 2025.0406 | CL58: WW | CM58: 2 | CN58: Yes | CO58: 2 | CP58: No | CQ58: This course is an introduction to biological and chemical phosphorus removal. Attendees will learn about the organisms responsible for biological phosphorus removal, the importance of cycling between anaerobic and anoxic/aerobic conditions, the benefits of biological phosphorus removal, and a brief introduction to chemical removal methods. | CR58: 2023 WWT-017 Phosphorus Removal | indigowatergroup.ispringmarket.com | CS58: This course is an introduction to biological and chemical phosphorus removal: organisms responsible, growth requirements, byproducts, and process control. | CT58: Phosphorus removal is a requirement of more and more wastewater treatment plant discharge permits. Operators must understand fundamental principals to achieve compliance. | CU58: Advanced | CV58: Wastewater | CW58: Discuss the impact of various operating variables on enhanced biological phosphorus removal performance including dissolved oxygen, pH, temperature, and hydraulic and solids retention times. | CX58: Evaluate influent data to determine if the carbon source to phosphorus ratios might support enhanced biological phosphorus removal. | CY58: Understand the basics of phosphorus precipitation chemistry and the concept of metal equivalent to P ratios to achieve certain effluent P goals. | CZ58: List three novel techniques for phosphorus removal. | DA58: Understand the consequence of discharging excess phosphorus into the environment and the regulatory limitations being placed on phosphorus by EPA. | DB58: List sources of phosphorus in municipal wastewater. Convert between phosphorus as phosphate and phosphorus as P. | DC58: Explain the concept of luxury phosphorus uptake and how phosphate accumulating organisms utilize poly-phosphate for energy storage. | DI58: While not required, it is helpful for attendees to attend the Biological Treatment Basics course before taking this course. | DL58: 7
B59: WWT-018 | C59: 414 | D59: State Point Analysis for Secondary Clarifiers | E59: Eric Wahlberg, PhD, PE | F59: WasteWater Technology Trainers | G59: 1917 VT Route 232, Marshfield, VT 05658 | H59: wwtechtrainers@gmail.com | I59: 510-708-8938 | J59: 2025 WWT-018 Clarifiers Final Quiz | K59: 2023 WWT-018 Clarifiers Final Quiz | L59: 2022 WWT-018 Clarifiers Final Quiz | M59: 4 | N59: 4 | O59: 1 | P59: 5 | Q59: 1 | R59: 4 | AA59: 19 | AB59: 78 | AC59: 87.5 | AD59: 1.5 | AH59: 0.15 | AI59: Core | AJ59: 25-06018-001 | AK59: 24-06018-001 | AL59: 23-06018-001 | AM59: 22-06018-001 | AN59: 0.15 | AO59: 0.15 | AP59: 0.15 | AQ59: 0.15 | AR59: 0 | AS59: 0 | AT59: See NV, WY, or WA | AU59: WWT23-3477-T1. 5-G00 | AV59: 1.5 | BB59: 8034-25-3 | BC59: 2025-03-21 | BD59: WW and Industrial | BE59: Process | BF59: 1.5 | BM59: 1.5 | BN59: 1.5 | BO59: 1.5 TC | BP59: 1.5 | BQ59: NV25-091 | BR59: 1.5 | BS59: WW | BT59: Not yet approved. | BU59: OEPA-S579872-OM | BV59: IWG-S4121-OM | BW59: IWG-S412125-OM | BX59: =AN59*10 -> 1.5 | BY59: WW Only | BZ59: R23157 | CA59: 1.5 | CB59: 0 | CC59: 0 | CD59: 0 | CE59: 1.5 | CF59: 0.1 | CG59: ECY25-4028 | CH59: Accepted. Use Form 4400-190 | CI59: 1.5 | CJ59: 0 | CK59: 2025.0407 | CL59: WW | CM59: 1.5 | CN59: Yes | CO59: 1.5 | CP59: No | CQ59: This course gives an in-depth discussion of secondary clarifier state point analysis which is a mathematical model used to predict secondary clarifier performance based on sludge settling characteristics, solids loading rate, surface overflow rate, and return activated sludge rate. Participants can download the model for later use. | CR59: 2023 WWT-018 Secondary Clarifiers | indigowatergroup.ispringmarket.com | CS59: This course gives an in-depth discussion of secondary clarifier state point analysis, which is a mathematical model used to predict secondary clarifier performance. | CT59: All wastewater treatment processes depend on solids/liquid separation for treatment. Understanding how clarifiers work and why they fail is critical knowledge for wastewater operators. | CU59: Advanced | CV59: Wastewater | CW59: Understand that a secondary clarifier can only perform as well as the sludge quality sent to it. | CX59: Calculate the maximum RAS concentration achievable by the secondary clarifier using settleometer results. Optimize the RAS flow rate to achieve maximum thickness and keep blanket depth below 2 ft. | CY59: Understand how changes in influent flow cause a typical clarifier to move between underloaded, overloaded and critically loaded conditions and what happens to the sludge blanket in each case. | CZ59: Calculate the predicted return activated sludge (RAS) concentration given the mixed liquor suspended solids (MLSS) concentration, influent flow, and RAS flow. | DA59: Label each piece of a State Point Analysis graph and explain the origin of each piece and the information they convey. | DB59: Explain why the RAS flow rate does not control the MLSS concentration. | DI59: Attendees should be familiar witth the components and function of secondary clarifiers before taking this course. Attendees should know how to perform a settleometer test before taking this course. | DL59: 6
B60: WWT-019 | C60: 415 | D60: Activated Sludge Process Control Tests and Troubleshooting | E60: S. Innerebner, PhD, PE | F60: Indigo Water Group | G60: 8513 S. Newcombe Way, Littleton, CO 80127 | H60: sidney@indigowatergroup.com | I60: 303-489-9226 | J60: 2025 WWT-019 AS Process Tests Final Quiz | K60: 2023 WWT-019 AS Process Tests Final Quiz | L60: 2022 WWT-019 AS Process Tests Final Quiz | M60: 1 | N60: 1 | O60: 1 | P60: 1 | Q60: 4 | R60: 1 | S60: 1 | T60: 1 | U60: 5 | V60: 1 | W60: 1 | X60: 1 | Y60: 10 | AA60: 29 | AB60: 125 | AC60: 139.5 | AD60: 2.5 | AH60: 0.25 | AI60: Core | AJ60: 25-06019-001 | AK60: 24-06019-001 | AL60: 23-06019-001 | AM60: 22-06019-001 | AN60: 0.25 | AO60: 0 | AP60: 0.25 | AQ60: 0.25 | AR60: 0 | AS60: 0 | AT60: See NV, WY, or WA | AU60: WWT23-3478-T2. 5-G00 | AV60: 2.5 | BB60: 6005-16-11 | BC60: 2016 | BD60: WW and Industrial | BE60: Process | BF60: 2 | BM60: 2.5 | BN60: 2.5 | BO60: 2.5 TC | BP60: 2.5 | BQ60: NV25-032 | BR60: 2.5 | BS60: WW | BT60: Not yet approved. | BU60: OEPA-S579873-OM | BV60: IWG-S4122-OM | BW60: IWG-S412225-OM | BX60: =AN60*10 -> 2.5 | BY60: WW Only | BZ60: R23158 | CA60: 2.5 | CB60: 0 | CC60: 0 | CD60: 0 | CE60: 2.5 | CF60: 0.2 | CG60: ECY25-4029 | CH60: Accepted. Use Form 4400-190 | CI60: 2.5 | CJ60: 0 | CK60: 2025.0408 | CL60: WW | CM60: 2.5 | CN60: Yes | CO60: 2.5 | CP60: No | CQ60: This course discusses various process control tests for activated sludge including: measurement of the clarifier blanket (sludge judge), settleometer, diluted settleometer, sludge volume index, OUR and SOUR as well as three different methods for measuring MLSS concentration. Control charts and CUSUM charts and their uses are discussed. Multiple case studies for troubleshooting are presented. | CR60: 2023 WWT-019 AS Process Tests | indigowatergroup.ispringmarket.com | CS60: Process control tests used for activated sludge process control along with tips for troubleshooting. | CT60: Many wastewater plants use activated sludge to treat wastewater. Operators must know how to collect and interpret process control results. | CU60: Intermediate | CV60: Wastewater | CW60: Explain how trend charts can be effective tools for process control and distinguish between trends and out-of-limit conditions. | CX60: Understand that F:M, MLSS concentration, and SRT are inextricably linked and that good process control (SRT control) is essential for avoiding situations that require troubleshooting. | CY60: Collect a clarifier core sample at the correct location to account for the volume of sludge in a conical bottom tank. | CZ60: Evaluate historic sludge volume index data for trends using a CUSUM (cumulative sum) chart to determine when changes in operating modes occurred. | DA60: Conduct a sludge settleability test using a Mallory settleometer and interpret results from regular settleometer, diluted settleometer, and supernatant comparison tests. Determine if effluent quality issues are related to sludge quality or a deficiency in the clarifier. | DB60: Compare and contrast gravimetric total suspended solids results to centrifuge spin results. | DC60: Conduct a specific oxygen uptake rate test on either activted sludge or an aerobic digester and interpret results. | DD60: Apply a variety of techniques (mass balance, looking for differences, going back to basics) to troubleshoot operational problems. | DI60: Attendees should be familiar with the activated sludge process before taking this course. | DL60: 8
C61: 416 | D61: Membranes for Water and Wastewater Treatment | F61: Indigo Water Group | G61: 8513 S. Newcombe Way, Littleton, CO 80127 | I61: 303-489-9226 | J61: 2025 WWT-031 Membranes Final Quiz | K61: 2023 WWT-031 Membranes Final Quiz | AA61: 0 | AC61: 0 | AD61: 1 | AL61: 23-09378-001 | AM61: None for 2022 | AN61: 0.1 | AO61: 0.1 | AP61: 0.1 | AQ61: 0.1 | AR61: 0 | AS61: 0 | AT61: See NV, WY, or WA | AU61: Not yet approved | AV61: 0 | BB61: Not yet approved | BM61: Not yet approved. | BN61: Not yet approved. | BO61: Not yet approved. | BP61: Not yet approved. | BQ61: NV25-081 | BR61: 1 | BS61: Not yet approved. | BT61: Not yet approved. | BV61: IWG-S4123-OM | BW61: IWG-S412325-OM | BX61: 1 | BY61: Both DW and WW | BZ61: Not yet approved. | CA61: Not yet approved. | CB61: Not yet approved. | CC61: Not yet approved. | CD61: Not yet approved. | CE61: 1 | CF61: 0 | CG61: Not yet approved. | CH61: Accepted. Use Form 4400-190 | CI61: 1 | CJ61: 0 | CK61: Not yet approved. | CL61: Not yet approved. | CM61: Not yet approved. | CN61: Not yet approved. | CO61: Not yet approved. | CP61: Not yet approved. | CV61: Wastewater | DL61: 0
B62: WWT-020 | C62: 417 | D62: Chlorine Disinfection | E62: S. Innerebner, PhD, PE | F62: Indigo Water Group | G62: 8513 S. Newcombe Way, Littleton, CO 80127 | H62: sidney@indigowatergroup.com | I62: 303-489-9226 | J62: 2025 WWT-020 Chlorine Disinfection Final Quiz | K62: 2023 WWT-020 Chlorine Disinfection Final Quiz | L62: 2022 WWT-020 Chlorine Disinfection Final Quiz | M62: 7 | N62: 4 | O62: 6 | P62: 4 | Q62: 4 | R62: 1 | S62: 4 | T62: 4 | U62: 4 | AA62: 38 | AB62: 128 | AC62: 147 | AD62: 2.5 | AE62: Y | AH62: 0.25 | AI62: Core | AJ62: 25-06020-001 | AK62: 24-06020-001 | AL62: 23-06020-001 | AM62: 22-06020-001 | AN62: 0.25 | AO62: 0.25 | AP62: 0.25 | AQ62: 0.25 | AR62: 0.25 | AS62: 0 | AT62: See NV, WY, or WA | AU62: WWT23-3479-T02-G00 | AV62: 2 | BB62: 8035-25-3 | BC62: 2025-03-21 | BD62: All Operators | BE62: Process | BF62: 2.5 | BM62: 2.5 | BN62: 2.5 | BO62: 2.5 TC | BP62: 2.5 | BQ62: NV25-045 | BR62: 2.5 | BS62: WW | BT62: Not yet approved. | BU62: OEPA-B579840-OM | BV62: IWG-B4124-OM | BW62: IWG-B412425-OM | BX62: =AN62*10 -> 2.5 | BY62: Both DW and WW | BZ62: R23159 | CA62: 2.5 | CB62: 0 | CC62: 0 | CD62: 0 | CE62: 2.5 | CF62: 0.2 | CG62: ECY25-4030 | CH62: Accepted. Use Form 4400-190 | CI62: 2.5 | CJ62: 0 | CK62: 2025.0409 | CL62: WW | CM62: 2.5 | CN62: Yes | CO62: 2.5 | CP62: No | CQ62: This wastewater-focused presentation walks the participant through chlorine chemistry, the different forms of chlorine available for disinfection, and chlorine safety. This class devotes time to the safe handling of gaseous and liquid chlorine and reporting requirements under SARA Title III. The class covers recommended doses and contact times for various applications as well as the impact of water chemistry and temperature on disinfection. | CR62: 2023 WWT-020 Wastewater Disinfect | indigowatergroup.ispringmarket.com | CS62: This wastewater-focused presentation walks the participant through chlorine chemistry, the different forms of chlorine available for disinfection, and chlorine safety. | CT62: Chlorine disinfection is used in water and wastewater. Information is directly applicable to all system types. | CU62: Fundamental | CV62: All operators | CW62: Explain the purpose of a fusible plug and recite the melt temperature. | CX62: Describe the products formed when either sodium hypochlorite or calcium hypochlorite solution is mixed with water and the impact on alkalinity. | CY62: Discuss the breakpoint chlorination curve and describe in detail the chemical reactions taking place at each stage of the curve. | CZ62: Explain regulatory requirements for chlorine leaks, how to detect a chlorine leak, and the three types of chlorine repair kits. | DA62: List the characteristics of chlorine gas and write the chemical formulas of the compounds formed when chlorine gas mixes with water. | DI62: No prerequisites for this course. | DL62: 5
B63: WWT-021 | C63: 418 | D63: UV Disinfection | E63: Austin Carnes | F63: Indigo Water Group | G63: 8513 S. Newcombe Way, Littleton, CO 80127 | I63: 303-489-9226 | J63: 2025 WWT-021 UV Disinfection Final Quiz | K63: 2023 WWT-021 UV Disinfection Final Quiz | L63: 2022 WWT-021 UV Disinfection Final Quiz | AA63: 0 | AC63: 0 | AD63: 1.5 | AL63: None for 2023 | AM63: None for 2022 | AT63: See NV, WY, or WA | AU63: Not yet approved | AV63: 0 | BB63: Not yet approved | BM63: Not yet approved. | BN63: Not yet approved. | BQ63: NV25-099 | BR63: 1.5 | BT63: Not yet approved. | BV63: IWG-B4125-OM | BW63: IWG-B412525-OM | BX63: 1.5 | BY63: Both DW and WW | BZ63: Not yet approved. | CA63: Not yet approved. | CB63: Not yet approved. | CC63: Not yet approved. | CD63: Not yet approved. | CF63: 0 | CG63: Not yet approved. | CH63: Accepted. Use Form 4400-190 | CI63: 1.5 | CJ63: 0 | CK63: 2025.041 | CL63: W, WW | CM63: 1.5 | CN63: Yes | CO63: 1.5 | CP63: No | CV63: Wastewater | DL63: 0
B64: WWT-022 | C64: 419 | D64: Introduction to Solids Handling and 503 Regulations | E64: S. Innerebner, PhD, PE | F64: Indigo Water Group | G64: 8513 S. Newcombe Way, Littleton, CO 80127 | H64: sidney@indigowatergroup.com | I64: 303-489-9226 | J64: 2025 WWT-022 Intro to 503 Regs Final Quiz | K64: 2023 WWT-022 Intro to 503 Regs Final Quiz | L64: 2022 WWT-022 Intro to 503 Regs Final Quiz | M64: 4 | N64: 5 | O64: 1 | P64: 2 | Q64: 4 | AA64: 16 | AB64: 77 | AC64: 85 | AD64: 1.5 | AH64: 0.15 | AI64: Core | AJ64: 25-06022-002 | AK64: 24-06022-002 | AL64: 23-06022-002 | AM64: 22-06022-002 | AN64: 0.15 | AO64: 0 | AP64: 0.15 | AQ64: 0 | AR64: 0 | AS64: 0 | AT64: See NV, WY, or WA | AU64: WWT23-3480-T1.5-G00 | AV64: 1.5 | BB64: Not yet approved | BM64: 1.5 | BN64: 1.5 | BO64: 1.5 TC | BP64: 1.5 | BQ64: NV25-061 | BR64: 1.5 | BS64: WW | BT64: Not yet approved. | BU64: OEPA-B579843-OM | BV64: IWG-S4126-OM | BW64: IWG-S412625-OM | BX64: =AN64*10 -> 1.5 | BY64: Both DW and WW | BZ64: R23160 | CA64: 1.5 | CB64: 0 | CC64: 0 | CD64: 0 | CE64: 1.5 | CF64: 0.1 | CG64: ECY25-4031 | CH64: Accepted. Use Form 4400-190 | CI64: 1.5 | CJ64: 0 | CK64: 2025.0411 | CL64: WW | CM64: 1.5 | CN64: Yes | CO64: 1.5 | CP64: Yes | CQ64: Participants will be given an overview of the Biosolids 503 Regulations and their Colorado equivalent including sample calculations for land application. The purpose of solids stabilization and management is emphasized both from a public health perspective and reducing overall operating and disposal costs. | CR64: 2023 WWT-022 Intro to 503 Regs | indigowatergroup.ispringmarket.com | CS64: Participants will be given an overview of the Biosolids 503 Regulations and their Colorado equivalent including sample calculations for land application. | CT64: Most wastewater treatment plants beneficially reuse their biosolids through land application. Operators must understand the regulatory structure that governs beneficial reuse. | CU64: Intermediate | CV64: Wastewater | CW64: Select a sludge treatment process to produce either Class A or Class B biosolids and meet the vector attraction reduction requirement. | CX64: List minimum sampling and analysis requirements for finished biosolids and land application sites. | CY64: Understand that biosolids usage requires generators and anyone who changes biosolids quality to be permitted. | CZ64: Compare and contrast pathogen and contaminant levels allowed for Class A and Class B biosolids. | DA64: Properly land apply or landfill finished biosolids in accordance with setback requirements and other restrictions. | DI64: No prerequistes are required for this course. | DL64: 5
B65: WWT-023 | C65: 420 | D65: Aerobic and Anaerobic Digestion | E65: S. Innerebner, PhD, PE | F65: Indigo Water Group | G65: 8513 S. Newcombe Way, Littleton, CO 80127 | H65: sidney@indigowatergroup.com | I65: 303-489-9226 | J65: 2025 WWT-023 Digestion Final Quiz | K65: 2023 WWT-023 Digestion Final Quiz | L65: 2022 WWT-023 Digestion Final Quiz | M65: 1 | N65: 4 | O65: 4 | P65: 1 | Q65: 1 | R65: 1 | S65: 4 | T65: 4 | U65: 4 | V65: 1 | W65: 1 | AA65: 26 | AB65: 122 | AC65: 135 | AD65: 3 | AE65: Partial | AH65: 0.3 | AI65: Core | AJ65: 25-06023-001 | AK65: 24-06023-001 | AL65: 23-06023-001 | AM65: 22-06023-001 | AN65: 0.3 | AO65: 0 | AP65: 0.3 | AQ65: 0.3 | AR65: 0 | AS65: 0 | AT65: See NV, WY, or WA | AU65: WWT23-3481-T2.5-G00 | AV65: 2.5 | BB65: 8036-25-3 | BC65: 2025-03-21 | BD65: WW and Industrial | BE65: Process | BF65: 3 | BM65: 3 | BN65: 3 | BO65: 2.0 TC | BP65: 2 | BQ65: NV25-037 | BR65: 3 | BS65: WW | BT65: Not yet approved. | BU65: OEPA-S579844-OM | BV65: IWG-S4127-OM | BW65: IWG-S412725-OM | BX65: =AN65*10 -> 3 | BY65: WW Only | BZ65: R23161 | CA65: 3 | CB65: 0 | CC65: 0 | CD65: 0 | CE65: 3 | CF65: 0.3 | CG65: ECY25-4032 | CH65: Accepted. Use Form 4400-190 | CI65: 3 | CJ65: 0 | CK65: 2025.0412 | CL65: WW | CM65: 3 | CN65: Yes | CO65: 3 | CP65: No | CQ65: This course focuses specifically on aerobic and anaerobic digestion with a focus on biology, components (parts and purpose including lids, gas collection, mixing techniques, heat exchangers, and more), typical design and operating criteria, indications of souring, and process control calculations specific to anaerobic digestion. Course closes with two case studies to walk operators through two troubleshooting scenarios. | CR65: 2023 WWT-023 Solids Digestion | indigowatergroup.ispringmarket.com | CS65: This course focuses specifically on aerobic and anaerobic digestion with a focus on biology, components (parts and purpose), and troubleshooting. | CT65: Operators must understand the fundamentals of aerobic and anaerobic digestion to effectively operate these processes. | CU65: Intermediate | CV65: Wastewater | CW65: List typical gas production values for anaerobic digesters and give two reasons why digester gas has a lower heating value than natural gas. | CX65: Describe anaerobic digester operation and the importance of various operating parameters including temperature and loading rate. | CY65: Review operating data, compare to standard operating conditions, and diagnose the most likely cause for an upset condition. | CZ65: Understand the importance of managing high-ammonia recycle streams from anaerobic digestion and dewatering processes with respect to maintaining stable nitrification on the liquid stream side of the WWTP and preventing bleed-through of high ammonia to the final effluent. | DA65: List the requirements for meeting Class A or Class B biosolids and vector attraction reduction requirements for land application of biosolids. | DB65: Compare aerobic digestion to the activated sludge process and list two common operational issues and their solutions. | DC65: Describe the major components of anaerobic digesters and the function of each. | DI65: No prerequistes are required for this course. | DL65: 7
B66: WWT-024 | C66: 421 | D66: Belt Filter Presses | E66: S. Innerebner, PhD, PE | F66: Indigo Water Group | G66: 8513 S. Newcombe Way, Littleton, CO 80127 | H66: sidney@indigowatergroup.com | I66: 303-489-9226 | J66: 2025 WWT-024 Belt Filter Presses Final Quiz | K66: 2023 WWT-024 Belt Filter Presses Final Quiz | L66: 2022 WWT-024 Belt Filter Presses Final Quiz | M66: 4 | N66: 5 | O66: 4 | P66: 4 | Q66: 4 | AA66: 21 | AB66: 94 | AC66: 104.5 | AD66: 2 | AH66: 0.2 | AI66: Core | AJ66: 25-06024-001 | AK66: 24-06024-001 | AL66: 23-06024-001 | AM66: 22-06024-001 | AN66: 0.2 | AO66: 0.2 | AP66: 0.2 | AQ66: 0.2 | AR66: 0 | AS66: 0 | AT66: See NV, WY, or WA | AU66: WWT23-3482-T02-G00 | AV66: 2 | BB66: 8037-25-3 | BC66: 2025-03-21 | BD66: All WW, All IWW, WT 3, 4 Operators | BE66: Process | BF66: 2 | BM66: 2 | BN66: 2 | BO66: 2.0 TC | BP66: 2 | BQ66: NV25-040 | BR66: 2 | BS66: WW | BT66: Not yet approved. | BU66: OEPA-B579845-OM | BV66: IWG-B4128-OM | BW66: IWG-B412825-OM | BX66: 2 | BY66: Both DW and WW | BZ66: R23162 | CA66: 2 | CB66: 0 | CC66: 0 | CD66: 0 | CE66: 2 | CF66: 0.2 | CG66: ECY25-4033 | CH66: Accepted. Use Form 4400-190 | CI66: 2 | CJ66: 0 | CK66: 2025.0413 | CL66: WW | CM66: 2 | CN66: Yes | CO66: 2 | CP66: No | CQ66: This course is devoted to operation and maintenance of belt filter presses. It begins with a thorough discussion of belt filter press theory followed by a close examination of the components of the press itself. The second half of the course is devoted to process control calculations specific to belt filter presses followed by a section on troubleshooting. | CR66: 2023 WWT-024 Belt Filter Presses | indigowatergroup.ispringmarket.com | CS66: This course is devoted to operation and maintenance of belt filter presses. Theory of operation, components, function, and troubleshooting. | CT66: Operators must understand the fundamentals of belt filter presses to effectively operate them and achieve high solids capture and high percent solids cake. | CU66: Fundamental | CV66: Wastewater | CW66: List each of the dewatering zones in a belt filter press and give the expected solids concentration at the end of each zone. | CX66: Describe the major components of a belt filter press and give the function of each. | CY66: Understand the three major classifications of polymers and flocculants and the procedure for optimizing polymer dose. | CZ66: Given an operational problem or operational data from a belt filter press, suggest the most likely cause and one other potential cause. (Troubleshooting) | DA66: Calculate process control parameters including: percent capture, total run time required, and quantity of finished cake produced. | DI66: No prerequistes are required for this course. | DL66: 5
B67: WWT-025 | C67: 422 | D67: Centrifuges | E67: Ken Schnaars, PE | F67: Brown and Caldwell | G67: 501 Great Circle Rd, Suite 150, Nashville, TN 37228 | H67: kschnaars@brwncald.com | I67: 615-430-2381 | J67: 2025 WWT-025 Centrifuges Final Quiz | K67: 2023 WWT-025 Centrifuges Final Quiz | L67: 2022 WWT-025 Centrifuges Final Quiz | M67: 5 | N67: 5 | O67: 6 | P67: 4 | Q67: 1 | R67: 9 | AA67: 30 | AB67: 92 | AC67: 107 | AD67: 2 | AH67: 0.2 | AI67: Core | AJ67: 25-06025-001 | AK67: 24-06025-001 | AL67: 23-06025-001 | AM67: 22-06025-001 | AN67: 0.2 | AO67: 0.2 | AP67: 0.2 | AQ67: 0.2 | AR67: 0 | AS67: 0 | AT67: See NV, WY, or WA | AU67: WWT23-3483-T02-G00 | AV67: 2 | BB67: 8038-25-3 | BC67: 2025-03-21 | BD67: All WW, All IWW, WT 3, 4 Operators | BE67: Process | BF67: 2 | BM67: 2 | BN67: 2 | BO67: 2.0 TC | BP67: 2 | BQ67: NV25-043 | BR67: 2 | BS67: WW | BT67: Not yet approved. | BU67: OEPA-S579846-OM | BV67: IWG-S4129-OM | BW67: IWG-S412925-OM | BX67: =AN67*10 -> 2 | BY67: WW Only | BZ67: R23163 | CA67: 2 | CB67: 0 | CC67: 0 | CD67: 0 | CE67: 2 | CF67: 0.2 | CG67: ECY25-4034 | CH67: Accepted. Use Form 4400-190 | CI67: 2 | CJ67: 0 | CK67: 2025.0414 | CL67: WW | CM67: 2 | CN67: Yes | CO67: 2 | CP67: No | CQ67: This course is devoted to operation and maintenance of centrifuges. It begins with a thorough discussion of centrifugal dewatering theory followed by a close examination of the equipment components. The second half of the course is devoted to process control calculations and adjustments specific to centrifuges followed by a section on troubleshooting. | CR67: 2023 WWT-025 Centrifuge Operation | indigowatergroup.ispringmarket.com | CS67: This course is devoted to operation and maintenance of centrifuges. Theory, components, function, and troubleshooting. | CT67: Operators must understand the fundamentals of centrifuges to effectively operate them and achieve high solids capture and high percent solids cake. | CU67: Intermediate | CV67: Wastewater | CW67: Calculate centrifuge loading rate and percent capture. | CX67: Describe the major components of a centrifuge and give the function of each component as well as describing ancillary equipment. | CY67: Explain typical startup and shutdown procedures for a centrifuge. | CZ67: Explain the impact of process control variables including: pond setting, making seal, differential speed, load control, and differential speed control. | DA67: Troubleshoot common operational problems. | DB67: Perform common maintenance tasks for a typical centrifuge. | DC67: Compare and contrast the separation of solids in a centrifuge to secondary clarifier operation. List the major components of the centrifuge and compare to the major components of a clarifier. | DI67: No prerequistes are required for this course. | DL67: 7
B68: WWT-031 | D68: Gravity and Dissolved Air Floatation Thickeners | E68: Ken Schnaars, PE | F68: Brown and Caldwell | G68: 501 Great Circle Rd, Suite 150, Nashville, TN 37228 | H68: kschnaars@brwncald.com | I68: 615-430-2381 | J68: 2025 WWT-031 DAFTs Final Quiz | M68: 7 | N68: 5 | O68: 8 | P68: 5 | Q68: 5 | R68: 4 | S68: 5 | T68: 7 | AA68: 46 | AB68: =60+43 -> 103 | AC68: 126 | AD68: 2 | AH68: 0.2 | AI68: Core | AJ68: 25-10671-001 | AK68: 24-10671-001 | AN68: 0.2 | AO68: 0 | AP68: 0.2 | AQ68: 0.2 | AR68: 0 | AS68: 0 | AT68: See NV, WY, or WA | AU68: Not yet approved | AV68: 0 | BB68: 8042-25-3 | BC68: 2025-03-21 | BD68: All WW, All IWW, WT 3, 4 Operators | BE68: Process | BF68: 2 | BM68: 2 | BN68: 2 | BO68: 2.0 TC | BP68: 2 | BQ68: NV25-056 | BR68: 2 | BS68: WW | BT68: Not yet approved. | BV68: IWG-S4137-OM | BW68: IWG-S413725-OM | BX68: 2 | BY68: WW Only | BZ68: R25218 | CA68: 2 | CB68: 0 | CC68: 0 | CD68: 0 | CE68: 2 | CF68: 0.2 | CG68: ECY25-4035 | CH68: Accepted. Use Form 4400-190 | CI68: 2 | CJ68: 0 | CK68: 2025.042 | CL68: WW | CM68: 2 | CN68: Yes | CO68: 2 | CP68: No | CQ68: The first 30 minutes of this course discusses gravity thickeners, their theory of operation, their components, operation, and troubleshooting. The remainder of the course covers dissolved air floatation thickeners (DAFTs) including: theory of operation, components of both circular and rectangular DAFTs, typical operating parameters for loading and process control, pressurization system components and function, pump types, polymer systems, process control, and basic troubleshooting. | CR68: 2024 WWT-031 DAF Thickening | indigowatergroup.ispringmarket.com | CS68: Operation and maintenance of gravity thickeners and dissolved air floatation thickeners (DAFTs) | CT68: Operators must understand the fundamentals of fravity thickeners and dissolved air floatation thickeners to effectively operate and troubleshoot them. Both are used extensively for solids handling in wastewater plants. | CU68: Fundamental | CV68: Wastewater | CW68: Describe and give the function of the major components of gravity thickeners and dissolved air floation thickeners. | CX68: Explain typical startup and shutdown procedures for gravity thickeners and DAFTs. | CY68: Explain the impact of process control variables. | CZ68: Troubleshoot common operational problems. | DA68: Calculate process control parameters including: solids loading rate, hydraulic loading rate, percent capture, and volume of float produced. | DI68: No prerequistes are required for this course. | DL68: 5
B69: WWT-026 | C69: 423 | D69: Odor Control | E69: Mike Lutz, PE | F69: Dewberry Engineering (retired) | G69: 990 S. Broadway, Suite 400, Denver, CO 80209 | H69: info@indigowatergroup.com | I69: 303-807-9985 | J69: 2025 WWT-026 Odor Control Final Quiz | K69: 2023 WWT-026 Odor Control Final Quiz | L69: 2022 WWT-026 Odor Control Final Quiz | M69: 4 | N69: 4 | O69: 4 | P69: 2 | Q69: 2 | R69: 4 | S69: 1 | T69: 4 | AA69: 25 | AB69: 95 | AC69: 107.5 | AD69: 2 | AH69: 0.2 | AI69: Core | AJ69: 25-06026-001 | AK69: 24-06026-001 | AL69: 23-06026-001 | AM69: 22-06026-001 | AN69: 0.2 | AO69: 0 | AP69: 0.2 | AQ69: 0.2 | AR69: 0 | AS69: 0.2 | AT69: See NV, WY, or WA | AU69: WWT23-3484-T00-G02 | AV69: 0 | AW69: 2 | BB69: 8039-25-3 | BC69: 2025-03-21 | BD69: All Operators | BE69: Non-Process | BF69: 2 | BM69: 2 | BN69: 2 | BO69: 2.0 TC | BP69: 2 | BQ69: NV25-084 | BR69: 2 | BS69: WW | BT69: Not yet approved. | BU69: OEPA-S579851-OM | BV69: IWG-S4132-OM | BW69: IWG-S413225-OM | BX69: =AN69*10 -> 2 | BY69: WW Only | BZ69: R23165 | CA69: 2 | CB69: 0 | CC69: 0 | CD69: 2 | CE69: 2 | CF69: 0.2 | CG69: ECY25-4036 | CH69: Accepted. Use Form 4400-190 | CI69: 2 | CJ69: 0 | CK69: 2025.0415 | CL69: WW | CM69: 2 | CN69: Yes | CO69: 2 | CP69: No | CQ69: This presentation discusses the sources of odors in water and wastewater treatment, the chemical composition of different odor causing compounds, and methods for odor control. Odors may be controlled by preventing formation, masking, filtering, or processing biologically. | CR69: 2023 WWT-026 Odor Control | indigowatergroup.ispringmarket.com | CS69: This presentation discusses the sources of odors in water and wastewater treatment, the chemical composition of odor causing compounds, and methods for odor control. | CT69: Wastewater and collection systems have the potential to generate odors. Understanding why odors are generated and how to control them is useful for operators. | CU69: Intermediate | CV69: Wastewater | CW69: Understand that most odor causing compounds in wastewater contain sulfur and are generated through biological activity. | CX69: Be aware that some odors -- hydrogen sulfide and carbonyl sulfide -- are significant health and safety risks for wastewater workers. | CY69: Describe methods for measuring odors and odor causing compounds listing them in order of least accurate to most accurate. | CZ69: Be familiar with multiple types of odor control technology including chemical addition, ventilation, carbon filters, biofilters, and air ionization. | DA69: Understand that perception of odor is significantly different from one person to another. | DI69: No prerequistes are required for this course. | DL69: 5
B70: WWT-027 | C70: 424 | D70: Treatment of Metal Wastestreams | E70: Gary Parham, PE, CWP | F70: Lockheed Martin | G70: PO Box 179, M/A H1582, Denver, CO 80201-0179 | H70: gary.l.parham@lmco.com | I70: 720-220-1442 | J70: 2025 WWT-027 Metals Precip Final Quiz | K70: 2023 WWT-027 Metals Precip Final Quiz | L70: 2022 WWT-027 Metals Precip Final Quiz | M70: 1 | N70: 1 | O70: 1 | P70: 1 | Q70: 1 | R70: 1 | S70: 1 | T70: 1 | U70: 1 | V70: 1 | W70: 1 | X70: 1 | Y70: 4 | AA70: 16 | AB70: 68 | AC70: 76 | AD70: 1.5 | AH70: 0.1 | AI70: Core | AJ70: 25-06032-001 | AK70: 24-06032-001 | AL70: 23-06032-001 | AM70: 22-06032-001 | AN70: 0.15 | AO70: 0.15 | AP70: 0.15 | AQ70: 0.15 | AR70: 0 | AS70: 0 | AT70: See NV, WY, or WA | AU70: WWT23-3485-T1.5-G00 | AV70: 1.5 | BB70: 8040-25-3 | BC70: 2025-03-21 | BD70: All Industrial Operators | BE70: Process | BF70: 1.5 | BM70: 1.5 | BN70: 1.5 | BO70: 1.5 TC | BP70: 1.5 | BQ70: NV25-094 | BR70: 1.5 | BS70: WW | BT70: Not yet approved. | BU70: OEPA-S579852-OM | BV70: IWG-S4133-OM | BW70: IWG-S413325-OM | BX70: =AN70*10 -> 1.5 | BY70: WW Only | BZ70: R23164 | CA70: 1.5 | CB70: 0 | CC70: 0 | CD70: 0 | CE70: 1.5 | CF70: 0.1 | CG70: ECY25-4037 | CH70: Accepted. Use Form 4400-190 | CI70: 1.5 | CJ70: 0 | CK70: 2025.0416 | CL70: WW | CM70: 1.5 | CN70: Yes | CO70: 1.5 | CP70: No | CQ70: This course is meant as an introduction to metals precipitation chemistry, pH control, cyanide chemistry. Learn industrial chemistry used to remove heavy metals and cyanide from different waste streams prior to discharge. How low can you go? | CR70: 2023 WWT-027 Metal Waste Streams | indigowatergroup.ispringmarket.com | CS70: This course is meant as an introduction to metals precipitation chemistry, pH control, cyanide chemistry. | CT70: Applicable to industrial wastewater operators and other operators who may be using precipitation chemistry to meet pretreatment or discharge permit limits. | CU70: Fundamental | CV70: Wastewater / Industrial | CW70: Given a list of heavy metals, determine which metals will be precipitated first when using hydroxide as the titrant. | CX70: Describe the circumstances when sulfide precipitation, carbonate precipitation, and iron coprecipitation would be used/preferred over other types of precipitation chemistry. | CY70: Be familiar with vocabulary terms associated with metals precipitation chemistry. | CZ70: Explain why hexavalent chromium must be converted to the trivalent form prior to precipitation. | DA70: Explain what a chelating agent is and how it functions to sequester metals | DB70: Understand cyanide destruction chemistry and why cyanide destruction must be done prior to hexavalent chromium removal. | DI70: Attendees should complete the Basic Chemistry course or have a working knowledge of the periodic table and chemical equations prior to taking this course. | DL70: =COUNTA(CW70:DH70) -> 6
B71: WWT-028 | C71: 425 | D71: Completing the Discharge Monitoring Report (under construction) | E71: S. Innerebner, PhD, PE | F71: Indigo Water Group | G71: 8513 S. Newcombe Way, Littleton, CO 80127 | I71: 303-489-9226 | J71: 2025 WWT-028 Complete DMR Final Quiz | K71: 2023 WWT-028 Complete DMR Final Quiz | AA71: 0 | AC71: 0 | AD71: 1 | AH71: 0 | AI71: Not approved. | AL71: None for 2023 | AM71: None for 2022 | AT71: See NV, WY, or WA | AU71: Not yet approved | AV71: 0 | BB71: Not Approved. | BD71: Not Approved. | BM71: Not yet approved. | BN71: Not yet approved. | BO71: Not Approved. | BP71: Not Approved. | BQ71: NV25-048 | BR71: 1 | BT71: Not yet approved. | BU71: Not yet approved. | BV71: IWG-S4134-OM | BW71: IWG-S413425-OM | BX71: 1 | BY71: WW Only | BZ71: Not yet approved. | CA71: Not yet approved. | CB71: Not yet approved. | CC71: Not yet approved. | CD71: Not yet approved. | CE71: 1 | CF71: 0 | CG71: Not yet approved. | CH71: Accepted. Use Form 4400-190 | CI71: 1 | CJ71: 0 | CK71: 2025.0417 | CL71: WW | CM71: 1 | CN71: Yes | CO71: 1 | CP71: No | CQ71: This presentation walks attendees through completion of a sample DMR from a fictional facility. Calculations are done in accordance with the DMR Guidance Document published by the State WQCD in January 2014. Terminology and proper units are discussed. | CU71: Fundamental | CV71: Wastewater | DL71: 0
B72: WWT-029 | C72: 426 | D72: How Did CDPHE Determine My Permit Limits? | E72: S. Innerebner, PhD, PE | F72: Indigo Water Group | G72: 8513 S. Newcombe Way, Littleton, CO 80127 | H72: sidney@indigowatergroup.com | I72: 303-489-9226 | J72: 2025 WWT-029 Permit Limits Final Quiz | K72: 2023 WWT-029 Permit Limits Final Quiz | L72: 2022 WWT-029 Permit Limits Final Quiz | M72: 4 | N72: 4 | O72: 4 | P72: 2 | Q72: 4 | R72: 4 | S72: 4 | T72: 1 | AA72: 27 | AB72: 95 | AC72: 108.5 | AD72: 2 | AE72: Y | AH72: 0 | AI72: Not approved. | AJ72: 25-06033-001 | AK72: 24-06033-001 | AL72: 23-06033-001 | AM72: 22-06033-001 | AN72: 0.2 | AO72: 0.2 | AP72: 0.2 | AQ72: 0.2 | AR72: 0 | AS72: 0 | AT72: See NV, WY, or WA | AU72: WWT23-3486-T00-G02 | AV72: 0 | AW72: 2 | BB72: Not Approved. | BC72: Not Approved. | BD72: Not Approved. | BE72: Not Approved. | BF72: 0 | BM72: 2 | BN72: 2 | BO72: Not Approved. | BP72: Not Approved. | BQ72: NV25-057 | BR72: 2 | BS72: WW | BT72: Not yet approved. | BU72: Not approved. | BV72: IWG-S4135-OM | BW72: IWG-S413525-OM | BX72: 2 | BY72: WW Only | BZ72: R23166 | CA72: 2 | CB72: 0 | CC72: 0 | CD72: 0 | CE72: 2 | CF72: 0.2 | CG72: ECY25-4038 | CH72: Accepted. Use Form 4400-190 | CI72: 2 | CJ72: 0 | CK72: 2025.0418 | CL72: WW | CM72: 2 | CN72: Yes | CO72: 2 | CP72: No | CQ72: Discharge permit limits and sampling requirements are often a source of mystery to treatment plant operators and many feel the State is arbitrary in deciding which limits apply to which facility. This feeling is exacerbated when operators compare permits to nearby facilities and discover that permit limits and requirements can be quite different for facilities that are only a mile or two apart. This presentation walks through the regulations used to set discharge permit limits, discusses the reasons for different limits, low flow calculations, mass balances in the stream, designated uses, and some of the State policies used when writing a permit. After watching this presentation, an operator should be able to trace the source and rational for each limit in their discharge permit. | CR72: 2023 WWT-029 NPDES Permit Limits | indigowatergroup.ispringmarket.com | CS72: Learn how NPDES permit limits are determined using technology based limits, water quality based standards, and in-stream dilution factors. | CT72: Understanding where permit limits originate can assist operators in successfully negotiating permit renewals. | CU72: Advanced | CV72: Wastewater | CW72: Understand that some limits are the same for all domestic facilities. | CX72: Explain why water quality based standards vary from one stream segment to the next. | CY72: Compare and contrast metals speciation - D, PD, TR, and T. | CZ72: Explain how discharge permit limits are influenced by water quality in the receiving stream and low flows. | DA72: Understand that discharge permit limits may be further restricted by antidegradation. | DB72: Using water quality policy 20, determine sampling frequency requirements based on past permit compliance. | DI72: No prerequistes are required for this course. | DL72: 6
B73: WWT-030 | D73: MRT for Wastewater Treatment and Collection Systems | E73: S. Innerebner, PhD, PE | F73: Indigo Water Group | G73: 8513 S. Newcombe Way, Littleton, CO 80127 | H73: sidney@indigowatergroup.com | I73: 303-489-9226 | J73: 2025 Post-Quiz for Wastewater MRT | K73: 2023 Post-Quiz for Wastewater MRT | L73: 2022 Post-Quiz for Wastewater MRT | M73: 10 | N73: 2 | O73: 3 | P73: 2 | Q73: 2 | R73: 2 | S73: 3 | T73: 2 | U73: 3 | V73: 3 | W73: 10 | AA73: 42 | AB73: =60+56 -> 116 | AC73: 137 | AD73: 2.5 | AE73: Y | AH73: 0 | AI73: Not approved. | AJ73: 25-06840-002 | AK73: 24-06840-002 | AL73: 23-06840-002 | AM73: 22-06840-002 | AN73: 0.25 | AO73: 0 | AP73: 0.25 | AQ73: 0.25 | AR73: 0 | AS73: 0.25 | AT73: See NV, WY, or WA | AU73: WWT23-3487-T00-G2.5 | AV73: 0 | AW73: 2.5 | BB73: 8041-25-3 | BC73: 2025-03-21 | BD73: WW and Industrial | BE73: Non-Process | BF73: 2.5 | BM73: 2.5 | BN73: 2.5 | BO73: Not Approved. | BP73: Not Approved. | BQ73: NV25-082 | BR73: 2.5 | BS73: Not Approved | BT73: Not Approved | BV73: IWG-S4136-OM | BW73: IWG-S413625-OM | BX73: 2.5 | BY73: WW Only | BZ73: R23167 | CA73: 2.5 | CB73: 0 | CC73: 0 | CD73: 2.5 | CE73: 2.5 | CF73: 0.2 | CG73: ECY25-4039 | CH73: Accepted. Use Form 4400-190 | CI73: 2.5 | CJ73: 0 | CK73: 2025.0419 | CL73: WW, C | CM73: 2.5 | CN73: Yes | CO73: 2.5 | CP73: Yes | CQ73: This course fulfills the requirement under Colorado Regulation 100 for all operators to complete a regulatory training course that matches their certification type prior to renewing a certification, applying to sit for a certification exam, or when requesting reciprocity from another state or agency. | CR73: 2023 WWT-030 Wastewater MRT Cours | indigowatergroup.ispringmarket.com | CS73: This course is approved to meet the minimum regulatory training (MRT) requirement for wastewater, industrial wastewater, and collection system operators in Colorado. | CT73: Wastewater operators must comply with the terms of their discharge permit which requires an understanding of the permit and supporting regulatory structure. | CU73: Fundamental | CV73: Wastewater and Collections | CW73: Understand that Clean Water Act Rules are applied in Colorado through the Colorado Water Quality Control Act. | CX73: Understand that direct dischargers are permitted through the Colorado NPDES system. | CY73: Understand that dischargers must self-monitor and self-report. | CZ73: Explain how discharge permit limits are influenced by water quality in the receiving stream and low flows. | DA73: Determine the types and frequencies of samples to collect from reading a permit. | DB73: Know where to find approved testing methods. | DC73: Understand the importance of monitoring and maintaining the collection system. | DD73: Explain the Federal Pretreatment Program and how it applies to significant and categorical dischargers. | DE73: Understand the 503 regulations and the permitting and reporting requirements for land application of biosolids. | DI73: No prerequistes are required for this course. | DL73: 9
D74: Water Treatment & Distribution Topics
B75: WATER-001 | C75: 427 | D75: Introduction to Small Water Systems | E75: Josh Baile, MBA, CWP | F75: Hydrolysis | G75: 17191 E. Ida Place, Centennial, CO 80115 | H75: coachbaile@outlook.com | I75: 303-551-5176 | J75: 2025 WAT-001 Intro to Small Water Systems Final Quiz | K75: 2023 WAT-001 Intro to Small Water Systems Final Quiz | L75: 2022 WAT-001 Intro to Small Water Systems Final Quiz | M75: 1 | N75: 1 | O75: 1 | P75: 1 | Q75: 1 | R75: 1 | S75: 5 | AA75: 11 | AB75: 76 | AC75: 81.5 | AD75: 1 | AE75: Y | AH75: 0.15 | AI75: Drinking Water Core | AJ75: 25-06034-002 | AK75: 24-06034-002 | AL75: 23-06034-002 | AM75: 22-06034-002 | AN75: 0.1 | AO75: 0.1 | AP75: 0 | AQ75: 0 | AR75: 0.1 | AS75: 0 | AT75: See NV, WY, or WA | AU75: WWT23-3454-T00-G1.5 | AV75: 0 | AW75: 1.5 | BB75: 8007-25-3 | BC75: 2025-03-21 | BD75: All W and D | BE75: Non-Process | BF75: 1 | BM75: 0 | BN75: 0 | BO75: 1.5 TC | BP75: 1.5 | BQ75: NV22-142 | BR75: 0 | BS75: -- | BT75: Not yet approved. | BU75: OEPA-D88456757-OM | BV75: IWG-D5101-OM | BW75: IWG-D510125-OM | BX75: =AN75*10 -> 1 | BY75: DW Only | BZ75: R23168 | CA75: 0 | CB75: 1.5 | CC75: 1.5 | CD75: 0 | CE75: Not Approved. | CF75: 0 | CG75: Not yet approved. | CH75: Accepted. Use Form 4400-190 | CI75: 0 | CJ75: 1 | CK75: 2025.0375 | CL75: W, D | CM75: 1 | CN75: Yes | CO75: 1.5 | CP75: No | CQ75: This is part 1 of a series of on-line training classes taught from ACRP's book "Introduction to Small Water Systems". This brief introduction explores the following topics: properties of water, distribution of water on planet earth, the hydrologic cycle, uses of water, basic types of water systems, a history of water treatment and distribution, classification of water systems, and definitions of typical small water system types. | CR75: 2023 WAT-001 Small Water Systems | indigowatergroup.ispringmarket.com | CS75: This introduction to small water systems covers major components of water systems and the goals of water treatment. | CT75: Understanding the water cycle is important for source water protection. Knowing the major components of water systems is required for water and distribution system operators. | CU75: Fundamental | CV75: Drinking Water and Distribution | CW75: List the steps in the hydrologic cycle and briefly describe each. | CX75: Define groundwater, surface water, and groundwater under direct influence of surface water. List some properties of each. | CY75: List the major categories of water usage in the United States. | CZ75: Explain why water usage tends to have a diurnal pattern. | DA75: List the goals of all water treatment and distribution systems: to protect public health by providing water that is reliable, safe (potable), and palatable. | DB75: Define log removal. | DC75: Explain how water systems are classified and define what constitutes a public water system, community water system, and non-community water system. | DI75: No prerequistes are required for this course. | DL75: 7
B76: WATER-002 | C76: 428 | D76: Water Sources Part 1 | E76: Josh Baile, MBA, CWP | F76: Hydrolysis | G76: 17191 E. Ida Place, Centennial, CO 80115 | H76: coachbaile@outlook.com | I76: 303-551-5176 | J76: 2025 WAT-002 Sources Part 1 Final Quiz | K76: 2023 WAT-002 Sources Part 1 Final Quiz | L76: 2022 WAT-002 Sources Part 1 Final Quiz | M76: 1 | N76: 4 | O76: 1 | P76: 1 | Q76: 5 | R76: 4 | S76: 5 | AA76: 21 | AB76: 70 | AC76: 80.5 | AD76: 1.5 | AH76: 0.15 | AI76: Drinking Water Core | AJ76: 25-06035-001 | AK76: 24-06035-001 | AL76: 23-06035-001 | AM76: 22-06035-001 | AN76: 0.15 | AO76: 0.15 | AP76: 0 | AQ76: 0 | AR76: 0.15 | AS76: 0 | AT76: See NV, WY, or WA | AU76: WWT23-3455-T00-G1.5 | AV76: 0 | AW76: 1.5 | BB76: 8008-25-3 | BC76: 2025-03-21 | BD76: All W and D | BE76: Non-Process | BF76: 1.5 | BM76: 0 | BN76: 0 | BO76: 1.5 TC | BP76: 1.5 | BQ76: NV22-143 | BR76: 0 | BS76: -- | BT76: Not yet approved. | BU76: OEPA-D88456761-OM | BV76: IWG-D5102-OM | BW76: IWG-D510225-OM | BX76: 1.5 | BY76: DW Only | BZ76: R23169 | CA76: 0 | CB76: 1.5 | CC76: 1.5 | CD76: 0 | CE76: Not Approved. | CF76: 0 | CG76: Not yet approved. | CH76: Accepted. Use Form 4400-190 | CI76: 0 | CJ76: 1.5 | CK76: 2025.0376 | CL76: W | CM76: 1.5 | CN76: Yes | CO76: 1.5 | CP76: No | CQ76: This is part 2 of a series of on-line training classes taught from ACRP's book "Introduction to Small Water Systems". Water Sources is broken into two on-line training courses labeled as Part 1 and Part 2. Part 1 discusses surface water sources, raw water storage (reservoirs and tanks), source water management, source water quality problems, reservoir management, stratification of reservoirs, and surface water intake structures. | CR76: 2023 WAT-002 Water Sources Part 1 | indigowatergroup.ispringmarket.com | CS76: Part 1 discusses surface water sources, raw water storage, source water management, source water quality problems, reservoir management, water quality problems, and more. | CT76: Water treatment plant operators are responsible for managing reservoirs and protecting surface water supplies from contamination. | CU76: Fundamental | CV76: Drinking Water | CW76: Recognize differences in water quality characteristics between groundwater and surface water sources. | CX76: List advantages and disadvantages of using surface water. | CY76: Explain why one surface water source may be preferred over another. | CZ76: Describe physical, chemical, and biological characteristics of source water. | DA76: Define reservoir management program. | DB76: List the three types of photosynthetic organisms present in reservoirs. | DC76: Understand why algae blooms occur in reservoirs and how to control / mitigate them. | DD76: Recognize that taste and odor problems are often related to different types of algae blooms. | DE76: Explain the impacts of algae on reservoir water quality. | DF76: Explain why turnover events occur and how to mitigate them. | DG76: Describe the different types of water intake structures. | DI76: No prerequistes are required for this course. | DL76: 11
B77: WATER-003 | C77: 429 | D77: Water Sources Part 2 | E77: S. Innerebner, PhD, PE | F77: Indigo Water Group | G77: 8513 S. Newcombe Way, Littleton, CO 80127 | H77: sidney@indigowatergroup.com | I77: 303-489-9226 | J77: 2025 WAT-003 Sources Part 2 Final Quiz | K77: 2023 WAT-003 Sources Part 2 Final Quiz | L77: 2022 WAT-003 Sources Part 2 Final Quiz | M77: Q4 | N77: Q4 | O77: Q4 | P77: Q3 | Q77: Q4 | AA77: 19 | AB77: 59 | AC77: 68.5 | AD77: 1 | AE77: Y | AF77: Y | AG77: Y | AH77: 0.1 | AI77: Drinking Water Core | AJ77: 25-06036-001 | AK77: 24-06036-001 | AL77: 23-06036-001 | AM77: 22-06036-001 | AN77: 0.1 | AO77: 0.1 | AP77: 0 | AQ77: 0.1 | AR77: 0.1 | AS77: 0 | AT77: See NV, WY, or WA | AU77: WWT23-3456-T00-G01 | AV77: 0 | AW77: 1 | BB77: 8009-25-3 | BC77: 2025-03-21 | BD77: All W and D | BE77: Non-Process | BF77: 1 | BM77: 0 | BN77: 0 | BO77: 1.0 TC | BP77: 1 | BQ77: NV22-144 | BR77: 0 | BS77: -- | BT77: Not yet approved. | BU77: OEPA-D88466608-OM | BV77: IWG-D5103-OM | BW77: IWG-D510325-OM | BX77: 1 | BY77: DW Only | BZ77: R23170 | CA77: 0 | CB77: 1 | CC77: 1 | CD77: 0 | CE77: Not Approved. | CF77: 0 | CG77: Not yet approved. | CH77: Accepted. Use Form 4400-190 | CI77: 0 | CJ77: 1 | CK77: 2025.0377 | CL77: W, D | CM77: 1 | CN77: Yes | CO77: 1 | CP77: No | CQ77: This is part 3 of a series of on-line training classes taught from ACRP's book "Introduction to Small Water Systems". Water Sources is broken into two on-line training courses labeled as Part 1 and Part 2. These two courses look at water sources; ground and surface, and the advantages and disadvantages of each. Other topics explored in these two presentations include: raw water storage (reservoirs and tanks), surface water intake types, flow measurement (weirs and flumes), aquifer terminology (confined, unconfined, artesian, zones, porosity, etc.), well location criteria, well components, and turbine pumps. | CR77: 2023 WAT-003 Water Sources Part 2 | indigowatergroup.ispringmarket.com | CS77: Part 2 discusses aquifer terminology (confined, unconfined, artesian, zones, porosity, etc.), well location criteria, well components, and turbine pumps. | CT77: Water and distribution system operators both operate wells and must be familiar with their components and operation as well as how aquifer structure affects water quality and well output. | CU77: Fundamental | CV77: Drinking Water and Distribution | CW77: List the different types of aquifers and the properties of each. | CX77: Understand how permeability and soil types relate to groundwater movement and well production. | CY77: Define the cone of depression, specific yield, zone of influence, draw down, and operating level. | CZ77: List well components and give the function of each. | DA77: Understand that well heads must be protected from contamination by a combination of physical barriers. | DB77: Compare and contrast the different types of pumps that may be used in wells. | DI77: No prerequistes are required for this course. | DL77: 6
B78: WATER-004 | C78: 430 | D78: Drinking Water Treatment Part 1 | E78: S. Innerebner, PhD, PE | F78: Indigo Water Group | G78: 8513 S. Newcombe Way, Littleton, CO 80127 | H78: sidney@indigowatergroup.com | I78: 303-489-9226 | J78: 2025 WAT-004 Drinking Water Treatment Final Quiz | K78: 2023 WAT-004 Drinking Water Treatment Final Quiz | L78: 2022 WAT-004 Drinking Water Treatment Final Quiz | M78: 6 | N78: 1 | O78: 4 | P78: 1 | Q78: 5 | R78: 4 | S78: 1 | T78: 1 | U78: 1 | V78: 5 | W78: 1 | X78: 1 | Y78: 5 | Z78: 4 | AA78: 40 | AB78: 124 | AC78: 144 | AD78: 2.5 | AE78: Y | AH78: 0.25 | AI78: Drinking Water Core | AJ78: 25-06037-001 | AK78: 24-06037-001 | AL78: 23-06037-001 | AM78: 22-06037-001 | AN78: 0.25 | AO78: 0.25 | AP78: 0 | AQ78: 0 | AR78: 0 | AS78: 0 | AT78: See NV, WY, or WA | AU78: WWT23-3457 -T00-G2.5 | AV78: 0 | AW78: 2.5 | BB78: 8010-25-3 | BC78: 2025-03-21 | BD78: Water Treatment Operators | BE78: Process | BF78: 2.5 | BM78: 0 | BN78: 0 | BO78: 2.5 TC | BP78: 2.5 | BQ78: NV22-145 | BR78: 0 | BS78: -- | BT78: Not yet approved. | BU78: OEPA-D88466609-OM | BV78: IWG-D5104-OM | BW78: IWG-D510425-OM | BX78: 2.5 | BY78: DW Only | BZ78: R23171 | CA78: 0 | CB78: 2.5 | CC78: 0 | CD78: 0 | CE78: Not Approved. | CF78: 0 | CG78: Not yet approved. | CH78: Accepted. Use Form 4400-190 | CI78: 0 | CJ78: 2.5 | CK78: 2025.0378 | CL78: W, D | CM78: 2.5 | CN78: Yes | CO78: 2.5 | CP78: No | CQ78: This is part 4 of a series of on-line training classes taught from ACRP's book "Introduction to Small Water Systems". Water Treatment is broken into two on-line training courses labeled as Part 1 and Part 2. These two courses begin with a discussion of the need for treatment and the types of contaminants removed before moving on to look at an overview of the three primary methods of surface water treatment (conventional, direct filtration, and membrane treatment). Each step of conventional treatment (coagulation, flocculation, sedimentation, and filtration) are explained at an overview level. Jar testing and determining optimal coagulant doses are also discussed. Part 2 focuses on chlorine disinfection. | CR78: 2023 WAT-004 Drinking Water Treat | indigowatergroup.ispringmarket.com | CS78: Drinking water treatment steps: coagulation, flocculation, sedimentation, filtration, and disinfection. Each step explained. | CT78: Water treatment plant operators must understand the theory behind the operation of each step of conventional water treatment and membrane water treatment. | CU78: Intermediate | CV78: Drinking Water | CW78: Understand that surface water treatment uses a multi-barrier approach to protect public health. | CX78: List the four steps of conventional drinking water treatment and describe each. | CY78: Compare and contrast direct filter to conventional water treatment plants. | CZ78: Understand the need for jar testing and interpret jar testing results. | DA78: Describe how membranes work and explain how they differ from other filtration processes. | DI78: No prerequistes are required for this course. | DL78: 5
B79: WATER-005 | C79: 431 | D79: Water Treatment Part 2 (Disinfection, Water Focus) | E79: S. Innerebner, PhD, PE | F79: Indigo Water Group | G79: 8513 S. Newcombe Way, Littleton, CO 80127 | H79: sidney@indigowatergroup.com | I79: 303-489-9226 | J79: 2025 WAT-005 Drinking Water Disinfection Final Quiz | K79: 2023 WAT-005 Drinking Water Disinfection Final Quiz | L79: 2022 WAT-005 Drinking Water Disinfection Final Quiz | M79: 7 | N79: 4 | O79: 6 | P79: 4 | Q79: 4 | R79: 4 | S79: 4 | T79: 4 | U79: 4 | AA79: 41 | AB79: 146 | AC79: 166.5 | AD79: 2.5 | AE79: Y | AH79: 0.25 | AI79: Drinking Water Core | AJ79: 25-06038-001 | AK79: 24-06038-001 | AL79: 23-06038-001 | AM79: 22-06038-001 | AN79: 0.25 | AO79: 0.25 | AP79: 0.25 | AQ79: 0.25 | AR79: 0.25 | AS79: 0 | AT79: See NV, WY, or WA | AU79: WWT23-3458-T00-G2.5 | AV79: 0 | AW79: 2.5 | BB79: 8011-25-3 | BC79: 2025-03-21 | BD79: All W and D | BE79: Process | BF79: 2.5 | BM79: 0 | BN79: 0 | BO79: 2.5 TC | BP79: 2.5 | BQ79: NV22-146 | BR79: 0 | BS79: -- | BT79: Not yet approved. | BU79: OEPA-D88681133-OM | BV79: IWG-D5105-OM | BW79: IWG-D510525-OM | BX79: 2.5 | BY79: DW Only | BZ79: R23172 | CA79: 0 | CB79: 2.5 | CC79: 2.5 | CD79: 0 | CE79: Not Approved. | CF79: 0 | CG79: Not yet approved. | CH79: Accepted. Use Form 4400-190 | CI79: 0 | CJ79: 2.5 | CK79: 2025.0379 | CL79: W, D | CM79: 2.5 | CN79: Yes | CO79: 2.5 | CP79: No | CQ79: This drinking water-focused presentation walks the participant through chlorine chemistry, the different forms of chlorine available for disinfection, and chlorine safety. This class devotes time to the safe handling of gaseous and liquid chlorine and reporting requirements under SARA Title III. The class covers recommended doses and contact times for various applications as well as the impact of water chemistry and temperature on disinfection. CT calculations and HRT credits for various water tank configurations and disinfection byproduct formation are also discussed. | CR79: 2023 WAT-005 Water Disinfection | indigowatergroup.ispringmarket.com | CS79: This drinking water-focused presentation walks the participant through chlorine chemistry, breakpoint chlorination, disinfection equipment, and chlorine safety. | CT79: Disinfection is a critical component of protecting public health for water, wastewater, and distribution system operators. | CU79: Fundamental | CV79: All opertors | CW79: List the characteristics of chlorine gas and the compounds formed when gaseous chlorine and sodium hypochlorite react with water. | CX79: Explain the purpose of a fusible plug and give the melt temperature. | CY79: Discuss the breakpoint chlorination curve and describe in detail the chemical reactions taking place at each stage of the curve. | CZ79: Explain regulatory requirements for chlorine leaks, how to detect a chlorine leak, and the three types of repair kits. | DA79: Calculate dose, demand, residual, and feed rate. | DB79: Understand minimum contact times and how they are affected by temperature and pH. | DC79: Describe the steps involved in changing out a chlorine gas cylinder. | DI79: No prerequistes are required for this course. | DL79: 7
B80: WATER-006 | C80: 432 | D80: Intro to Distribution Systems | E80: S. Innerebner, PhD, PE | F80: Indigo Water Group | G80: 8513 S. Newcombe Way, Littleton, CO 80127 | H80: sidney@indigowatergroup.com | I80: 303-489-9226 | J80: 2025 WAT-006 Distribution Final Quiz | K80: 2023 WAT-006 Distribution Final Quiz | L80: 2022 WAT-007 Distribution Final Quiz | M80: Q4 | N80: Q4 | O80: Q1 | P80: Q4 | Q80: Q4 | R80: Q5 | S80: Q1 | T80: Q5 | AA80: 28 | AB80: 92 | AC80: 106 | AD80: 2 | AE80: Y | AH80: 0.15 | AI80: Drinking Water Core | AJ80: 25-06696-001 | AK80: 24-06696-001 | AL80: 23-06696-001 | AM80: 22-06696-001 | AN80: 0.2 | AO80: 0.1 | AP80: 0.1 | AQ80: 0.1 | AR80: 0.2 | AS80: 0.1 | AT80: See NV, WY, or WA | AU80: WWT23-3459-T00-G1.5 | AV80: 0 | AW80: 1.5 | BB80: 8012-25-3 | BC80: 2025-03-21 | BD80: All W and D | BE80: Non-Process | BF80: 2 | BM80: 0 | BN80: 0 | BO80: 1.5 TC | BP80: 1.5 | BQ80: NV22-147 | BR80: 0 | BS80: -- | BT80: Not yet approved. | BU80: OEPA-D88681194-OM | BV80: IWG-D5106-OM | BW80: IWG-D510625-OM | BX80: 2 | BY80: DW Only | BZ80: R23173 | CA80: 0 | CB80: 0 | CC80: 1.5 | CD80: 0 | CE80: Not Approved. | CF80: 0 | CG80: Not yet approved. | CH80: Accepted. Use Form 4400-190 | CI80: 0 | CJ80: 2 | CK80: 2025.038 | CL80: W, D | CM80: 2 | CN80: Yes | CO80: 2 | CP80: No | CQ80: This is part of a series of on-line training classes taught from ACRP's book "Introduction to Small Water Systems". This presentation reviews the major components of distribution systems including pipes and materials, valves, hydrants, storage reservoirs, meters, and curb stops. The concept of cross connections is introduced and the various methods for avoiding a cross connection are defined (air gap, vacuum breaker, etc.). | CR80: 2023 WAT-006 Distribution Systems | indigowatergroup.ispringmarket.com | CS80: A review of the major components of distribution systems including pipes and materials, valves, hydrants, storage reservoirs, meters, and curb stops. | CT80: Water and distribution system operators should be familiar with the different components that make up water distribution systems so they can effectively operate them. | CU80: Fundamental | CV80: Drinking Water and Distribution | CW80: List and describe the three types of distribution system layout. | CX80: List the functions of water storage reservoirs and tank in the distribution system. | CY80: Convert between feet of head and pounds per square inch. | CZ80: Discuss the different types of valves that may be present in distribution systems, what they are typically used for, and how they function. | DA80: Explain how an altitude valve may be used to control water level in a tank. | DB80: List the components of a typical customer service line and give the function of each. | DC80: Define cross-connection, backflow, back siphonage, and back pressure. | DD80: List the different types of cross connection control devices and explain how each works. | DE80: Discuss the different types of fire hydrants and where they might be used. | DI80: No prerequistes are required for this course. | DL80: 9
B81: WATER-007 | C81: 433 | D81: MRT Drinking Water Regulatory Course | E81: S. Innerebner, PhD, PE | F81: Indigo Water Group | G81: 8513 S. Newcombe Way, Littleton, CO 80127 | H81: sidney@indigowatergroup.com | I81: 303-489-9226 | J81: 2025 Post-Quiz for Drinking Water MRT | K81: 2023 Post-Quiz for Drinking Water MRT | L81: 2022 Post-Quiz for Drinking Water MRT | M81: 10 | N81: 2 | O81: 3 | P81: 3 | Q81: 3 | R81: 2 | S81: 3 | T81: 2 | U81: 4 | V81: 3 | W81: 2 | X81: 10 | Y81: 8 | AA81: 55 | AB81: =60+60+23 -> 143 | AC81: 170.5 | AD81: 3 | AE81: Y | AH81: 0 | AI81: Not approved. | AJ81: 25-06743-002 | AK81: 24-06743-002 | AL81: 23-06743-002 | AM81: 22-06743-002 | AN81: 0.3 | AO81: 0.3 | AP81: 0 | AQ81: 0 | AR81: 0.3 | AS81: 0 | AT81: See NV, WY, or WA | AU81: WWT23-3460-T00-G2.5 | AV81: 0 | AW81: 2.5 | BB81: Not Approved. | BC81: Not Approved. | BD81: Not Approved. | BE81: Not Approved | BF81: 0 | BM81: 0 | BN81: 0 | BO81: Not Approved. | BP81: Not Approved. | BQ81: Not Approved | BR81: Not Approved | BS81: Not Approved | BT81: Not yet approved. | BU81: Not Approved. | BV81: IWG-D5107-OM | BW81: IWG-D510725-OM | BX81: 3 | BY81: DW Only | BZ81: R25219 | CA81: 0 | CB81: 3 | CC81: 3 | CD81: 0 | CE81: Not Approved. | CF81: 0 | CG81: Not yet approved. | CH81: Accepted. Use Form 4400-190 | CI81: 0 | CJ81: 3 | CK81: 2025.0381 | CL81: W, D | CM81: 3 | CN81: Yes | CO81: 3 | CP81: Yes | CQ81: This course fulfills the requirement under Colorado Regulation 100 for all operators to complete a regulatory training course that matches their certification type prior to renewing a certification, applying to sit for a certification exam, or when requesting reciprocity from another state or agency. | CR81: 2023 WAT-007 Drinking Water MRT | indigowatergroup.ispringmarket.com | CS81: This course is approved to meet the minimum regulatory training (MRT) requirement for drinking water treatment and distribution system operators in Colorado. | CT81: Water treatment and distribution system operators must comply with the safe drinking water act and delegated regulations in their states. | CU81: Fundamental | CV81: Drinking Water and Distribution | CW81: Understand a high-level overview of the Safe Drinking Water Act. | CX81: Understand what a public water system is based on population served, type of population, and when water is provided. | CY81: Know how to locate and utilize your monitoring plan and monitoring schedule. | CZ81: Know where to find the regulations, policies, and guidance that govern public water systems. | DA81: Define various regulatory terms. | DB81: List requirements for public notices. | DC81: Know when and how to call CDPHE in the event of an emergency. | DI81: No prerequistes are required for this course. | DL81: 7
B82: WATER-008 | C82: 434 | D82: Corrosion Control and Laboratory | E82: S. Innerebner, PhD, PE | F82: Indigo Water Group | G82: 8513 S. Newcombe Way, Littleton, CO 80127 | H82: sidney@indigowatergroup.com | I82: 303-489-9226 | J82: 2025 WAT-008 Corr Lab Final Quiz | K82: 2023 WAT-008 Corr Lab Final Quiz | L82: 2022 WAT-008 Corr Lab Final Quiz | M82: 4 | N82: 4 | O82: 4 | P82: 5 | Q82: 5 | R82: 1 | AA82: 23 | AB82: 114 | AC82: 125.5 | AD82: 2 | AH82: 0.2 | AI82: Drinking Water Core | AJ82: 25-06039-001 | AK82: 24-06039-001 | AL82: 23-06039-001 | AM82: 22-06039-001 | AN82: 0.2 | AO82: 0.2 | AP82: 0.2 | AQ82: 0.2 | AR82: 0.2 | AS82: 0.2 | AT82: See NV, WY, or WA | AU82: WWT23-3461-T02-G00 | AV82: 2 | BB82: Not Approved. | BC82: Not Approved. | BD82: Not Approved. | BE82: Not Approved | BF82: 0 | BM82: 0 | BN82: 0 | BO82: 2.0 TC | BP82: 2 | BQ82: NV22-148 | BR82: 0 | BS82: WW | BT82: Not yet approved. | BU82: OEPA-D88466583-OM | BV82: IWG-D5108-OM | BW82: IWG-D510825-OM | BX82: =AN82*10 -> 2 | BY82: DW Only | BZ82: R23175 | CA82: 2 | CB82: 2 | CC82: 2 | CD82: 2 | CE82: Not Approved. | CF82: 0 | CG82: Not yet approved. | CH82: Accepted. Use Form 4400-190 | CI82: 0 | CJ82: 2 | CK82: 2025.0382 | CL82: W, D, WW | CM82: 2 | CN82: Yes | CO82: 2 | CP82: No | CQ82: The first half of this presentation discusses different types of corrosion that can occur in water and wastewater systems with an emphasis on corrosion control in distribution systems specifically. Methods approved by EPA to control corrosion -- passivating films, control of water characteristics, and chemical addition (polyphosphates or silicates) are presented. Lagelier Index, CCPP Index, Hardness, and Alkalinity are defined. The galvanic cell and galvanic corrosion are also discussed. The second half of this presentation discusses three common water quality test methods: chlorine residual analysis by DPD, alkalinity, and hardness. | CR82: 2023 WAT-008 Corrosion & Lab | indigowatergroup.ispringmarket.com | CS82: Discusses different types of corrosion that can occur in water and wastewater systems. Covers common laboratory tests used in distribution systems to manage corrosion. | CT82: Water treatment and distribution system operators are responsible for maintaining the distribution system. This includes adding corrosion control inhibitors and measuring water quality parameters necessary for adjusting chemical dosage rates. | CU82: Intermediate | CV82: Drinking Water and Distribution | CW82: List the four components of the galvanic cell and explain why corrosion of similar and dissimilar metals occurs. | CX82: Describe the 5 types of corrosion control accepted for use by EPA in water distribution systems. | CY82: Properly conduct the following laboratory tests: chlorine residual, alkalinity, and hardness. | CZ82: Compare and contrast the Langelier Saturation Index (LSI) and Calcium Carbonate Precipitation Potential (CCWP) and how each can be used to predict corrosion or deposition in a water distribution system. | DI82: No prerequistes are required for this course. | DL82: 4
B83: WATER-009 | D83: Water Storage Tanks Part 1 - Components | E83: Jeff Oxenford | F83: Stratus Consulting | G83: 2100 Washington Ave, Golden, CO 80401 | H83: joxenford@comcast.net | I83: 720-353-4242 | J83: 2025 WAT-009 Storage Tanks Part 1 Final Quiz | M83: Q7 | N83: Q4 | O83: Q4 | P83: Q4 | AA83: 19 | AB83: 61 | AC83: 70.5 | AD83: 1 | AH83: 0 | AI83: Not approved. | AJ83: 25-10976-001 | AN83: 0.1 | AO83: 0.1 | AP83: 0.1 | AQ83: 0.1 | AR83: 0.1 | AS83: 0 | AT83: See NV, WY, or WA | AU83: Not yet approved | AV83: 0 | BB83: 8013-25-3 | BC83: 2025-03-21 | BD83: All W and D | BE83: Non-Process | BF83: 1 | BM83: 0 | BN83: 0 | BO83: 1.0 TC | BP83: 1 | BQ83: NV24-722 | BR83: 1 | BS83: WW | BT83: Not yet approved. | BV83: IWG-D5110-OM | BW83: IWG-D511025-OM | BX83: =AN83*10 -> 1 | BY83: DW Only | BZ83: R25220 | CA83: 0 | CB83: 1 | CC83: 1 | CD83: 0 | CE83: Not Approved. | CF83: 0.1 | CG83: ECY25-4040 | CH83: Accepted. Use Form 4400-190 | CI83: 0 | CJ83: 1 | CK83: 2025.0383 | CL83: W, D | CM83: 1 | CN83: Yes | CO83: 1 | CP83: No | CQ83: This course on water storage tanks has been divided into three parts. Part 1 discusses why managing water quality in storage tanks is important and goes over the different components of storage tanks. | CT83: Water storage tanks are a critical component of water distribution systems. Operators must understand how to operate them and how they can impact water quality as well as how to perform inspections. | CW83: After completing this course, attendees should be able to list the different components of water storage tanks and give the functions of each. | CX83: After completing this course, attendees will be able to explain why maintaining water quality in storage tanks is important. | DI83: No prerequistes are required for this course. | DL83: 2
B84: WATER-010 | D84: Water Storage Tanks Part 2 - Water Age and Quality | E84: Jeff Oxenford | F84: Stratus Consulting | G84: 2100 Washington Ave, Golden, CO 80401 | H84: joxenford@comcast.net | I84: 720-353-4242 | J84: 2025 WAT-010 Storage Tanks Part 2 Final Quiz | M84: Q4 | N84: Q4 | O84: Q4 | P84: Q4 | Q84: Q4 | AA84: 20 | AB84: 54 | AC84: 64 | AD84: 1 | AH84: 0 | AI84: Not approved. | AJ84: 25-10977-001 | AN84: 0.1 | AO84: 0.1 | AP84: 0.1 | AQ84: 0.1 | AR84: 0.1 | AS84: 0 | AT84: See NV, WY, or WA | AU84: Not yet approved | AV84: 0 | BB84: 8014-25-3 | BC84: 2025-03-21 | BD84: All W and D | BE84: Non-Process | BF84: 1 | BM84: 0 | BN84: 0 | BO84: 1.0 TC | BP84: 1 | BQ84: NV24-726 | BR84: 1 | BS84: WW | BT84: Not yet approved. | BV84: IWG-D5111-OM | BW84: IWG-D511125-OM | BX84: =AN84*10 -> 1 | BY84: DW Only | BZ84: R25221 | CA84: 0 | CB84: 1 | CC84: 1 | CD84: 0 | CE84: Not Approved. | CF84: 0.1 | CG84: ECY25-4041 | CH84: Accepted. Use Form 4400-190 | CI84: 0 | CJ84: 1 | CK84: 2025.0384 | CL84: W, D | CM84: 1 | CN84: Yes | CO84: 1 | CP84: No | CQ84: This course on water storage tanks has been divided into three parts. Part 2 discusses water quality considerations for water storage tanks, monitoring, maintenance of water storage tanks, and management of water age. | CT84: Water storage tanks are a critical component of water distribution systems. Operators must understand how to operate them and how they can impact water quality as well as how to perform inspections. | CW84: Be able to identify key chemical, biological, and physical factors that impact water quality in storage. | CX84: Be able to describe how operational conditions (hydraulics, seasonal impacts, and external contamination) can impact water quality. | DI84: No prerequistes are required for this course. | DL84: 2
B85: WATER-011 | D85: Water Storage Tanks Part 3 - Inspections | E85: Jeff Oxenford | F85: Stratus Consulting | G85: 2100 Washington Ave, Golden, CO 80401 | H85: joxenford@comcast.net | I85: 720-353-4242 | J85: 2025 WAT-011 Storage Tanks Part 3 Final Quiz | M85: Q4 | N85: Q4 | O85: Q4 | P85: Q2 | AA85: 14 | AB85: 55 | AC85: 62 | AD85: 1 | AH85: 0 | AI85: Not approved. | AJ85: 25-10978-001 | AN85: 0.1 | AO85: 0.1 | AP85: 0.1 | AQ85: 0.1 | AR85: 0.1 | AS85: 0 | AT85: See NV, WY, or WA | AU85: Not yet approved | AV85: 0 | BB85: 8015-25-3 | BC85: 2025-03-21 | BD85: All W and D | BE85: Non-Process | BF85: 1 | BM85: 0 | BN85: 0 | BO85: 1.0 TC | BP85: 1 | BQ85: NV24-719 | BR85: 1 | BS85: WW | BT85: Not yet approved. | BV85: IWG-D5112-OM | BW85: IWG-D511225-OM | BX85: =AN85*10 -> 1 | BY85: DW Only | BZ85: R25222 | CA85: 0 | CB85: 1 | CC85: 1 | CD85: 0 | CE85: Not Approved. | CF85: 0.1 | CG85: ECY25-4042 | CH85: Accepted. Use Form 4400-190 | CI85: 0 | CJ85: 1 | CK85: 2025.0385 | CL85: W, D | CM85: 1 | CN85: Yes | CO85: 1 | CP85: No | CQ85: This course on water storage tanks has been divided into three parts. Part 3 discusses water storage tank inspection and procedures for placing storage tanks back into service after cleaning or maintenance is complete. | CT85: Water storage tanks are a critical component of water distribution systems. Operators must understand how to operate them and how they can impact water quality as well as how to perform inspections. | CW85: Describe various types of inspections and what they include. | CX85: Explain what to look for during an inspection of water storage facilities. | CY85: Understand the fundamentals of tank cleaning. | CZ85: Describe the procedures required to disinfect a storage facility. | DA85: Understand the steps required to return a tank to service after it has been cleaned. | DI85: No prerequistes are required for this course. | DL85: 5
B86: WATER-012 | D86: Fire Hydrant Operation and Inspection (under construction) | E86: S. Innerebner, PhD, PE | F86: Indigo Water Group | G86: 8513 S. Newcombe Way, Littleton, CO 80127 | I86: 303-489-9226 | AC86: 0 | AD86: 2 | AH86: 0 | AI86: Not approved. | AJ86: 25-10672-001 | AK86: 24-10672-001 | AN86: 0.2 | AO86: 0 | AP86: 0 | AQ86: 0 | AR86: 0.2 | AS86: 0.2 | AT86: See NV, WY, or WA | AU86: Not yet approved | AV86: 0 | BB86: Not Approved. | BD86: Not Approved. | BE86: Not Approved | BF86: 0 | BM86: 0 | BN86: 0 | BO86: Not yet approved. | BP86: Not yet approved. | BQ86: Not yet approved. | BR86: Not yet approved. | BS86: Not yet approved. | BT86: Not yet approved. | BV86: IWG-D5109-OM | BW86: IWG-D510925-OM | BX86: 2 | BY86: DW Only | BZ86: Not yet approved. | CA86: Not yet approved. | CB86: Not yet approved. | CC86: Not yet approved. | CD86: Not yet approved. | CE86: Not Approved. | CF86: 0 | CG86: Not yet approved. | CH86: Accepted. Use Form 4400-190 | CI86: 0 | CJ86: 2 | CK86: 2025.0386 | CL86: W, D | CM86: 2 | CN86: Yes | CO86: 2 | CP86: No | CQ86: This course covers the different types of hydrants used in distribution systems, their components, operation and maintenance. | CW86: Describe the different classifications of fire hydrants. | CX86: Identify the major components of different types of hydrants. | CY86: Describe the operation of compression and toggle style hydrants. | CZ86: Describe operational considerations for use of fire hydrants including: marking inoperable hydrants, color coding hydrant barrels, and managing the use of hydrants. | DA86: List the steps for lubricating dry barrel hydrants. | DB86: Inspect dry and wet barrel hydrants. | DC86: Identify and solve common hydrant problems. | DL86: 7
D87: Laboratory Procedures
B88: LAB-001 | C88: 435 | D88: Basic Chemistry | E88: S. Innerebner, PhD, PE | F88: Indigo Water Group | G88: 8513 S. Newcombe Way, Littleton, CO 80127 | H88: sidney@indigowatergroup.com | I88: 303-489-9226 | J88: 2025 LAB-001 Chemistry Final Quiz | K88: 2023 LAB-001 Chemistry Final Quiz | L88: 2022 LAB-001 Chemistry Final Quiz | M88: 1 | N88: 8 | O88: 5 | P88: 1 | Q88: 5 | R88: 3 | S88: 1 | T88: 4 | AA88: 28 | AB88: 119 | AC88: =AB88+(AA88*(30/60)) -> 133 | AD88: 2.5 | AH88: 0.25 | AI88: Core | AJ88: 25-05997-001 | AK88: 24-05997-001 | AL88: 23-05997-001 | AM88: 22-05997-001 | AN88: 0.25 | AO88: 0.25 | AP88: 0.25 | AQ88: 0.25 | AR88: 0.25 | AS88: 0.25 | AT88: See NV, WY, or WA | AU88: WWT23-3488-T00-G02 | AV88: 0 | AW88: 2 | BB88: 7989-25-3 | BC88: 2025-03-21 | BD88: All Operators | BE88: Non-Process | BF88: 2.5 | BM88: 2.5 | BN88: 2.5 | BO88: 2.5 TC | BP88: 2.5 | BQ88: NV22-124 | BR88: 2.5 | BS88: WW | BT88: Not yet approved. | BU88: OEPA-B576552-OM | BV88: IWG-B6101-OM | BW88: IWG-B610125-OM | BX88: =AN88*10 -> 2.5 | BY88: Both DW and WW | BZ88: R23176 | CA88: 2.5 | CB88: 2.5 | CC88: 2.5 | CD88: 2.5 | CE88: 2.5 | CF88: 0.2 | CG88: ECY25-4043 | CH88: Accepted. Use Form 4400-190 | CI88: 2.5 | CJ88: 2.5 | CK88: 2025.0348 | CL88: W, D, WW | CM88: 2.5 | CN88: Yes | CO88: 2.5 | CP88: No | CQ88: This course covers the periodic table, atoms, ionic and covalent bonding, determining the makeup of a chemical compound (stoichiometry), naming of compounds, atomic and formula weights, calculating chemical dosages, and the concept of limiting reactant. Examples are drawn from phosphorus precipitation, disinfection, and other common reactions in wastewater. | CR88: 2023 LAB-001 Basic Chemistry | indigowatergroup.ispringmarket.com | CS88: A full semester of inorganic chemistry compressed down into a 2.5 hour review with examples. | CT88: Water and wastewater operators must understand basic chemistry to correctly calculate chemical dosages used in treatment. Chemistry aids in understanding water quality parameters such as pH, alkalinity, and hardness. | CU88: Intermediate | CV88: All operators | CW88: Understand the concept of chemical equilibrium. | CX88: Convert nitrogen compounds to "N" and phosphate compounds from phosphate to "P". Convert ammonia to ammonia as N, for example. | CY88: Predict whether a solid precipitate could form as a result of a chemical reaction using information from the solubility tables. | CZ88: Apply knowledge of precipitation chemistry to removing phosphorus from wastewater by chemical treatment. | DA88: Calculate formula weights for different compounds given the chemical formula. | DB88: Predict whether an atom will gain or lose electrons and which ion will be formed as a result. | DC88: Combine ions in the correct proportions to form chemical compounds. | DD88: Balance chemical equations. | DE88: Calculate the number of grams of reactant required to chemically react with another reactant given the chemical equation. | DI88: No prerequistes are required for this course. | DL88: 9
B89: LAB-002 | C89: 436 | D89: Laboratory - pH, Alkalinity, and Hardness | E89: S. Innerebner, PhD, PE | F89: Indigo Water Group | G89: 8513 S. Newcombe Way, Littleton, CO 80127 | H89: sidney@indigowatergroup.com | I89: 303-489-9226 | J89: 2025 LAB-002 pH Alk Hard Final Quiz | K89: 2023 LAB-002 pH Alk Hard Final Quiz | L89: 2022 LAB-002 pH Alk Hard Final Quiz | M89: Q1 | N89: Q4 | O89: Q1 | P89: Q1 | Q89: Q1 | R89: Q1 | S89: Q1 | T89: Q1 | U89: Q1 | V89: Q1 | W89: Q1 | X89: Q1 | Y89: Q1 | Z89: S1 | AA89: 17 | AB89: 99 | AC89: 107.5 | AD89: 2 | AH89: 0.2 | AI89: Core | AJ89: 25-07704-001 | AK89: 24-07704-001 | AL89: 23-07704-001 | AM89: 22-07704-001 | AN89: 0.2 | AO89: 0.2 | AP89: 0.2 | AQ89: 0.2 | AR89: 0.2 | AS89: 0.05 | AT89: See NV, WY, or WA | AU89: WWT23-3489-T02-G00 | AV89: 2 | BB89: 7990-25-3 | BC89: 2025-03-21 | BD89: All Operators | BE89: Non-Process | BF89: 2 | BM89: 2 | BN89: 2 | BO89: 2.0 TC | BP89: 2 | BQ89: NV22-125 | BR89: 2 | BS89: WW | BT89: Not yet approved. | BV89: IWG-B6102-OM | BW89: IWG-B610225-OM | BX89: =AN89*10 -> 2 | BY89: Both DW and WW | BZ89: R23177 | CA89: 2 | CB89: 2 | CC89: 2 | CD89: 0 | CE89: 2 | CF89: 0.2 | CG89: ECY25-4044 | CH89: Accepted. Use Form 4400-190 | CI89: 2 | CJ89: 2 | CK89: 2025.0349 | CL89: W, D, WW | CM89: 2 | CN89: Yes | CO89: 2 | CP89: No | CQ89: This course walks attendees through the theory behind the pH, alkalinity, and hardness laboratory tests. Attendees will learn why alkalinity and hardness are both expressed as mg/L of calcium carbonate. Each procedure is presented step-by-step in accordance with the requirements and guidelines set forth in Standard Methods including required quality assurance and quality control samples. | CR89: 2023 LAB-002 pH Alkalinity Hard | indigowatergroup.ispringmarket.com | CS89: This course walks attendees through the theory behind the pH, alkalinity, and hardness laboratory tests. | CT89: Operators often conduct their own on-site testing or are reviewing data supplied by other labs. Production of accurate, legally defensible data is required for permit compliance and protection of public health. | CU89: Intermediate | CV89: All operators | CW89: Define pH, alkalinity, and hardness. | CX89: Explain why alkalinity and hardness are both expressed as mg/L of calcium carbonate. | CY89: Conduct pH, alkalinity, and hardness tests on water and wastewater samples. | CZ89: List the required QA/QC samples for each test method. | DI89: No prerequistes are required for this course. | DL89: 4
B90: LAB-003 | C90: 437 | D90: Laboratory - TDS, Conductivity, and Turbidity | E90: S. Innerebner, PhD, PE | F90: Indigo Water Group | G90: 8513 S. Newcombe Way, Littleton, CO 80127 | H90: sidney@indigowatergroup.com | I90: 303-489-9226 | J90: 2025 LAB-003 TDS Cond Turb Final Quiz | K90: 2023 LAB-003 TDS Cond Turb Final Quiz | L90: 2022 LAB-003 TDS Cond Turb Final Quiz | M90: Q1 | N90: Q4 | O90: S1 | P90: Q4 | Q90: Q4 | R90: Q4 | S90: Q1 | T90: Q3 | U90: Q1 | V90: Q2 | W90: Q4 | X90: Q2 | Y90: Q1 | Z90: Q7 | AA90: 39 | AB90: 105 | AC90: =AB90+(AA90*(30/60)) -> 124.5 | AD90: 2 | AE90: Y | AH90: 0.2 | AI90: Core | AJ90: 25-07745-001 | AK90: 24-07745-001 | AL90: 23-07745-001 | AM90: 22-07745-001 | AN90: 0.2 | AO90: 0.2 | AP90: 0.2 | AQ90: 0.2 | AR90: 0.2 | AS90: 0 | AU90: WWT23-3490-T02-G00 | AV90: 2 | BB90: 7991-25-3 | BC90: 2025-03-21 | BD90: All Operators | BE90: Non-Process | BF90: 2 | BM90: 2 | BN90: 2 | BO90: 2.0 TC | BP90: 2 | BQ90: NV22-126 | BR90: 2 | BS90: WW | BT90: Not yet approved. | BV90: IWG-B6103-OM | BW90: IWG-B610325-OM | BX90: 2 | BY90: Both DW and WW | BZ90: R23178 | CA90: 2 | CB90: 2 | CC90: 2 | CD90: 2 | CE90: 2 | CF90: 0.2 | CG90: ECY25-4045 | CH90: Accepted. Use Form 4400-190 | CI90: 2 | CJ90: 2 | CK90: 2025.035 | CL90: W, D, WW | CM90: 2 | CN90: Yes | CO90: 2 | CP90: No | CQ90: This course walks attendees through the theory behind the total dissolved solids (TDS), conductivity, and turbidity tests. While these parameters are related to one another, they don't measure the same thing. Each procedure is presented step-by-step in accordance with the requirements and guidelines set forth in Standard Methods including required quality assurance and quality control samples. | CR90: 2023 LAB-003 TDS Cond Turbid | indigowatergroup.ispringmarket.com | CS90: This course walks attendees through the theory behind the total dissolved solids (TDS), conductivity, and turbidity tests. Step by step procedures for each method. | CT90: Operators often conduct their own on-site testing or are reviewing data supplied by other labs. Production of accurate, legally defensible data is required for permit compliance and protection of public health. | CU90: Intermediate | CV90: All operators | CW90: Explain how TDS and conductivity are related to one another but why one cannot definitively be used to predict the other. | CX90: Conduct TDS, conductivity, and turbidity analyses on water and wastewater samples. | CY90: List the required QA/QC samples for each test method. | DI90: No prerequistes are required for this course. | DL90: 3
B91: LAB-004 | C91: 438 | D91: Laboratory - Total Suspended Solids | E91: S. Innerebner, PhD, PE | F91: Indigo Water Group | G91: 8513 S. Newcombe Way, Littleton, CO 80127 | H91: sidney@indigowatergroup.com | I91: 303-489-9226 | J91: 2025 LAB-004 Laboratory TSS Final Quiz | K91: 2023 LAB-004 Laboratory TSS Final Quiz | L91: 2022 LAB-004 Laboratory TSS Final Quiz | M91: 2 | N91: 1 | O91: 5 | P91: 1 | Q91: 1 | R91: 5 | AA91: 15 | AB91: 71 | AC91: 78.5 | AD91: 1 | AH91: 0.1 | AI91: Core | AJ91: 25-06028-001 | AK91: 24-06028-001 | AL91: 23-06028-001 | AM91: 22-06028-001 | AN91: 0.1 | AO91: 0.1 | AP91: 0.1 | AQ91: 0.1 | AR91: 0 | AS91: 0 | AT91: See NV, WY, or WA | AU91: WWT23-3491-T1 .5-G00 | AV91: 1.5 | BB91: 7992-25-3 | BC91: 2025-03-21 | BD91: All Operators | BE91: Non-Process | BF91: 1 | BM91: 1 | BN91: 1 | BO91: 1.5 TC | BP91: 1.5 | BQ91: NV22-127 | BR91: 1.5 | BS91: WW | BT91: Not yet approved. | BU91: OEPA-S581445-OM | BV91: IWG-S6104-OM | BW91: IWG-S610425-OM | BX91: =AN91*10 -> 1 | BY91: WW Only | BZ91: R23179 | CA91: 1.5 | CB91: 0 | CC91: 0 | CD91: 0 | CE91: 1 | CF91: 0.1 | CG91: ECY25-4046 | CH91: Accepted. Use Form 4400-190 | CI91: 1 | CJ91: 1 | CK91: 2025.0351 | CL91: WW | CM91: 1 | CN91: Yes | CO91: 1 | CP91: No | CQ91: This course covers solids testing for wastewater samples. Each test method is presented with lots of photographs to walk attendees through the procedures step by step. Appropriate QA/QC samples for each test method are presented, why they are needed, and what information they give. Example calculations demonstrate how to obtain final results, percent recovery for standards, and RPD for duplicates. | CR91: 2023 LAB-004 Suspended Solids | indigowatergroup.ispringmarket.com | CS91: This course covers solids testing for wastewater samples. Each test method is presented with lots of photographs to walk attendees through the procedures step by step. | CT91: Operators often conduct their own on-site testing or are reviewing data supplied by other labs. Production of accurate, legally defensible data is required for permit compliance and protection of public health. | CU91: Intermediate | CV91: Wastewater | CW91: Compare and contrast three methods for measuring total suspended solids: gravimetric analysis, TSS meter, and centrifuge spins. Comment on the relative accuracy of each method. | CX91: Correctly set up and execute the gravimetric total suspended solids procedure for analysis of wastewater samples including required QA/QC. | CY91: Calculate total suspended solids concentrations from raw laboratory data. Interprete QA/QC sample results and take corrective action. | DI91: No prerequistes are required for this course. | DL91: 3
B92: LAB-005 | C92: 439 | D92: Laboratory - Proper Use of Spectrophotometers (QA/QC) | E92: S. Innerebner, PhD, PE | F92: Indigo Water Group | G92: 8513 S. Newcombe Way, Littleton, CO 80127 | H92: sidney@indigowatergroup.com | I92: 303-489-9226 | J92: 2025 LAB-005 Spectrophotometers Final Quiz | K92: 2023 LAB-005 Spectrophotometers Final Quiz | L92: 2022 LAB-005 Spectrophotometers Final Quiz | M92: Q2 | N92: Q3 | O92: Q2 | P92: Q6 | AA92: 13 | AB92: 75 | AC92: 81.5 | AD92: 1.5 | AE92: Y | AH92: 0.15 | AI92: Core | AJ92: 25-06030-001 | AK92: 24-06030-001 | AL92: 23-06030-001 | AM92: 22-06030-001 | AN92: 0.15 | AO92: 0.15 | AP92: 0.15 | AQ92: 0.15 | AR92: 0.15 | AS92: 0 | AT92: See NV, WY, or WA | AU92: WWT23-3492-T1 .5-G00 | AV92: 1.5 | BB92: 7993-25-3 | BC92: 2025-03-21 | BD92: All Operators | BE92: Non-Process | BF92: 1.5 | BM92: 1.5 | BN92: 1.5 | BO92: 1.5 TC | BP92: 1.5 | BQ92: NV22-128 | BR92: 1.5 | BS92: WW | BT92: Not yet approved. | BU92: OEPA-B579847-OM | BV92: IWG-B6105-OM | BW92: IWG-B610525-OM | BX92: =AN92*10 -> 1.5 | BY92: Both DW and WW | BZ92: R23180 | CA92: 1.5 | CB92: 1.5 | CC92: 1.5 | CD92: 0 | CE92: 1.5 | CF92: 0.1 | CG92: ECY25-4047 | CH92: Accepted. Use Form 4400-190 | CI92: 1.5 | CJ92: 1.5 | CK92: 2025.0352 | CL92: W, D, WW | CM92: 1.5 | CN92: Yes | CO92: 1.5 | CP92: No | CQ92: Every water and wastewater plant has a spectrophotometer or colorimater that is used for process control and sometimes for reporting compliance sample results. Are you using yours correctly? Learn when a blank, standard, spike, spike duplicate, and other quality assurance and quality control samples are needed, how to interpret results, and the appropriate corrective actions. | CR92: 2023 LAB-005 Spectrophotometers | indigowatergroup.ispringmarket.com | CS92: Course discusses quality assurance and quality control practices for samples analyzed with colorimeters and spectrophotometers and why various QA/QC samples are needed. | CT92: Operators often conduct their own on-site testing or are reviewing data supplied by other labs. Production of accurate, legally defensible data is required for permit compliance and protection of public health. | CU92: Intermediate | CV92: All operators | CW92: Discuss the limitations of spectrophotometers and the concept of a method detection limit. | CX92: Select appropriate quality assurance and quality control samples for a given analysis. Explain the purpose behind each type of QA/QC sample and the information gained by analyzing them. | CY92: Understand that the visible spectrum, colors of light, are dependent on their wavelength. | CZ92: Explain Beer's Law and why samples must be diluted and reanalyzed when they are over the calibrated linear range. | DI92: No prerequistes are required for this course. | DL92: 4
B93: LAB-006 | C93: 440 | D93: Laboratory - Chlorine Residual by DPD | E93: S. Innerebner, PhD, PE | F93: Indigo Water Group | G93: 8513 S. Newcombe Way, Littleton, CO 80127 | H93: sidney@indigowatergroup.com | I93: 303-489-9226 | J93: 2025 LAB-006 Chlorine Residual | K93: 2023 LAB-006 Chlorine Residual | L93: 2022 LAB-006 Chlorine Residual | M93: Q4 | N93: Q4 | O93: Q1 | P93: Q6 | AA93: 15 | AB93: 39 | AC93: 46.5 | AD93: 0.5 | AH93: 0 | AI93: Not approved. | AJ93: 25-07709-001 | AK93: 24-07709-001 | AL93: 23-07709-001 | AM93: 22-07709-001 | AN93: 0.05 | AO93: 0.05 | AP93: 0.05 | AQ93: 0.05 | AR93: 0.05 | AS93: 0 | AT93: See NV, WY, or WA | AU93: WWT23-3493-T0. 5-G00 | AV93: 0.5 | BB93: 7994-25-3 | BC93: 2025-03-21 | BD93: All Operators | BE93: Non-Process | BF93: 0.5 | BM93: 0.5 | BN93: 0.5 | BO93: 0.5 TC | BP93: 0.5 | BQ93: NV22-129 | BR93: 0.5 | BS93: WW | BT93: Not yet approved. | BV93: IWG-B6106-OM | BW93: IWG-B610625-OM | BX93: 0.5 | BY93: Both DW and WW | BZ93: R25223 | CA93: 0.5 | CB93: 0.5 | CC93: 0.5 | CD93: 0.5 | CE93: 0.5 | CF93: 0 | CG93: Not approved. | CH93: Accepted. Use Form 4400-190 | CI93: 0.5 | CJ93: 0.5 | CK93: 2025.0353 | CL93: W, D, WW | CM93: 0.5 | CN93: Yes | CO93: 0.5 | CP93: No | CQ93: This course covers residual chlorine analysis using either the total chlorine residual OR free chlorine residual DPD method using a hand-held pocket colorimeter. The procedure is presented step-by-step in accordance with the requirements and guidelines set forth in Standard Methods including required quality assurance and quality control samples. This course includes a discussion of DPD chemistry, the breakpoint chlorination curve, formation of chloramines, and the differences between the total and free chlorine residual tests. The course concludes with a discussion of required QA/QC samples. | CR93: 2023 LAB-006 Chlorine Residual | indigowatergroup.ispringmarket.com | CS93: This course covers residual chlorine analysis using either the total chlorine residual OR free chlorine residual DPD method using a hand-held pocket colorimeter. | CT93: Operators often conduct their own on-site testing or are reviewing data supplied by other labs. Production of accurate, legally defensible data is required for permit compliance and protection of public health. | CU93: Intermediate | CV93: All operators | CW93: Understand the different types of residuals. | CX93: Explain why it is possible to get the same total chlorine result at three different points on the breakpoint chlorination curve. | CY93: Analyze samples for free or total chlorine using the DPD test method. | CZ93: List the required QA/QC samples and the information gained by analyzing each type. | DI93: No prerequistes are required for this course. | DL93: 4
B94: LAB-007 | C94: 441 | D94: Laboratory - Spectroscopic Tests: Fluoride, Nitrite, and Nitrate | E94: S. Innerebner, PhD, PE | F94: Indigo Water Group | G94: 8513 S. Newcombe Way, Littleton, CO 80127 | H94: sidney@indigowatergroup.com | I94: 303-489-9226 | J94: 2025 LAB-007 Spec Tests Final Quiz | K94: 2023 LAB-007 Spec Tests Final Quiz | L94: 2022 LAB-007 Spectroscopic Tests | AA94: =SUM(M94:Z94) -> 0 | AC94: 0 | AD94: 1.5 | AH94: 0 | AI94: Not approved. | AJ94: 25-08960-001 | AK94: 24-08960-001 | AL94: 23-08960-001 | AM94: 22-08960-001 | AN94: 0.15 | AO94: 0.15 | AP94: 0.1 | AQ94: 0.15 | AR94: 0.15 | AS94: 0 | AT94: See NV, WY, or WA | AU94: Not yet approved | AV94: 0 | BB94: Not yet approved | BM94: 1.5 | BN94: 1.5 | BO94: 1.5 TC | BP94: 1.5 | BQ94: Not yet approved. | BR94: Not yet approved. | BS94: Not yet approved. | BT94: Not yet approved. | BV94: IWG-B6007-OM | BW94: IWG-B600725-OM | BX94: =AN94*10 -> 1.5 | BY94: Both DW and WW | BZ94: Not yet approved. | CA94: Not yet approved. | CB94: Not yet approved. | CC94: Not yet approved. | CD94: Not yet approved. | CE94: 1.5 | CF94: 0 | CG94: Not approved. | CH94: Accepted. Use Form 4400-190 | CI94: 1.5 | CJ94: 1.5 | CK94: 2025.0354 | CL94: W, D, WW | CM94: 1.5 | CN94: Yes | CO94: 1.5 | CP94: No | CQ94: This course covers three colorimetric test methods commonly performed at drinking water and wastewater treatment facilities using a hand-held pocket colorimeter. The procedures for each test method are presented step-by-step in accordance with the requirements and guidelines set forth in Standard Methods including required quality assurance and quality control samples. This course includes a discussion of the chemistry behind each test method and potential interferences. The course concludes with a discussion of required QA/QC samples. | CT94: Operators often conduct their own on-site testing or are reviewing data supplied by other labs. Production of accurate, legally defensible data is required for permit compliance and protection of public health. | CU94: Intermediate | CV94: Water / Wastewater | CW94: Understand the chemistry behind three different spectroscopic tests. | CX94: Correctly set up and execute the gravimetric total suspended solids procedure for analysis of wastewater samples including required QA/QC. | CY94: Explain which quality control samples are needed for each method and what information they give the analyst. | CZ94: Produce laboratory data that is accurate, precise, and defensible. | DI94: No prerequistes are required for this course. | DL94: 4
B95: LAB-008 | C95: 442 | D95: Laboratory - Ion-Selective Electrodes (ammonia, nitrate, fluoride) | E95: S. Innerebner, PhD, PE | F95: Indigo Water Group | G95: 8513 S. Newcombe Way, Littleton, CO 80127 | H95: sidney@indigowatergroup.com | I95: 303-489-9226 | J95: 2025 LAB-008 ISE Final Quiz | K95: 2023 LAB-008 ISE Final Quiz | L95: 2022 LAB-008 Ion-Selective Electrodes | AA95: 0 | AC95: 0 | AD95: 2 | AH95: 0 | AI95: Not approved. | AJ95: 25-08961-001 | AK95: 24-08961-001 | AL95: 23-08961-001 | AM95: 22-08961-001 | AN95: 0.2 | AO95: 0.2 | AP95: 0.15 | AQ95: 0.2 | AR95: 0.2 | AS95: 0 | AT95: See NV, WY, or WA | AU95: Not yet approved | AV95: 0 | BB95: Not yet approved | BM95: 2 | BN95: 2 | BO95: 2.0 TC | BP95: 2 | BQ95: Not yet approved. | BR95: Not yet approved. | BS95: Not yet approved. | BT95: Not yet approved. | BV95: IWG-B6108-OM | BW95: IWG-B610825-OM | BX95: =AN95*10 -> 2 | BY95: Both DW and WW | BZ95: Not yet approved. | CA95: Not yet approved. | CB95: Not yet approved. | CC95: Not yet approved. | CD95: Not yet approved. | CE95: 2 | CF95: 0 | CG95: Not approved. | CH95: Accepted. Use Form 4400-190 | CI95: 2 | CJ95: 2 | CK95: 2025.0355 | CL95: W, D, WW | CM95: 2 | CN95: Yes | CO95: 2 | CP95: No | CQ95: This course covers three ion-selective test methods commonly performed at drinking water and wastewater treatment facilities. The procedures for each test method are presented step-by-step in accordance with the requirements and guidelines set forth in Standard Methods including required quality assurance and quality control samples. This course includes a discussion of the chemistry behind each test method and potential interferences. The course concludes with a discussion of required QA/QC samples. | CT95: Operators often conduct their own on-site testing or are reviewing data supplied by other labs. Production of accurate, legally defensible data is required for permit compliance and protection of public health. | CU95: Intermediate | CV95: Water / Wastewater | CW95: Explain how the different types of ion-selective electrodes are constructed. | CX95: Correctly perform laboratory testing with ion-selective electrodes. | CY95: Understand that ion-selective electrodes drift and that initial and continueing calibration verification checks are necessary to check for drift. | CZ95: List the required quality control samples and explain what information they give the analyst. | DA95: Produce laboratory data that is accurate, precise, and defendable. | DI95: No prerequistes are required for this course. | DL95: 5
B96: LAB-009 | C96: 443 | D96: Laboratory - Jar Testing | E96: S. Innerebner, PhD, PE | F96: Indigo Water Group | G96: 8513 S. Newcombe Way, Littleton, CO 80127 | H96: sidney@indigowatergroup.com | I96: 303-489-9226 | J96: 2025 Jar Testing Final Quiz | K96: 2023 Jar Testing Final Quiz | L96: 2022 Jar Testing Final Quiz | M96: Q4 | N96: 1 | O96: 1 | P96: 1 | Q96: 1 | R96: 1 | S96: 4 | AA96: 10 | AB96: 67 | AC96: 72 | AD96: 1 | AH96: 0.1 | AI96: Core | AJ96: 25-07639-001 | AK96: 24-07639-001 | AL96: 23-07639-001 | AM96: 22-07639-001 | AN96: 0.1 | AO96: 0.1 | AP96: 0.1 | AQ96: 0.1 | AR96: 0 | AS96: 0 | AT96: See NV, WY, or WA | AU96: WWT23-3494-T01-G00 | AV96: 1 | BB96: 7995-25-3 | BC96: 2025-03-21 | BD96: All Operators | BE96: Non-Process | BF96: 1 | BM96: 1 | BN96: 1 | BO96: 1.0 TC | BP96: 1 | BQ96: NV22-130 | BR96: 1 | BS96: WW | BT96: Not yet approved. | BV96: IWG-B6109-OM | BW96: IWG-B610925-OM | BX96: 1 | BY96: Both DW and WW | BZ96: R23181 | CA96: 1 | CB96: 1 | CC96: 0 | CD96: 0 | CE96: 1 | CF96: 0.1 | CG96: ECY25-4048 | CH96: Accepted. Use Form 4400-190 | CI96: 1 | CJ96: 1 | CK96: 2025.0356 | CL96: W, WW | CM96: 1 | CN96: Yes | CO96: 1 | CP96: No | CQ96: This course walks attendees through the fundamentals of jar testing. The class starts with a review of drinking water treatment and a discussion of practical applications of jar testing in wastewater treatment. Attendees will learn how to 1) match jar test mixing intensity and times to conditions in the full scale facility, 2) select chemical dosages, 3) create stock solutions and dilute them, 4) read a G-force chart, 5) interpret jar testing results, and 6) translate results into process adjustments in the full-scale facility. | CR96: 2023 LAB-009 Jar Testing | indigowatergroup.ispringmarket.com | CS96: This course walks attendees through the fundamentals of jar testing for water and wastewater applications. Calculations for determining mixing energy and sampling times. | CT96: Operators often conduct their own on-site testing or are reviewing data supplied by other labs. Production of accurate, legally defensible data is required for permit compliance and protection of public health. | CU96: Advanced | CV96: Water / Wastewater | CW96: After completing this course, attendees should be able to calculate G-force, HRT, and SOR for a full scale facility and match jar test mixing intensity and times to those conditions. | CX96: Select chemical dosage ranges for an initial jar test and then adjust dosages based on results. | CY96: Create stock solutions and dilute them appropriately to achieve desired chemical doses. | CZ96: Read a G-force chart for a gang stirrer or other jar testing device. | DA96: Interpret jar testing results and adjust chemical dosages in response. | DB96: Translate results into process adjustments in the full-scale facility. | DI96: No prerequistes are required for this course. | DL96: 6
B97: LAB-010 | C97: 444 | D97: Laboratory Testing - Biochemical Oxygen Demand | E97: S. Innerebner, PhD, PE | F97: Indigo Water Group | G97: 8513 S. Newcombe Way, Littleton, CO 80127 | H97: sidney@indigowatergroup.com | I97: 303-489-9226 | J97: 2025 LAB-010 BOD Final Quiz | K97: 2023 LAB-010 BOD Final Quiz | L97: 2022 LAB-009 Laboratory BOD Final Quiz | M97: Q4 | N97: Q4 | O97: Q4 | P97: Q4 | Q97: Q4 | R97: Q10 | AA97: 30 | AB97: 97 | AC97: 112 | AD97: 2 | AH97: 0.2 | AI97: Core | AJ97: 25-07744-001 | AK97: 24-07744-001 | AL97: 23-07744-001 | AM97: 22-07744-001 | AN97: 0.2 | AO97: 0 | AP97: 0.2 | AQ97: 0.2 | AR97: 0 | AS97: 0.2 | AT97: See NV, WY, or WA | AU97: WWT23-3495-T1.5-G00 | AV97: 1.5 | BB97: 7996-25-3 | BC97: 2025-03-21 | BD97: All Water, WW and Ind | BE97: Non-Process | BF97: 2 | BM97: 2 | BN97: 2 | BO97: 1.5 TC | BP97: 1.5 | BQ97: NV22-131 | BR97: 1.5 | BS97: WW | BT97: Not yet approved. | BU97: OEPA-B579848-OM | BV97: IWG-S6110-OM | BW97: IWG-S611025-OM | BX97: =AN97*10 -> 2 | BY97: WW Only | BZ97: R23182 | CA97: 1.5 | CB97: 0 | CC97: 0 | CD97: 0 | CE97: 2 | CF97: 0.2 | CG97: ECY25-4049 | CH97: Accepted. Use Form 4400-190 | CI97: 2 | CJ97: 0 | CK97: 2025.0357 | CL97: WW | CM97: 2 | CN97: Yes | CO97: 2 | CP97: No | CQ97: This test covers the Biochemical Oxygen Demand (BOD) laboratory test. It walks you through each step including QA/QC and calculations with lots of helpful hints and background. A deep dive into this Standard Method. | CR97: 2023 LAB-010 BOD Testing | indigowatergroup.ispringmarket.com | CS97: This test covers the theory and practice of the Biochemical Oxygen Demand (BOD) laboratory test. It walks you through each step. | CT97: Operators often conduct their own on-site testing or are reviewing data supplied by other labs. Production of accurate, legally defensible data is required for permit compliance and protection of public health. | CU97: Advanced | CV97: Wastewater | CW97: Understand the historical and theoretical basis for the BOD test: a bulk estimate of organic content. | CX97: Calculate BOD results from raw analytical data and evaluate results from QA/QC samples. | CY97: Correctly set up testing for biochemical oxygen demand including all required and recommended quality assurance and quality control samples. Explain why each step of the procedure is necessary. | CZ97: List the required QA/QC samples for the BOD test and describe the purpose of each. | DI97: No prerequistes are required for this course. | DL97: 4
B98: LAB-011 | D98: Laboratory Testing - BOD Calculations | E98: S. Innerebner, PhD, PE | F98: Indigo Water Group | G98: 8513 S. Newcombe Way, Littleton, CO 80127 | H98: sidney@indigowatergroup.com | I98: 303-489-9226 | J98: 2025 LAB-011 BOD Calculations Final Quiz | M98: Q7 | N98: Q5 | AA98: 12 | AB98: 26 | AC98: 32 | AD98: 0.5 | AE98: Y | AH98: 0 | AI98: Not approved. | AJ98: 25-10938-001 | AN98: 0.05 | AO98: 0 | AP98: 0.05 | AQ98: 0.05 | AR98: 0 | AS98: 0.05 | AT98: See NV, WY, or WA | AU98: Not yet approved | AV98: 0 | BB98: Not Approved. | BC98: Not Approved. | BD98: Not Approved. | BE98: Not Approved. | BF98: 0 | BM98: 0.5 | BN98: 0.5 | BO98: 0.5 TC | BP98: 0.5 | BQ98: NV24-721 | BR98: 0.5 | BS98: WW | BT98: Not yet approved. | BV98: IWG-S6112-OM | BW98: IWG-S611225-OM | BX98: 0.5 | BY98: WW Only | BZ98: R25224 | CA98: 0.5 | CB98: 0 | CC98: 0 | CD98: 0 | CE98: 0.5 | CF98: 0 | CG98: Not approved. | CH98: Accepted. Use Form 4400-190 | CI98: 0.5 | CJ98: 0 | CK98: 2025.0358 | CL98: WW | CM98: 0.5 | CN98: Yes | CO98: 0.5 | CP98: No | CQ98: This 30 minute course walks attendees through calculations for a seeded and unseeded BOD test. This course includes a downloadable spreadsheet that calculates and validates BOD results. | CS98: This 30 minute course walks attendees through calculations for a seeded and unseeded BOD test. This course includes a downloadable spreadsheet. | CT98: Operators often conduct their own on-site testing or are reviewing data supplied by other labs. Production of accurate, legally defensible data is required for permit compliance and protection of public health. | CU98: Intermediate | CV98: Wastewater | CW98: Calculate BOD results for seeded and unseeded samples. | CX98: Understand why some BOD samples must be seeded. | DI98: No prerequistes are required for this course. | DL98: 2
B99: LAB-012 | C99: 445 | D99: Laboratory Testing - Total coliforms by MPN | E99: S. Innerebner, PhD, PE | F99: Indigo Water Group | G99: 8513 S. Newcombe Way, Littleton, CO 80127 | H99: sidney@indigowatergroup.com | I99: 303-489-9226 | J99: 2025 LAB-011 Coliforms Final Quiz | K99: 2023 LAB-011 Coliforms Final Quiz | L99: 2022 LAB-010 Laboratory Fecals Final Quiz | AA99: 0 | AC99: 0 | AD99: 1.5 | AH99: 0 | AI99: Not approved. | AJ99: 25-11233 | AL99: None for 2023 | AM99: 22-06029-001 | AN99: 0.15 | AO99: 0.15 | AP99: 0.15 | AQ99: 0.15 | AR99: 0.15 | AS99: 0.15 | AV99: 0 | BB99: 6013-16-11 | BD99: All WW, All IWW, All WT Operators | BE99: Non-Process | BF99: 1 | BM99: 0 | BN99: 0 | BO99: 1.5 TC | BP99: 1.5 | BQ99: NV22-132 | BR99: 1.5 | BS99: WW | BT99: Not yet approved. | BU99: OEPA-B579850-OM | BV99: IWG-B6111-OM | BW99: IWG-B611125-OM | BX99: =AN99*10 -> 1.5 | BY99: Both DW and WW | BZ99: R25359 | CA99: 1.5 | CB99: 1.5 | CC99: 1.5 | CD99: 1.5 | CE99: 1.5 | CF99: 0 | CG99: Not approved. | CH99: Accepted. Use Form 4400-190 | CI99: 1.5 | CJ99: 1.5 | CK99: 2025.0359 | CL99: W, D, WW | CM99: 1.5 | CN99: Yes | CO99: 1.5 | CP99: No | CQ99: These method specific talks cover a variety of laboratory testing procedures used in water and wastewater labs. Each method has its own one hour powerpoint presentation with lots of photographs walking analysts through procedures step by step. Appropriate QA/QC samples for each method are discussed as well as what to do when QA samples are out of limits. Each presentation references back to EPA 200 series methods and Standard Methods. | CT99: Operators often conduct their own on-site testing or are reviewing data supplied by other labs. Production of accurate, legally defensible data is required for permit compliance and protection of public health. | CU99: Advanced | CV99: Water / Wastewater | CW99: Correctly set up a coliform analysis using the most probable number (MPN) method including both presumptive and confirmation steps with all required quality assurance and quality control samples. Calculate results from raw laboratory data. | CX99: Understand how MPN uses statistics to determine the most probable number of organisms present in the sample. | CY99: Apply the correct QA/QC samples to the analysis. | DI99: No prerequistes are required for this course. | DL99: 3
D100: Industrial Wastewater Treatment | DL100: 0
B101: IND-001 | DL101: 0
B102: IND-002 | DL102: 0
B103: IND-003 | DL103: 0
B104: IND-004 | DL104: 0
B105: IND-005 | DL105: 0
B106: IND-006 | DL106: 0
B107: IND-007 | DL107: 0
B108: IND-008 | DL108: 0
B109: IND-009 | DL109: 0
B110: IND-010 | DL110: 0
D111: Management | DL111: 0
B112: MAN-001 | D112: Developing Standard Operating Procedures | E112: Jeff Oxenford | F112: Stratus Consulting | G112: 2100 Washington Ave, Golden, CO 80401 | H112: joxenford@comcast.net | I112: 720-353-4242 | J112: 2025 MAN-001 SOPs Final Quiz | M112: 6 | N112: 4 | O112: 3 | P112: 3 | Q112: 4 | AA112: =SUM(M112:Z112) -> 20 | AB112: 52 | AC112: =AB112+10 -> 62 | AD112: 1 | AG112: Y | AJ112: 25-10928-001 | AN112: 0.1 | AO112: 0 | AP112: 0 | AQ112: 0 | AR112: 0 | AS112: 0 | AT112: See NV, WY, or WA | AU112: Not yet approved | AV112: 0 | AW112: 0 | AX112: Not yet approved | AY112: Not yet approved | AZ112: Not yet approved | BA112: Not yet approved | BB112: 7997-25-3 | BC112: 2025-03-21 | BD112: All Operators | BE112: Non-Process | BF112: 1 | BM112: 1 | BN112: 1 | BO112: Not yet approved | BP112: Not yet approved | BQ112: Not yet approved | BR112: Not yet approved | BS112: Not yet approved | BT112: Not yet approved | BV112: IWG-B7101-X | BW112: IWG-B710125-X | BX112: 1 | BY112: Both DW and WW | BZ112: R25225 | CA112: 1 | CB112: 1 | CC112: 1 | CD112: 1 | CF112: 0.1 | CG112: ECY25-3998 | CH112: Accepted. Use Form 4400-190 | CI112: 1 | CJ112: 1 | CK112: 2025.036 | CL112: W, D, WW, C | CM112: 1 | CN112: Yes | CO112: 1 | CP112: No | CQ112: This session will provide tips and tricks for developing effective standards operating procedures (SOPs). These were developed as part of a cooperative effort with leading utilities through the SOP Cooperative. | CT112: Standard operating procedures are critical to ensuring consistent operation of equipment and for process control. Supervisors and operators are both responsible for writing and maintaining SOPs. | CW112: Understand why standard operating procedures are needed. | CX112: List criteria for developing effective standard operating procedures. | DI112: No prerequistes are required for this course. | DL112: 2
B113: MAN-002
B114: MAN-003
B115: MAN-004
B116: MAN-005
B117: MAN-006
B118: MAN-007
D119: Short Schools and Classroom Courses
B120: On-Line | D120: On-Line Wastewater Short School | E120: Mixed | AM120: 22-06342-001 | AN120: ='Wastewater Short School'!E36 -> 4.4 | AO120: ='Wastewater Short School'!F36 -> 1.75 | AP120: ='Wastewater Short School'!G36 -> 4.4 | AQ120: ='Wastewater Short School'!H36 -> 4.4 | AR120: ='Wastewater Short School'!I36 -> 1.05 | AS120: ='Wastewater Short School'!J36 -> 1.5
D121: Completed On-Line Wastewater Short School | AL121: 23-07363-001 | AM121: 22-07363-001 | AN121: 0 | AO121: 0 | AP121: 0 | AQ121: 0 | AR121: 0 | AS121: 0
B122: On-Line | D122: On-Line Drinking Water Short School | E122: Mixed | AM122: 22-06617-001 | AN122: ='Water Short School'!F35 -> 3.8 | AO122: ='Water Short School'!G35 -> 3.45 | AP122: ='Water Short School'!H35 -> 2.4 | AQ122: ='Water Short School'!I35 -> 2.5 | AR122: ='Water Short School'!J35 -> 3.45 | AS122: ='Water Short School'!K35 -> 1.6
D123: Completed On-Line Drinking Water Short School | AL123: 23-07362-001 | AM123: 22-07362-001 | AN123: 0 | AO123: 0 | AP123: 0 | AQ123: 0 | AR123: 0 | AS123: 0
A125: =COUNTIF(A4:A123,"Yes") -> 0 | B125: Total Courses Selected | AN125: =SUM(AN5:AN99) -> 14.65 | AO125: 7.55 | AP125: 12.1 | AQ125: 12.15 | AR125: 5.85 | AS125: 4.95 | AV125: =SUM(AV5:AV99) -> 90 | AW125: =SUM(AW5:AW99) -> 28.5 | BF125: =SUM(BF5:BF99) -> 128 | BM125: =SUM(BM5:BM99) -> 123.5 | BN125: =SUM(BN5:BN99) -> 123.5 | BO125: =SUM(BO5:BO99) -> 0 | BP125: =SUM(BP5:BP99) -> 133 | BR125: =SUM(BR5:BR99) -> 127 | BT125: =SUM(BT5:BT99) -> 0 | BX125: =SUM(BX5:BX99) -> 150 | CE125: =SUM(CE5:CE99) -> 127 | CF125: =SUM(CF5:CF99) -> 10.5 | CI125: =SUM(CI5:CI99) -> 127.2 | CJ125: =SUM(CJ5:CJ99) -> 65.2 | CM125: =SUM(CM5:CM99) -> 150 | CO125: =SUM(CO5:CO99) -> 133.5

Sheet TU Calculator
A1: My Training Plan | B1: Colorado
B2: Time, hrs | C2: Max TUs | D2: W | E2: WW | F2: I | G2: D | H2: C
A3: Total TUs Selected: | B3: =C159 -> 0 | C3: =H159 -> 0 | D3: =I159 -> 0 | E3: 0 | F3: 0 | G3: 0 | H3: 0
B5: Alaska CEUs | D5: =D159 -> 0
B7: Idaho
B8: See Nevada, Wyoming, or Washington
B10: Indiana
B11: Technical Hours | D11: General Hours
B12: =P159 -> 0 | D12: =Q159 -> 0
B14: Maryland Hours | E14: =Y159 -> 0
B15: Check Table for Process and/or Audience Type
B17: Nebraska
B18: Municipal Hours | D18: Industrial Hours
B19: =AF159 -> 0 | D19: =AG159 -> 0
B21: New Mexico
B22: =AI159 -> 0
B24: Nevada
B25: WW Contact Hours | D25: DW Contact Hours
B26: =AK159 -> 0 | D26: =AM159 -> 0
B27: Check Table for D/S
B29: Ohio Contact Hours | E29: =AQ159 -> 0
B30: Check Table for Audience Type
B32: Tennessee
B33: Hours | C33: WW | D33: W | E33: D | F33: C
B34: =C159 -> 0 | C34: =AT159 -> 0 | D34: =AU159 -> 0 | E34: =AV159 -> 0 | F34: =AW159 -> 0
B35: Washington State CEUs | E35: =AY159 -> 0
B37: Wisconsin
B38: Municipal Waterworks | D38: Wastewater
B39: =BB159 -> 0 | D39: =BC159 -> 0
B41: Wyoming
B42: Contact Hours | D42: Core | E42: Rules
B43: =BF159 -> 0 | D43: =BH159 -> 0 | E43: 0
A45: NOTE: Select Courses on the "On-Line Training Tab"
A46: by using the dropdown menus in column A.
A47: Courses Selected: | F47: Total Courses Selected: | G47: ='2025NewCourses'!A125 -> 0
C159: =SUM(C161:C256) -> 0 | D159: 0 | E159: 0 | F159: =SUM(F161:F256) -> 0 | G159: 0 | H159: 0 | I159: 0 | J159: 0 | K159: 0 | L159: 0 | M159: 0 | N159: 0 | O159: 0 | P159: 0 | Q159: 0 | R159: 0 | S159: 0 | T159: 0 | U159: 0 | V159: 0 | W159: 0 | X159: 0 | Y159: 0 | Z159: 0 | AA159: 0 | AB159: 0 | AC159: 0 | AD159: 0 | AE159: 0 | AF159: 0 | AG159: 0 | AH159: 0 | AI159: 0 | AJ159: 0 | AK159: 0 | AL159: =SUM(AL161:AL256) -> 0 | AM159: 0 | AN159: 0 | AO159: 0 | AP159: 0 | AQ159: 0 | AR159: 0 | AS159: 0 | AT159: 0 | AU159: 0 | AV159: 0 | AW159: 0 | AX159: 0 | AY159: 0 | AZ159: 0 | BA159: 0 | BB159: 0 | BC159: 0 | BD159: 0 | BE159: 0 | BF159: 0 | BG159: 0 | BH159: 0 | BI159: 0
C160: Total Course Length with Questions, Hours | D160: Alaska CEUs Approved | E160: Alaska CEU Type | F160: Colorado Approval No. 2025 | G160: Colorado Approval No. 2023 | H160: Colorado Max TUs | I160: Colorado Water TUs | J160: Colorado Wastewater TUs | K160: Colorado Industrial TUs | L160: Colorado Distribution TUs | M160: Colorado Collection System TUs | N160: Idaho Approvals | O160: Indiana Approval No. | P160: Indiana Technical Hrs | Q160: Indiana General Hrs | R160: Kansas Approval Number | S160: Kansas Water Hours | T160: Kansas Wastewater Hours | U160: Kansas Audience | V160: Maryland Course Code | W160: Maryland Audience | X160: Maryland Process? | Y160: Maryland Hours | Z160: Massachusettes Approval | AA160: Massachusettes Training Contact Hours | AB160: Massachusettes Audience | AC160: Montana Water CECs | AD160: Montana Wastewater CECs | AE160: Montana Dual CECs | AF160: Nebraska Municipal Hours | AG160: Nebraska Industrial Hours | AH160: New Mexico TC | AI160: New Mexico Hours | AJ160: Nevada Course No. | AK160: Nevada CEU Hours | AL160: Nevada Wastewater Approval | AM160: Nevada Drinking Water Hours | AN160: Ohio Approval No. (Pre Nov 2021) | AO160: Ohio Approval Number (Post Jan 2024) | AP160: Ohio Contact Hours (old) | AQ160: Ohio Contact Hours (new) | AR160: Ohio Audience | AS160: Tennessee Activity Number | AT160: Tennessee Wastewater Hours | AU160: Tennessee Water Hours | AV160: Tennessee Distribution Hours | AW160: Tennessee Collection Systems Hours | AX160: Utah Approval | AY160: Washington State CEUs | AZ160: Washington Approval No. | BA160: Wisconsin Approval No. | BB160: Wisconsin Municipal Waterworks | BC160: Wisconsin Wastewater | BD160: Wyoming Catalog Number | BE160: Wyoming Area | BF160: Wyoming Hours | BG160: Wyoming CORE? | BH160: Wyoming Core Hours | BI160: Wyoming Rules?
A161: =IF('2025NewCourses'!$A5="Yes",'2025NewCourses'!B5," ") ->  | B161: =IF('2025NewCourses'!$A5="Yes",'2025NewCourses'!D5," ") ->  | C161: =IF('2025NewCourses'!$A5="Yes",'2025NewCourses'!AD5," ") ->  | D161: =IF('2025NewCourses'!$A5="Yes",'2025NewCourses'!AH5," ") ->  | E161: =IF('2025NewCourses'!$A5="Yes",'2025NewCourses'!AI5," ") ->  | F161: =IF('2025NewCourses'!$A5="Yes",'2025NewCourses'!AJ5," ") ->  | G161: =IF('2025NewCourses'!$A5="Yes",'2025NewCourses'!AL5," ") ->  | H161: =IF('2025NewCourses'!$A5="Yes",'2025NewCourses'!AN5," ") ->  | I161: =IF('2025NewCourses'!$A5="Yes",'2025NewCourses'!AO5," ") ->  | J161: =IF('2025NewCourses'!$A5="Yes",'2025NewCourses'!AP5," ") ->  | K161: =IF('2025NewCourses'!$A5="Yes",'2025NewCourses'!AQ5," ") ->  | L161: =IF('2025NewCourses'!$A5="Yes",'2025NewCourses'!AR5," ") ->  | M161: =IF('2025NewCourses'!$A5="Yes",'2025NewCourses'!AS5," ") ->  | N161: =IF('2025NewCourses'!$A5="Yes",'2025NewCourses'!AT5," ") ->  | O161: =IF('2025NewCourses'!$A5="Yes",'2025NewCourses'!AU5," ") ->  | P161: =IF('2025NewCourses'!$A5="Yes",'2025NewCourses'!AV5," ") ->  | Q161: =IF('2025NewCourses'!$A5="Yes",'2025NewCourses'!AW5," ") ->  | R161: =IF('2025NewCourses'!$A5="Yes",'2025NewCourses'!AX5," ") ->  | S161: =IF('2025NewCourses'!$A5="Yes",'2025NewCourses'!AY5," ") ->  | T161: =IF('2025NewCourses'!$A5="Yes",'2025NewCourses'!AZ5," ") ->  | U161: =IF('2025NewCourses'!$A5="Yes",'2025NewCourses'!BA5," ") ->  | V161: =IF('2025NewCourses'!$A5="Yes",'2025NewCourses'!BB5," ") ->  | W161: =IF('2025NewCourses'!$A5="Yes",'2025NewCourses'!BD5," ") ->  | X161: =IF('2025NewCourses'!$A5="Yes",'2025NewCourses'!BE5," ") ->  | Y161: =IF('2025NewCourses'!$A5="Yes",'2025NewCourses'!BF5," ") ->  | Z161: =IF('2025NewCourses'!$A5="Yes",'2025NewCourses'!BG5," ") ->  | AA161: =IF('2025NewCourses'!$A5="Yes",'2025NewCourses'!BH5," ") ->  | AB161: =IF('2025NewCourses'!$A5="Yes",'2025NewCourses'!BI5," ") ->  | AC161: =IF('2025NewCourses'!$A5="Yes",'2025NewCourses'!BJ5," ") ->  | AD161: =IF('2025NewCourses'!$A5="Yes",'2025NewCourses'!BK5," ") ->  | AE161: =IF('2025NewCourses'!$A5="Yes",'2025NewCourses'!BL5," ") ->  | AF161: =IF('2025NewCourses'!$A5="Yes",'2025NewCourses'!BM5," ") ->  | AG161: =IF('2025NewCourses'!$A5="Yes",'2025NewCourses'!BN5," ") ->  | AH161: =IF('2025NewCourses'!$A5="Yes",'2025NewCourses'!BO5," ") ->  | AI161: =IF('2025NewCourses'!$A5="Yes",'2025NewCourses'!BP5," ") ->  | AJ161: =IF('2025NewCourses'!$A5="Yes",'2025NewCourses'!BQ5," ") ->  | AK161: =IF('2025NewCourses'!$A5="Yes",'2025NewCourses'!BR5," ") ->  | AL161: =IF('2025NewCourses'!$A5="Yes",'2025NewCourses'!BS5," ") ->  | AM161: =IF('2025NewCourses'!$A5="Yes",'2025NewCourses'!BT5," ") ->  | AN161: =IF('2025NewCourses'!$A5="Yes",'2025NewCourses'!BU5," ") ->  | AO161: =IF('2025NewCourses'!$A5="Yes",'2025NewCourses'!BV5," ") ->  | AP161: =IF('2025NewCourses'!$A5="Yes",'2025NewCourses'!BX5," ") ->  | AQ161: =IF('2025NewCourses'!$A5="Yes",'2025NewCourses'!BX5," ") ->  | AR161: =IF('2025NewCourses'!$A5="Yes",'2025NewCourses'!BY5," ") ->  | AS161: =IF('2025NewCourses'!$A5="Yes",'2025NewCourses'!BZ5," ") ->  | AT161: =IF('2025NewCourses'!$A5="Yes",'2025NewCourses'!CA5," ") ->  | AU161: =IF('2025NewCourses'!$A5="Yes",'2025NewCourses'!CB5," ") ->  | AV161: =IF('2025NewCourses'!$A5="Yes",'2025NewCourses'!CC5," ") ->  | AW161: =IF('2025NewCourses'!$A5="Yes",'2025NewCourses'!CD5," ") ->  | AX161: =IF('2025NewCourses'!$A5="Yes",'2025NewCourses'!CE5," ") ->  | AY161: =IF('2025NewCourses'!$A5="Yes",'2025NewCourses'!CF5," ") ->  | AZ161: =IF('2025NewCourses'!$A5="Yes",'2025NewCourses'!CG5," ") ->  | BA161: =IF('2025NewCourses'!$A5="Yes",'2025NewCourses'!CH5," ") ->  | BB161: =IF('2025NewCourses'!$A5="Yes",'2025NewCourses'!CI5," ") ->  | BC161: =IF('2025NewCourses'!$A5="Yes",'2025NewCourses'!CJ5," ") ->  | BD161: =IF('2025NewCourses'!$A5="Yes",'2025NewCourses'!CK5," ") ->  | BE161: =IF('2025NewCourses'!$A5="Yes",'2025NewCourses'!CL5," ") ->  | BF161: =IF('2025NewCourses'!$A5="Yes",'2025NewCourses'!CM5," ") ->  | BG161: =IF('2025NewCourses'!$A5="Yes",'2025NewCourses'!CN5," ") ->  | BH161: =IF('2025NewCourses'!$A5="Yes",'2025NewCourses'!CO5," ") ->  | BI161: =IF('2025NewCourses'!$A5="Yes",'2025NewCourses'!CP5," ") -> 
A162: =IF('2025NewCourses'!$A6="Yes",'2025NewCourses'!B6," ") ->  | B162: =IF('2025NewCourses'!$A6="Yes",'2025NewCourses'!D6," ") ->  | C162: =IF('2025NewCourses'!$A6="Yes",'2025NewCourses'!AD6," ") ->  | D162: =IF('2025NewCourses'!$A6="Yes",'2025NewCourses'!AH6," ") ->  | E162: =IF('2025NewCourses'!$A6="Yes",'2025NewCourses'!AI6," ") ->  | F162: =IF('2025NewCourses'!$A6="Yes",'2025NewCourses'!AJ6," ") ->  | G162: =IF('2025NewCourses'!$A6="Yes",'2025NewCourses'!AL6," ") ->  | H162: =IF('2025NewCourses'!$A6="Yes",'2025NewCourses'!AN6," ") ->  | I162: =IF('2025NewCourses'!$A6="Yes",'2025NewCourses'!AO6," ") ->  | J162: =IF('2025NewCourses'!$A6="Yes",'2025NewCourses'!AP6," ") ->  | K162: =IF('2025NewCourses'!$A6="Yes",'2025NewCourses'!AQ6," ") ->  | L162: =IF('2025NewCourses'!$A6="Yes",'2025NewCourses'!AR6," ") ->  | M162: =IF('2025NewCourses'!$A6="Yes",'2025NewCourses'!AS6," ") ->  | N162: =IF('2025NewCourses'!$A6="Yes",'2025NewCourses'!AT6," ") ->  | O162: =IF('2025NewCourses'!$A6="Yes",'2025NewCourses'!AU6," ") ->  | P162: =IF('2025NewCourses'!$A6="Yes",'2025NewCourses'!AV6," ") ->  | Q162: =IF('2025NewCourses'!$A6="Yes",'2025NewCourses'!AW6," ") ->  | R162: =IF('2025NewCourses'!$A6="Yes",'2025NewCourses'!AX6," ") ->  | S162: =IF('2025NewCourses'!$A6="Yes",'2025NewCourses'!AY6," ") ->  | T162: =IF('2025NewCourses'!$A6="Yes",'2025NewCourses'!AZ6," ") ->  | U162: =IF('2025NewCourses'!$A6="Yes",'2025NewCourses'!BA6," ") ->  | V162: =IF('2025NewCourses'!$A6="Yes",'2025NewCourses'!BB6," ") ->  | W162: =IF('2025NewCourses'!$A6="Yes",'2025NewCourses'!BD6," ") ->  | X162: =IF('2025NewCourses'!$A6="Yes",'2025NewCourses'!BE6," ") ->  | Y162: =IF('2025NewCourses'!$A6="Yes",'2025NewCourses'!BF6," ") ->  | Z162: =IF('2025NewCourses'!$A6="Yes",'2025NewCourses'!BG6," ") ->  | AA162: =IF('2025NewCourses'!$A6="Yes",'2025NewCourses'!BH6," ") ->  | AB162: =IF('2025NewCourses'!$A6="Yes",'2025NewCourses'!BI6," ") ->  | AC162: =IF('2025NewCourses'!$A6="Yes",'2025NewCourses'!BJ6," ") ->  | AD162: =IF('2025NewCourses'!$A6="Yes",'2025NewCourses'!BK6," ") ->  | AE162: =IF('2025NewCourses'!$A6="Yes",'2025NewCourses'!BL6," ") ->  | AF162: =IF('2025NewCourses'!$A6="Yes",'2025NewCourses'!BM6," ") ->  | AG162: =IF('2025NewCourses'!$A6="Yes",'2025NewCourses'!BN6," ") ->  | AH162: =IF('2025NewCourses'!$A6="Yes",'2025NewCourses'!BO6," ") ->  | AI162: =IF('2025NewCourses'!$A6="Yes",'2025NewCourses'!BP6," ") ->  | AJ162: =IF('2025NewCourses'!$A6="Yes",'2025NewCourses'!BQ6," ") ->  | AK162: =IF('2025NewCourses'!$A6="Yes",'2025NewCourses'!BR6," ") ->  | AL162: =IF('2025NewCourses'!$A6="Yes",'2025NewCourses'!BS6," ") ->  | AM162: =IF('2025NewCourses'!$A6="Yes",'2025NewCourses'!BT6," ") ->  | AN162: =IF('2025NewCourses'!$A6="Yes",'2025NewCourses'!BU6," ") ->  | AO162: =IF('2025NewCourses'!$A6="Yes",'2025NewCourses'!BV6," ") ->  | AP162: =IF('2025NewCourses'!$A6="Yes",'2025NewCourses'!BX6," ") ->  | AQ162: =IF('2025NewCourses'!$A6="Yes",'2025NewCourses'!BX6," ") ->  | AR162: =IF('2025NewCourses'!$A6="Yes",'2025NewCourses'!BY6," ") ->  | AS162: =IF('2025NewCourses'!$A6="Yes",'2025NewCourses'!BZ6," ") ->  | AT162: =IF('2025NewCourses'!$A6="Yes",'2025NewCourses'!CA6," ") ->  | AU162: =IF('2025NewCourses'!$A6="Yes",'2025NewCourses'!CB6," ") ->  | AV162: =IF('2025NewCourses'!$A6="Yes",'2025NewCourses'!CC6," ") ->  | AW162: =IF('2025NewCourses'!$A6="Yes",'2025NewCourses'!CD6," ") ->  | AX162: =IF('2025NewCourses'!$A6="Yes",'2025NewCourses'!CE6," ") ->  | AY162: =IF('2025NewCourses'!$A6="Yes",'2025NewCourses'!CF6," ") ->  | AZ162: =IF('2025NewCourses'!$A6="Yes",'2025NewCourses'!CG6," ") ->  | BA162: =IF('2025NewCourses'!$A6="Yes",'2025NewCourses'!CH6," ") ->  | BB162: =IF('2025NewCourses'!$A6="Yes",'2025NewCourses'!CI6," ") ->  | BC162: =IF('2025NewCourses'!$A6="Yes",'2025NewCourses'!CJ6," ") ->  | BD162: =IF('2025NewCourses'!$A6="Yes",'2025NewCourses'!CK6," ") ->  | BE162: =IF('2025NewCourses'!$A6="Yes",'2025NewCourses'!CL6," ") ->  | BF162: =IF('2025NewCourses'!$A6="Yes",'2025NewCourses'!CM6," ") ->  | BG162: =IF('2025NewCourses'!$A6="Yes",'2025NewCourses'!CN6," ") ->  | BH162: =IF('2025NewCourses'!$A6="Yes",'2025NewCourses'!CO6," ") ->  | BI162: =IF('2025NewCourses'!$A6="Yes",'2025NewCourses'!CP6," ") -> 
A163: =IF('2025NewCourses'!$A7="Yes",'2025NewCourses'!B7," ") ->  | B163: =IF('2025NewCourses'!$A7="Yes",'2025NewCourses'!D7," ") ->  | C163: =IF('2025NewCourses'!$A7="Yes",'2025NewCourses'!AD7," ") ->  | D163: =IF('2025NewCourses'!$A7="Yes",'2025NewCourses'!AH7," ") ->  | E163: =IF('2025NewCourses'!$A7="Yes",'2025NewCourses'!AI7," ") ->  | F163: =IF('2025NewCourses'!$A7="Yes",'2025NewCourses'!AJ7," ") ->  | G163: =IF('2025NewCourses'!$A7="Yes",'2025NewCourses'!AL7," ") ->  | H163: =IF('2025NewCourses'!$A7="Yes",'2025NewCourses'!AN7," ") ->  | I163: =IF('2025NewCourses'!$A7="Yes",'2025NewCourses'!AO7," ") ->  | J163: =IF('2025NewCourses'!$A7="Yes",'2025NewCourses'!AP7," ") ->  | K163: =IF('2025NewCourses'!$A7="Yes",'2025NewCourses'!AQ7," ") ->  | L163: =IF('2025NewCourses'!$A7="Yes",'2025NewCourses'!AR7," ") ->  | M163: =IF('2025NewCourses'!$A7="Yes",'2025NewCourses'!AS7," ") ->  | N163: =IF('2025NewCourses'!$A7="Yes",'2025NewCourses'!AT7," ") ->  | O163: =IF('2025NewCourses'!$A7="Yes",'2025NewCourses'!AU7," ") ->  | P163: =IF('2025NewCourses'!$A7="Yes",'2025NewCourses'!AV7," ") ->  | Q163: =IF('2025NewCourses'!$A7="Yes",'2025NewCourses'!AW7," ") ->  | R163: =IF('2025NewCourses'!$A7="Yes",'2025NewCourses'!AX7," ") ->  | S163: =IF('2025NewCourses'!$A7="Yes",'2025NewCourses'!AY7," ") ->  | T163: =IF('2025NewCourses'!$A7="Yes",'2025NewCourses'!AZ7," ") ->  | U163: =IF('2025NewCourses'!$A7="Yes",'2025NewCourses'!BA7," ") ->  | V163: =IF('2025NewCourses'!$A7="Yes",'2025NewCourses'!BB7," ") ->  | W163: =IF('2025NewCourses'!$A7="Yes",'2025NewCourses'!BD7," ") ->  | X163: =IF('2025NewCourses'!$A7="Yes",'2025NewCourses'!BE7," ") ->  | Y163: =IF('2025NewCourses'!$A7="Yes",'2025NewCourses'!BF7," ") ->  | Z163: =IF('2025NewCourses'!$A7="Yes",'2025NewCourses'!BG7," ") ->  | AA163: =IF('2025NewCourses'!$A7="Yes",'2025NewCourses'!BH7," ") ->  | AB163: =IF('2025NewCourses'!$A7="Yes",'2025NewCourses'!BI7," ") ->  | AC163: =IF('2025NewCourses'!$A7="Yes",'2025NewCourses'!BJ7," ") ->  | AD163: =IF('2025NewCourses'!$A7="Yes",'2025NewCourses'!BK7," ") ->  | AE163: =IF('2025NewCourses'!$A7="Yes",'2025NewCourses'!BL7," ") ->  | AF163: =IF('2025NewCourses'!$A7="Yes",'2025NewCourses'!BM7," ") ->  | AG163: =IF('2025NewCourses'!$A7="Yes",'2025NewCourses'!BN7," ") ->  | AH163: =IF('2025NewCourses'!$A7="Yes",'2025NewCourses'!BO7," ") ->  | AI163: =IF('2025NewCourses'!$A7="Yes",'2025NewCourses'!BP7," ") ->  | AJ163: =IF('2025NewCourses'!$A7="Yes",'2025NewCourses'!BQ7," ") ->  | AK163: =IF('2025NewCourses'!$A7="Yes",'2025NewCourses'!BR7," ") ->  | AL163: =IF('2025NewCourses'!$A7="Yes",'2025NewCourses'!BS7," ") ->  | AM163: =IF('2025NewCourses'!$A7="Yes",'2025NewCourses'!BT7," ") ->  | AN163: =IF('2025NewCourses'!$A7="Yes",'2025NewCourses'!BU7," ") ->  | AO163: =IF('2025NewCourses'!$A7="Yes",'2025NewCourses'!BV7," ") ->  | AP163: =IF('2025NewCourses'!$A7="Yes",'2025NewCourses'!BX7," ") ->  | AQ163: =IF('2025NewCourses'!$A7="Yes",'2025NewCourses'!BX7," ") ->  | AR163: =IF('2025NewCourses'!$A7="Yes",'2025NewCourses'!BY7," ") ->  | AS163: =IF('2025NewCourses'!$A7="Yes",'2025NewCourses'!BZ7," ") ->  | AT163: =IF('2025NewCourses'!$A7="Yes",'2025NewCourses'!CA7," ") ->  | AU163: =IF('2025NewCourses'!$A7="Yes",'2025NewCourses'!CB7," ") ->  | AV163: =IF('2025NewCourses'!$A7="Yes",'2025NewCourses'!CC7," ") ->  | AW163: =IF('2025NewCourses'!$A7="Yes",'2025NewCourses'!CD7," ") ->  | AX163: =IF('2025NewCourses'!$A7="Yes",'2025NewCourses'!CE7," ") ->  | AY163: =IF('2025NewCourses'!$A7="Yes",'2025NewCourses'!CF7," ") ->  | AZ163: =IF('2025NewCourses'!$A7="Yes",'2025NewCourses'!CG7," ") ->  | BA163: =IF('2025NewCourses'!$A7="Yes",'2025NewCourses'!CH7," ") ->  | BB163: =IF('2025NewCourses'!$A7="Yes",'2025NewCourses'!CI7," ") ->  | BC163: =IF('2025NewCourses'!$A7="Yes",'2025NewCourses'!CJ7," ") ->  | BD163: =IF('2025NewCourses'!$A7="Yes",'2025NewCourses'!CK7," ") ->  | BE163: =IF('2025NewCourses'!$A7="Yes",'2025NewCourses'!CL7," ") ->  | BF163: =IF('2025NewCourses'!$A7="Yes",'2025NewCourses'!CM7," ") ->  | BG163: =IF('2025NewCourses'!$A7="Yes",'2025NewCourses'!CN7," ") ->  | BH163: =IF('2025NewCourses'!$A7="Yes",'2025NewCourses'!CO7," ") ->  | BI163: =IF('2025NewCourses'!$A7="Yes",'2025NewCourses'!CP7," ") -> 
A164: =IF('2025NewCourses'!$A8="Yes",'2025NewCourses'!B8," ") ->  | B164: =IF('2025NewCourses'!$A8="Yes",'2025NewCourses'!D8," ") ->  | C164: =IF('2025NewCourses'!$A8="Yes",'2025NewCourses'!AD8," ") ->  | D164: =IF('2025NewCourses'!$A8="Yes",'2025NewCourses'!AH8," ") ->  | E164: =IF('2025NewCourses'!$A8="Yes",'2025NewCourses'!AI8," ") ->  | F164: =IF('2025NewCourses'!$A8="Yes",'2025NewCourses'!AJ8," ") ->  | G164: =IF('2025NewCourses'!$A8="Yes",'2025NewCourses'!AL8," ") ->  | H164: =IF('2025NewCourses'!$A8="Yes",'2025NewCourses'!AN8," ") ->  | I164: =IF('2025NewCourses'!$A8="Yes",'2025NewCourses'!AO8," ") ->  | J164: =IF('2025NewCourses'!$A8="Yes",'2025NewCourses'!AP8," ") ->  | K164: =IF('2025NewCourses'!$A8="Yes",'2025NewCourses'!AQ8," ") ->  | L164: =IF('2025NewCourses'!$A8="Yes",'2025NewCourses'!AR8," ") ->  | M164: =IF('2025NewCourses'!$A8="Yes",'2025NewCourses'!AS8," ") ->  | N164: =IF('2025NewCourses'!$A8="Yes",'2025NewCourses'!AT8," ") ->  | O164: =IF('2025NewCourses'!$A8="Yes",'2025NewCourses'!AU8," ") ->  | P164: =IF('2025NewCourses'!$A8="Yes",'2025NewCourses'!AV8," ") ->  | Q164: =IF('2025NewCourses'!$A8="Yes",'2025NewCourses'!AW8," ") ->  | R164: =IF('2025NewCourses'!$A8="Yes",'2025NewCourses'!AX8," ") ->  | S164: =IF('2025NewCourses'!$A8="Yes",'2025NewCourses'!AY8," ") ->  | T164: =IF('2025NewCourses'!$A8="Yes",'2025NewCourses'!AZ8," ") ->  | U164: =IF('2025NewCourses'!$A8="Yes",'2025NewCourses'!BA8," ") ->  | V164: =IF('2025NewCourses'!$A8="Yes",'2025NewCourses'!BB8," ") ->  | W164: =IF('2025NewCourses'!$A8="Yes",'2025NewCourses'!BD8," ") ->  | X164: =IF('2025NewCourses'!$A8="Yes",'2025NewCourses'!BE8," ") ->  | Y164: =IF('2025NewCourses'!$A8="Yes",'2025NewCourses'!BF8," ") ->  | Z164: =IF('2025NewCourses'!$A8="Yes",'2025NewCourses'!BG8," ") ->  | AA164: =IF('2025NewCourses'!$A8="Yes",'2025NewCourses'!BH8," ") ->  | AB164: =IF('2025NewCourses'!$A8="Yes",'2025NewCourses'!BI8," ") ->  | AC164: =IF('2025NewCourses'!$A8="Yes",'2025NewCourses'!BJ8," ") ->  | AD164: =IF('2025NewCourses'!$A8="Yes",'2025NewCourses'!BK8," ") ->  | AE164: =IF('2025NewCourses'!$A8="Yes",'2025NewCourses'!BL8," ") ->  | AF164: =IF('2025NewCourses'!$A8="Yes",'2025NewCourses'!BM8," ") ->  | AG164: =IF('2025NewCourses'!$A8="Yes",'2025NewCourses'!BN8," ") ->  | AH164: =IF('2025NewCourses'!$A8="Yes",'2025NewCourses'!BO8," ") ->  | AI164: =IF('2025NewCourses'!$A8="Yes",'2025NewCourses'!BP8," ") ->  | AJ164: =IF('2025NewCourses'!$A8="Yes",'2025NewCourses'!BQ8," ") ->  | AK164: =IF('2025NewCourses'!$A8="Yes",'2025NewCourses'!BR8," ") ->  | AL164: =IF('2025NewCourses'!$A8="Yes",'2025NewCourses'!BS8," ") ->  | AM164: =IF('2025NewCourses'!$A8="Yes",'2025NewCourses'!BT8," ") ->  | AN164: =IF('2025NewCourses'!$A8="Yes",'2025NewCourses'!BU8," ") ->  | AO164: =IF('2025NewCourses'!$A8="Yes",'2025NewCourses'!BV8," ") ->  | AP164: =IF('2025NewCourses'!$A8="Yes",'2025NewCourses'!BX8," ") ->  | AQ164: =IF('2025NewCourses'!$A8="Yes",'2025NewCourses'!BX8," ") ->  | AR164: =IF('2025NewCourses'!$A8="Yes",'2025NewCourses'!BY8," ") ->  | AS164: =IF('2025NewCourses'!$A8="Yes",'2025NewCourses'!BZ8," ") ->  | AT164: =IF('2025NewCourses'!$A8="Yes",'2025NewCourses'!CA8," ") ->  | AU164: =IF('2025NewCourses'!$A8="Yes",'2025NewCourses'!CB8," ") ->  | AV164: =IF('2025NewCourses'!$A8="Yes",'2025NewCourses'!CC8," ") ->  | AW164: =IF('2025NewCourses'!$A8="Yes",'2025NewCourses'!CD8," ") ->  | AX164: =IF('2025NewCourses'!$A8="Yes",'2025NewCourses'!CE8," ") ->  | AY164: =IF('2025NewCourses'!$A8="Yes",'2025NewCourses'!CF8," ") ->  | AZ164: =IF('2025NewCourses'!$A8="Yes",'2025NewCourses'!CG8," ") ->  | BA164: =IF('2025NewCourses'!$A8="Yes",'2025NewCourses'!CH8," ") ->  | BB164: =IF('2025NewCourses'!$A8="Yes",'2025NewCourses'!CI8," ") ->  | BC164: =IF('2025NewCourses'!$A8="Yes",'2025NewCourses'!CJ8," ") ->  | BD164: =IF('2025NewCourses'!$A8="Yes",'2025NewCourses'!CK8," ") ->  | BE164: =IF('2025NewCourses'!$A8="Yes",'2025NewCourses'!CL8," ") ->  | BF164: =IF('2025NewCourses'!$A8="Yes",'2025NewCourses'!CM8," ") ->  | BG164: =IF('2025NewCourses'!$A8="Yes",'2025NewCourses'!CN8," ") ->  | BH164: =IF('2025NewCourses'!$A8="Yes",'2025NewCourses'!CO8," ") ->  | BI164: =IF('2025NewCourses'!$A8="Yes",'2025NewCourses'!CP8," ") -> 
A165: =IF('2025NewCourses'!$A9="Yes",'2025NewCourses'!B9," ") ->  | B165: =IF('2025NewCourses'!$A9="Yes",'2025NewCourses'!D9," ") ->  | C165: =IF('2025NewCourses'!$A9="Yes",'2025NewCourses'!AD9," ") ->  | D165: =IF('2025NewCourses'!$A9="Yes",'2025NewCourses'!AH9," ") ->  | E165: =IF('2025NewCourses'!$A9="Yes",'2025NewCourses'!AI9," ") ->  | F165: =IF('2025NewCourses'!$A9="Yes",'2025NewCourses'!AJ9," ") ->  | G165: =IF('2025NewCourses'!$A9="Yes",'2025NewCourses'!AL9," ") ->  | H165: =IF('2025NewCourses'!$A9="Yes",'2025NewCourses'!AN9," ") ->  | I165: =IF('2025NewCourses'!$A9="Yes",'2025NewCourses'!AO9," ") ->  | J165: =IF('2025NewCourses'!$A9="Yes",'2025NewCourses'!AP9," ") ->  | K165: =IF('2025NewCourses'!$A9="Yes",'2025NewCourses'!AQ9," ") ->  | L165: =IF('2025NewCourses'!$A9="Yes",'2025NewCourses'!AR9," ") ->  | M165: =IF('2025NewCourses'!$A9="Yes",'2025NewCourses'!AS9," ") ->  | N165: =IF('2025NewCourses'!$A9="Yes",'2025NewCourses'!AT9," ") ->  | O165: =IF('2025NewCourses'!$A9="Yes",'2025NewCourses'!AU9," ") ->  | P165: =IF('2025NewCourses'!$A9="Yes",'2025NewCourses'!AV9," ") ->  | Q165: =IF('2025NewCourses'!$A9="Yes",'2025NewCourses'!AW9," ") ->  | R165: =IF('2025NewCourses'!$A9="Yes",'2025NewCourses'!AX9," ") ->  | S165: =IF('2025NewCourses'!$A9="Yes",'2025NewCourses'!AY9," ") ->  | T165: =IF('2025NewCourses'!$A9="Yes",'2025NewCourses'!AZ9," ") ->  | U165: =IF('2025NewCourses'!$A9="Yes",'2025NewCourses'!BA9," ") ->  | V165: =IF('2025NewCourses'!$A9="Yes",'2025NewCourses'!BB9," ") ->  | W165: =IF('2025NewCourses'!$A9="Yes",'2025NewCourses'!BD9," ") ->  | X165: =IF('2025NewCourses'!$A9="Yes",'2025NewCourses'!BE9," ") ->  | Y165: =IF('2025NewCourses'!$A9="Yes",'2025NewCourses'!BF9," ") ->  | Z165: =IF('2025NewCourses'!$A9="Yes",'2025NewCourses'!BG9," ") ->  | AA165: =IF('2025NewCourses'!$A9="Yes",'2025NewCourses'!BH9," ") ->  | AB165: =IF('2025NewCourses'!$A9="Yes",'2025NewCourses'!BI9," ") ->  | AC165: =IF('2025NewCourses'!$A9="Yes",'2025NewCourses'!BJ9," ") ->  | AD165: =IF('2025NewCourses'!$A9="Yes",'2025NewCourses'!BK9," ") ->  | AE165: =IF('2025NewCourses'!$A9="Yes",'2025NewCourses'!BL9," ") ->  | AF165: =IF('2025NewCourses'!$A9="Yes",'2025NewCourses'!BM9," ") ->  | AG165: =IF('2025NewCourses'!$A9="Yes",'2025NewCourses'!BN9," ") ->  | AH165: =IF('2025NewCourses'!$A9="Yes",'2025NewCourses'!BO9," ") ->  | AI165: =IF('2025NewCourses'!$A9="Yes",'2025NewCourses'!BP9," ") ->  | AJ165: =IF('2025NewCourses'!$A9="Yes",'2025NewCourses'!BQ9," ") ->  | AK165: =IF('2025NewCourses'!$A9="Yes",'2025NewCourses'!BR9," ") ->  | AL165: =IF('2025NewCourses'!$A9="Yes",'2025NewCourses'!BS9," ") ->  | AM165: =IF('2025NewCourses'!$A9="Yes",'2025NewCourses'!BT9," ") ->  | AN165: =IF('2025NewCourses'!$A9="Yes",'2025NewCourses'!BU9," ") ->  | AO165: =IF('2025NewCourses'!$A9="Yes",'2025NewCourses'!BV9," ") ->  | AP165: =IF('2025NewCourses'!$A9="Yes",'2025NewCourses'!BX9," ") ->  | AQ165: =IF('2025NewCourses'!$A9="Yes",'2025NewCourses'!BX9," ") ->  | AR165: =IF('2025NewCourses'!$A9="Yes",'2025NewCourses'!BY9," ") ->  | AS165: =IF('2025NewCourses'!$A9="Yes",'2025NewCourses'!BZ9," ") ->  | AT165: =IF('2025NewCourses'!$A9="Yes",'2025NewCourses'!CA9," ") ->  | AU165: =IF('2025NewCourses'!$A9="Yes",'2025NewCourses'!CB9," ") ->  | AV165: =IF('2025NewCourses'!$A9="Yes",'2025NewCourses'!CC9," ") ->  | AW165: =IF('2025NewCourses'!$A9="Yes",'2025NewCourses'!CD9," ") ->  | AX165: =IF('2025NewCourses'!$A9="Yes",'2025NewCourses'!CE9," ") ->  | AY165: =IF('2025NewCourses'!$A9="Yes",'2025NewCourses'!CF9," ") ->  | AZ165: =IF('2025NewCourses'!$A9="Yes",'2025NewCourses'!CG9," ") ->  | BA165: =IF('2025NewCourses'!$A9="Yes",'2025NewCourses'!CH9," ") ->  | BB165: =IF('2025NewCourses'!$A9="Yes",'2025NewCourses'!CI9," ") ->  | BC165: =IF('2025NewCourses'!$A9="Yes",'2025NewCourses'!CJ9," ") ->  | BD165: =IF('2025NewCourses'!$A9="Yes",'2025NewCourses'!CK9," ") ->  | BE165: =IF('2025NewCourses'!$A9="Yes",'2025NewCourses'!CL9," ") ->  | BF165: =IF('2025NewCourses'!$A9="Yes",'2025NewCourses'!CM9," ") ->  | BG165: =IF('2025NewCourses'!$A9="Yes",'2025NewCourses'!CN9," ") ->  | BH165: =IF('2025NewCourses'!$A9="Yes",'2025NewCourses'!CO9," ") ->  | BI165: =IF('2025NewCourses'!$A9="Yes",'2025NewCourses'!CP9," ") -> 
A166: =IF('2025NewCourses'!$A10="Yes",'2025NewCourses'!B10," ") ->  | B166: =IF('2025NewCourses'!$A10="Yes",'2025NewCourses'!D10," ") ->  | C166: =IF('2025NewCourses'!$A10="Yes",'2025NewCourses'!AD10," ") ->  | D166: =IF('2025NewCourses'!$A10="Yes",'2025NewCourses'!AH10," ") ->  | E166: =IF('2025NewCourses'!$A10="Yes",'2025NewCourses'!AI10," ") ->  | F166: =IF('2025NewCourses'!$A10="Yes",'2025NewCourses'!AJ10," ") ->  | G166: =IF('2025NewCourses'!$A10="Yes",'2025NewCourses'!AL10," ") ->  | H166: =IF('2025NewCourses'!$A10="Yes",'2025NewCourses'!AN10," ") ->  | I166: =IF('2025NewCourses'!$A10="Yes",'2025NewCourses'!AO10," ") ->  | J166: =IF('2025NewCourses'!$A10="Yes",'2025NewCourses'!AP10," ") ->  | K166: =IF('2025NewCourses'!$A10="Yes",'2025NewCourses'!AQ10," ") ->  | L166: =IF('2025NewCourses'!$A10="Yes",'2025NewCourses'!AR10," ") ->  | M166: =IF('2025NewCourses'!$A10="Yes",'2025NewCourses'!AS10," ") ->  | N166: =IF('2025NewCourses'!$A10="Yes",'2025NewCourses'!AT10," ") ->  | O166: =IF('2025NewCourses'!$A10="Yes",'2025NewCourses'!AU10," ") ->  | P166: =IF('2025NewCourses'!$A10="Yes",'2025NewCourses'!AV10," ") ->  | Q166: =IF('2025NewCourses'!$A10="Yes",'2025NewCourses'!AW10," ") ->  | R166: =IF('2025NewCourses'!$A10="Yes",'2025NewCourses'!AX10," ") ->  | S166: =IF('2025NewCourses'!$A10="Yes",'2025NewCourses'!AY10," ") ->  | T166: =IF('2025NewCourses'!$A10="Yes",'2025NewCourses'!AZ10," ") ->  | U166: =IF('2025NewCourses'!$A10="Yes",'2025NewCourses'!BA10," ") ->  | V166: =IF('2025NewCourses'!$A10="Yes",'2025NewCourses'!BB10," ") ->  | W166: =IF('2025NewCourses'!$A10="Yes",'2025NewCourses'!BD10," ") ->  | X166: =IF('2025NewCourses'!$A10="Yes",'2025NewCourses'!BE10," ") ->  | Y166: =IF('2025NewCourses'!$A10="Yes",'2025NewCourses'!BF10," ") ->  | Z166: =IF('2025NewCourses'!$A10="Yes",'2025NewCourses'!BG10," ") ->  | AA166: =IF('2025NewCourses'!$A10="Yes",'2025NewCourses'!BH10," ") ->  | AB166: =IF('2025NewCourses'!$A10="Yes",'2025NewCourses'!BI10," ") ->  | AC166: =IF('2025NewCourses'!$A10="Yes",'2025NewCourses'!BJ10," ") ->  | AD166: =IF('2025NewCourses'!$A10="Yes",'2025NewCourses'!BK10," ") ->  | AE166: =IF('2025NewCourses'!$A10="Yes",'2025NewCourses'!BL10," ") ->  | AF166: =IF('2025NewCourses'!$A10="Yes",'2025NewCourses'!BM10," ") ->  | AG166: =IF('2025NewCourses'!$A10="Yes",'2025NewCourses'!BN10," ") ->  | AH166: =IF('2025NewCourses'!$A10="Yes",'2025NewCourses'!BO10," ") ->  | AI166: =IF('2025NewCourses'!$A10="Yes",'2025NewCourses'!BP10," ") ->  | AJ166: =IF('2025NewCourses'!$A10="Yes",'2025NewCourses'!BQ10," ") ->  | AK166: =IF('2025NewCourses'!$A10="Yes",'2025NewCourses'!BR10," ") ->  | AL166: =IF('2025NewCourses'!$A10="Yes",'2025NewCourses'!BS10," ") ->  | AM166: =IF('2025NewCourses'!$A10="Yes",'2025NewCourses'!BT10," ") ->  | AN166: =IF('2025NewCourses'!$A10="Yes",'2025NewCourses'!BU10," ") ->  | AO166: =IF('2025NewCourses'!$A10="Yes",'2025NewCourses'!BV10," ") ->  | AP166: =IF('2025NewCourses'!$A10="Yes",'2025NewCourses'!BX10," ") ->  | AQ166: =IF('2025NewCourses'!$A10="Yes",'2025NewCourses'!BX10," ") ->  | AR166: =IF('2025NewCourses'!$A10="Yes",'2025NewCourses'!BY10," ") ->  | AS166: =IF('2025NewCourses'!$A10="Yes",'2025NewCourses'!BZ10," ") ->  | AT166: =IF('2025NewCourses'!$A10="Yes",'2025NewCourses'!CA10," ") ->  | AU166: =IF('2025NewCourses'!$A10="Yes",'2025NewCourses'!CB10," ") ->  | AV166: =IF('2025NewCourses'!$A10="Yes",'2025NewCourses'!CC10," ") ->  | AW166: =IF('2025NewCourses'!$A10="Yes",'2025NewCourses'!CD10," ") ->  | AX166: =IF('2025NewCourses'!$A10="Yes",'2025NewCourses'!CE10," ") ->  | AY166: =IF('2025NewCourses'!$A10="Yes",'2025NewCourses'!CF10," ") ->  | AZ166: =IF('2025NewCourses'!$A10="Yes",'2025NewCourses'!CG10," ") ->  | BA166: =IF('2025NewCourses'!$A10="Yes",'2025NewCourses'!CH10," ") ->  | BB166: =IF('2025NewCourses'!$A10="Yes",'2025NewCourses'!CI10," ") ->  | BC166: =IF('2025NewCourses'!$A10="Yes",'2025NewCourses'!CJ10," ") ->  | BD166: =IF('2025NewCourses'!$A10="Yes",'2025NewCourses'!CK10," ") ->  | BE166: =IF('2025NewCourses'!$A10="Yes",'2025NewCourses'!CL10," ") ->  | BF166: =IF('2025NewCourses'!$A10="Yes",'2025NewCourses'!CM10," ") ->  | BG166: =IF('2025NewCourses'!$A10="Yes",'2025NewCourses'!CN10," ") ->  | BH166: =IF('2025NewCourses'!$A10="Yes",'2025NewCourses'!CO10," ") ->  | BI166: =IF('2025NewCourses'!$A10="Yes",'2025NewCourses'!CP10," ") -> 
A167: =IF('2025NewCourses'!$A11="Yes",'2025NewCourses'!B11," ") ->  | B167: =IF('2025NewCourses'!$A11="Yes",'2025NewCourses'!D11," ") ->  | C167: =IF('2025NewCourses'!$A11="Yes",'2025NewCourses'!AD11," ") ->  | D167: =IF('2025NewCourses'!$A11="Yes",'2025NewCourses'!AH11," ") ->  | E167: =IF('2025NewCourses'!$A11="Yes",'2025NewCourses'!AI11," ") ->  | F167: =IF('2025NewCourses'!$A11="Yes",'2025NewCourses'!AJ11," ") ->  | G167: =IF('2025NewCourses'!$A11="Yes",'2025NewCourses'!AL11," ") ->  | H167: =IF('2025NewCourses'!$A11="Yes",'2025NewCourses'!AN11," ") ->  | I167: =IF('2025NewCourses'!$A11="Yes",'2025NewCourses'!AO11," ") ->  | J167: =IF('2025NewCourses'!$A11="Yes",'2025NewCourses'!AP11," ") ->  | K167: =IF('2025NewCourses'!$A11="Yes",'2025NewCourses'!AQ11," ") ->  | L167: =IF('2025NewCourses'!$A11="Yes",'2025NewCourses'!AR11," ") ->  | M167: =IF('2025NewCourses'!$A11="Yes",'2025NewCourses'!AS11," ") ->  | N167: =IF('2025NewCourses'!$A11="Yes",'2025NewCourses'!AT11," ") ->  | O167: =IF('2025NewCourses'!$A11="Yes",'2025NewCourses'!AU11," ") ->  | P167: =IF('2025NewCourses'!$A11="Yes",'2025NewCourses'!AV11," ") ->  | Q167: =IF('2025NewCourses'!$A11="Yes",'2025NewCourses'!AW11," ") ->  | R167: =IF('2025NewCourses'!$A11="Yes",'2025NewCourses'!AX11," ") ->  | S167: =IF('2025NewCourses'!$A11="Yes",'2025NewCourses'!AY11," ") ->  | T167: =IF('2025NewCourses'!$A11="Yes",'2025NewCourses'!AZ11," ") ->  | U167: =IF('2025NewCourses'!$A11="Yes",'2025NewCourses'!BA11," ") ->  | V167: =IF('2025NewCourses'!$A11="Yes",'2025NewCourses'!BB11," ") ->  | W167: =IF('2025NewCourses'!$A11="Yes",'2025NewCourses'!BD11," ") ->  | X167: =IF('2025NewCourses'!$A11="Yes",'2025NewCourses'!BE11," ") ->  | Y167: =IF('2025NewCourses'!$A11="Yes",'2025NewCourses'!BF11," ") ->  | Z167: =IF('2025NewCourses'!$A11="Yes",'2025NewCourses'!BG11," ") ->  | AA167: =IF('2025NewCourses'!$A11="Yes",'2025NewCourses'!BH11," ") ->  | AB167: =IF('2025NewCourses'!$A11="Yes",'2025NewCourses'!BI11," ") ->  | AC167: =IF('2025NewCourses'!$A11="Yes",'2025NewCourses'!BJ11," ") ->  | AD167: =IF('2025NewCourses'!$A11="Yes",'2025NewCourses'!BK11," ") ->  | AE167: =IF('2025NewCourses'!$A11="Yes",'2025NewCourses'!BL11," ") ->  | AF167: =IF('2025NewCourses'!$A11="Yes",'2025NewCourses'!BM11," ") ->  | AG167: =IF('2025NewCourses'!$A11="Yes",'2025NewCourses'!BN11," ") ->  | AH167: =IF('2025NewCourses'!$A11="Yes",'2025NewCourses'!BO11," ") ->  | AI167: =IF('2025NewCourses'!$A11="Yes",'2025NewCourses'!BP11," ") ->  | AJ167: =IF('2025NewCourses'!$A11="Yes",'2025NewCourses'!BQ11," ") ->  | AK167: =IF('2025NewCourses'!$A11="Yes",'2025NewCourses'!BR11," ") ->  | AL167: =IF('2025NewCourses'!$A11="Yes",'2025NewCourses'!BS11," ") ->  | AM167: =IF('2025NewCourses'!$A11="Yes",'2025NewCourses'!BT11," ") ->  | AN167: =IF('2025NewCourses'!$A11="Yes",'2025NewCourses'!BU11," ") ->  | AO167: =IF('2025NewCourses'!$A11="Yes",'2025NewCourses'!BV11," ") ->  | AP167: =IF('2025NewCourses'!$A11="Yes",'2025NewCourses'!BX11," ") ->  | AQ167: =IF('2025NewCourses'!$A11="Yes",'2025NewCourses'!BX11," ") ->  | AR167: =IF('2025NewCourses'!$A11="Yes",'2025NewCourses'!BY11," ") ->  | AS167: =IF('2025NewCourses'!$A11="Yes",'2025NewCourses'!BZ11," ") ->  | AT167: =IF('2025NewCourses'!$A11="Yes",'2025NewCourses'!CA11," ") ->  | AU167: =IF('2025NewCourses'!$A11="Yes",'2025NewCourses'!CB11," ") ->  | AV167: =IF('2025NewCourses'!$A11="Yes",'2025NewCourses'!CC11," ") ->  | AW167: =IF('2025NewCourses'!$A11="Yes",'2025NewCourses'!CD11," ") ->  | AX167: =IF('2025NewCourses'!$A11="Yes",'2025NewCourses'!CE11," ") ->  | AY167: =IF('2025NewCourses'!$A11="Yes",'2025NewCourses'!CF11," ") ->  | AZ167: =IF('2025NewCourses'!$A11="Yes",'2025NewCourses'!CG11," ") ->  | BA167: =IF('2025NewCourses'!$A11="Yes",'2025NewCourses'!CH11," ") ->  | BB167: =IF('2025NewCourses'!$A11="Yes",'2025NewCourses'!CI11," ") ->  | BC167: =IF('2025NewCourses'!$A11="Yes",'2025NewCourses'!CJ11," ") ->  | BD167: =IF('2025NewCourses'!$A11="Yes",'2025NewCourses'!CK11," ") ->  | BE167: =IF('2025NewCourses'!$A11="Yes",'2025NewCourses'!CL11," ") ->  | BF167: =IF('2025NewCourses'!$A11="Yes",'2025NewCourses'!CM11," ") ->  | BG167: =IF('2025NewCourses'!$A11="Yes",'2025NewCourses'!CN11," ") ->  | BH167: =IF('2025NewCourses'!$A11="Yes",'2025NewCourses'!CO11," ") ->  | BI167: =IF('2025NewCourses'!$A11="Yes",'2025NewCourses'!CP11," ") -> 
A168: =IF('2025NewCourses'!$A12="Yes",'2025NewCourses'!B12," ") ->  | B168: =IF('2025NewCourses'!$A12="Yes",'2025NewCourses'!D12," ") ->  | C168: =IF('2025NewCourses'!$A12="Yes",'2025NewCourses'!AD12," ") ->  | D168: =IF('2025NewCourses'!$A12="Yes",'2025NewCourses'!AH12," ") ->  | E168: =IF('2025NewCourses'!$A12="Yes",'2025NewCourses'!AI12," ") ->  | F168: =IF('2025NewCourses'!$A12="Yes",'2025NewCourses'!AJ12," ") ->  | G168: =IF('2025NewCourses'!$A12="Yes",'2025NewCourses'!AL12," ") ->  | H168: =IF('2025NewCourses'!$A12="Yes",'2025NewCourses'!AN12," ") ->  | I168: =IF('2025NewCourses'!$A12="Yes",'2025NewCourses'!AO12," ") ->  | J168: =IF('2025NewCourses'!$A12="Yes",'2025NewCourses'!AP12," ") ->  | K168: =IF('2025NewCourses'!$A12="Yes",'2025NewCourses'!AQ12," ") ->  | L168: =IF('2025NewCourses'!$A12="Yes",'2025NewCourses'!AR12," ") ->  | M168: =IF('2025NewCourses'!$A12="Yes",'2025NewCourses'!AS12," ") ->  | N168: =IF('2025NewCourses'!$A12="Yes",'2025NewCourses'!AT12," ") ->  | O168: =IF('2025NewCourses'!$A12="Yes",'2025NewCourses'!AU12," ") ->  | P168: =IF('2025NewCourses'!$A12="Yes",'2025NewCourses'!AV12," ") ->  | Q168: =IF('2025NewCourses'!$A12="Yes",'2025NewCourses'!AW12," ") ->  | R168: =IF('2025NewCourses'!$A12="Yes",'2025NewCourses'!AX12," ") ->  | S168: =IF('2025NewCourses'!$A12="Yes",'2025NewCourses'!AY12," ") ->  | T168: =IF('2025NewCourses'!$A12="Yes",'2025NewCourses'!AZ12," ") ->  | U168: =IF('2025NewCourses'!$A12="Yes",'2025NewCourses'!BA12," ") ->  | V168: =IF('2025NewCourses'!$A12="Yes",'2025NewCourses'!BB12," ") ->  | W168: =IF('2025NewCourses'!$A12="Yes",'2025NewCourses'!BD12," ") ->  | X168: =IF('2025NewCourses'!$A12="Yes",'2025NewCourses'!BE12," ") ->  | Y168: =IF('2025NewCourses'!$A12="Yes",'2025NewCourses'!BF12," ") ->  | Z168: =IF('2025NewCourses'!$A12="Yes",'2025NewCourses'!BG12," ") ->  | AA168: =IF('2025NewCourses'!$A12="Yes",'2025NewCourses'!BH12," ") ->  | AB168: =IF('2025NewCourses'!$A12="Yes",'2025NewCourses'!BI12," ") ->  | AC168: =IF('2025NewCourses'!$A12="Yes",'2025NewCourses'!BJ12," ") ->  | AD168: =IF('2025NewCourses'!$A12="Yes",'2025NewCourses'!BK12," ") ->  | AE168: =IF('2025NewCourses'!$A12="Yes",'2025NewCourses'!BL12," ") ->  | AF168: =IF('2025NewCourses'!$A12="Yes",'2025NewCourses'!BM12," ") ->  | AG168: =IF('2025NewCourses'!$A12="Yes",'2025NewCourses'!BN12," ") ->  | AH168: =IF('2025NewCourses'!$A12="Yes",'2025NewCourses'!BO12," ") ->  | AI168: =IF('2025NewCourses'!$A12="Yes",'2025NewCourses'!BP12," ") ->  | AJ168: =IF('2025NewCourses'!$A12="Yes",'2025NewCourses'!BQ12," ") ->  | AK168: =IF('2025NewCourses'!$A12="Yes",'2025NewCourses'!BR12," ") ->  | AL168: =IF('2025NewCourses'!$A12="Yes",'2025NewCourses'!BS12," ") ->  | AM168: =IF('2025NewCourses'!$A12="Yes",'2025NewCourses'!BT12," ") ->  | AN168: =IF('2025NewCourses'!$A12="Yes",'2025NewCourses'!BU12," ") ->  | AO168: =IF('2025NewCourses'!$A12="Yes",'2025NewCourses'!BV12," ") ->  | AP168: =IF('2025NewCourses'!$A12="Yes",'2025NewCourses'!BX12," ") ->  | AQ168: =IF('2025NewCourses'!$A12="Yes",'2025NewCourses'!BX12," ") ->  | AR168: =IF('2025NewCourses'!$A12="Yes",'2025NewCourses'!BY12," ") ->  | AS168: =IF('2025NewCourses'!$A12="Yes",'2025NewCourses'!BZ12," ") ->  | AT168: =IF('2025NewCourses'!$A12="Yes",'2025NewCourses'!CA12," ") ->  | AU168: =IF('2025NewCourses'!$A12="Yes",'2025NewCourses'!CB12," ") ->  | AV168: =IF('2025NewCourses'!$A12="Yes",'2025NewCourses'!CC12," ") ->  | AW168: =IF('2025NewCourses'!$A12="Yes",'2025NewCourses'!CD12," ") ->  | AX168: =IF('2025NewCourses'!$A12="Yes",'2025NewCourses'!CE12," ") ->  | AY168: =IF('2025NewCourses'!$A12="Yes",'2025NewCourses'!CF12," ") ->  | AZ168: =IF('2025NewCourses'!$A12="Yes",'2025NewCourses'!CG12," ") ->  | BA168: =IF('2025NewCourses'!$A12="Yes",'2025NewCourses'!CH12," ") ->  | BB168: =IF('2025NewCourses'!$A12="Yes",'2025NewCourses'!CI12," ") ->  | BC168: =IF('2025NewCourses'!$A12="Yes",'2025NewCourses'!CJ12," ") ->  | BD168: =IF('2025NewCourses'!$A12="Yes",'2025NewCourses'!CK12," ") ->  | BE168: =IF('2025NewCourses'!$A12="Yes",'2025NewCourses'!CL12," ") ->  | BF168: =IF('2025NewCourses'!$A12="Yes",'2025NewCourses'!CM12," ") ->  | BG168: =IF('2025NewCourses'!$A12="Yes",'2025NewCourses'!CN12," ") ->  | BH168: =IF('2025NewCourses'!$A12="Yes",'2025NewCourses'!CO12," ") ->  | BI168: =IF('2025NewCourses'!$A12="Yes",'2025NewCourses'!CP12," ") -> 
A169: =IF('2025NewCourses'!$A13="Yes",'2025NewCourses'!B13," ") ->  | B169: =IF('2025NewCourses'!$A13="Yes",'2025NewCourses'!D13," ") ->  | C169: =IF('2025NewCourses'!$A13="Yes",'2025NewCourses'!AD13," ") ->  | D169: =IF('2025NewCourses'!$A13="Yes",'2025NewCourses'!AH13," ") ->  | E169: =IF('2025NewCourses'!$A13="Yes",'2025NewCourses'!AI13," ") ->  | F169: =IF('2025NewCourses'!$A13="Yes",'2025NewCourses'!AJ13," ") ->  | G169: =IF('2025NewCourses'!$A13="Yes",'2025NewCourses'!AL13," ") ->  | H169: =IF('2025NewCourses'!$A13="Yes",'2025NewCourses'!AN13," ") ->  | I169: =IF('2025NewCourses'!$A13="Yes",'2025NewCourses'!AO13," ") ->  | J169: =IF('2025NewCourses'!$A13="Yes",'2025NewCourses'!AP13," ") ->  | K169: =IF('2025NewCourses'!$A13="Yes",'2025NewCourses'!AQ13," ") ->  | L169: =IF('2025NewCourses'!$A13="Yes",'2025NewCourses'!AR13," ") ->  | M169: =IF('2025NewCourses'!$A13="Yes",'2025NewCourses'!AS13," ") ->  | N169: =IF('2025NewCourses'!$A13="Yes",'2025NewCourses'!AT13," ") ->  | O169: =IF('2025NewCourses'!$A13="Yes",'2025NewCourses'!AU13," ") ->  | P169: =IF('2025NewCourses'!$A13="Yes",'2025NewCourses'!AV13," ") ->  | Q169: =IF('2025NewCourses'!$A13="Yes",'2025NewCourses'!AW13," ") ->  | R169: =IF('2025NewCourses'!$A13="Yes",'2025NewCourses'!AX13," ") ->  | S169: =IF('2025NewCourses'!$A13="Yes",'2025NewCourses'!AY13," ") ->  | T169: =IF('2025NewCourses'!$A13="Yes",'2025NewCourses'!AZ13," ") ->  | U169: =IF('2025NewCourses'!$A13="Yes",'2025NewCourses'!BA13," ") ->  | V169: =IF('2025NewCourses'!$A13="Yes",'2025NewCourses'!BB13," ") ->  | W169: =IF('2025NewCourses'!$A13="Yes",'2025NewCourses'!BD13," ") ->  | X169: =IF('2025NewCourses'!$A13="Yes",'2025NewCourses'!BE13," ") ->  | Y169: =IF('2025NewCourses'!$A13="Yes",'2025NewCourses'!BF13," ") ->  | Z169: =IF('2025NewCourses'!$A13="Yes",'2025NewCourses'!BG13," ") ->  | AA169: =IF('2025NewCourses'!$A13="Yes",'2025NewCourses'!BH13," ") ->  | AB169: =IF('2025NewCourses'!$A13="Yes",'2025NewCourses'!BI13," ") ->  | AC169: =IF('2025NewCourses'!$A13="Yes",'2025NewCourses'!BJ13," ") ->  | AD169: =IF('2025NewCourses'!$A13="Yes",'2025NewCourses'!BK13," ") ->  | AE169: =IF('2025NewCourses'!$A13="Yes",'2025NewCourses'!BL13," ") ->  | AF169: =IF('2025NewCourses'!$A13="Yes",'2025NewCourses'!BM13," ") ->  | AG169: =IF('2025NewCourses'!$A13="Yes",'2025NewCourses'!BN13," ") ->  | AH169: =IF('2025NewCourses'!$A13="Yes",'2025NewCourses'!BO13," ") ->  | AI169: =IF('2025NewCourses'!$A13="Yes",'2025NewCourses'!BP13," ") ->  | AJ169: =IF('2025NewCourses'!$A13="Yes",'2025NewCourses'!BQ13," ") ->  | AK169: =IF('2025NewCourses'!$A13="Yes",'2025NewCourses'!BR13," ") ->  | AL169: =IF('2025NewCourses'!$A13="Yes",'2025NewCourses'!BS13," ") ->  | AM169: =IF('2025NewCourses'!$A13="Yes",'2025NewCourses'!BT13," ") ->  | AN169: =IF('2025NewCourses'!$A13="Yes",'2025NewCourses'!BU13," ") ->  | AO169: =IF('2025NewCourses'!$A13="Yes",'2025NewCourses'!BV13," ") ->  | AP169: =IF('2025NewCourses'!$A13="Yes",'2025NewCourses'!BX13," ") ->  | AQ169: =IF('2025NewCourses'!$A13="Yes",'2025NewCourses'!BX13," ") ->  | AR169: =IF('2025NewCourses'!$A13="Yes",'2025NewCourses'!BY13," ") ->  | AS169: =IF('2025NewCourses'!$A13="Yes",'2025NewCourses'!BZ13," ") ->  | AT169: =IF('2025NewCourses'!$A13="Yes",'2025NewCourses'!CA13," ") ->  | AU169: =IF('2025NewCourses'!$A13="Yes",'2025NewCourses'!CB13," ") ->  | AV169: =IF('2025NewCourses'!$A13="Yes",'2025NewCourses'!CC13," ") ->  | AW169: =IF('2025NewCourses'!$A13="Yes",'2025NewCourses'!CD13," ") ->  | AX169: =IF('2025NewCourses'!$A13="Yes",'2025NewCourses'!CE13," ") ->  | AY169: =IF('2025NewCourses'!$A13="Yes",'2025NewCourses'!CF13," ") ->  | AZ169: =IF('2025NewCourses'!$A13="Yes",'2025NewCourses'!CG13," ") ->  | BA169: =IF('2025NewCourses'!$A13="Yes",'2025NewCourses'!CH13," ") ->  | BB169: =IF('2025NewCourses'!$A13="Yes",'2025NewCourses'!CI13," ") ->  | BC169: =IF('2025NewCourses'!$A13="Yes",'2025NewCourses'!CJ13," ") ->  | BD169: =IF('2025NewCourses'!$A13="Yes",'2025NewCourses'!CK13," ") ->  | BE169: =IF('2025NewCourses'!$A13="Yes",'2025NewCourses'!CL13," ") ->  | BF169: =IF('2025NewCourses'!$A13="Yes",'2025NewCourses'!CM13," ") ->  | BG169: =IF('2025NewCourses'!$A13="Yes",'2025NewCourses'!CN13," ") ->  | BH169: =IF('2025NewCourses'!$A13="Yes",'2025NewCourses'!CO13," ") ->  | BI169: =IF('2025NewCourses'!$A13="Yes",'2025NewCourses'!CP13," ") -> 
